Business Unit Description,Expense Code,Expense Code Description,GL Date,Document No.,Invoice No.,Invoiced Value,Supplier Name,Address Book No.,Proclass Details Level 1,Thomson Classification Description
INDEPENDENT RES BLOCK PLACEMEN,9270,CARELEAVERS ACCOMMODATION     ,02/07/2012,3289217,200465,12400.08,REDACTED PERSONAL DATA,559392,Social Community Care,CHILDCARE SERVICES            
INDEPENDENT FOSTERING PLACEMEN,9270,INDEPENDENT FOSTERING         ,02/07/2012,3289215,857,3662.34,REDACTED PERSONAL DATA,433318,Social Community Care,ADOPTION & FOSTERING          
STREET FORCE BALANCE SHEET    ,776,4332101 INVOICES PAID         ,02/07/2012,3288956,34147,4685.60,MHH CONTRACTING LTD                     ,205329,Construction,EXCAVATION & GROUNDWORK CONTRA
STREET FORCE BALANCE SHEET    ,776,4332101 INVOICES PAID         ,02/07/2012,3288957,34148,20276.16,MHH CONTRACTING LTD                     ,205329,Construction,EXCAVATION & GROUNDWORK CONTRA
STREET FORCE BALANCE SHEET    ,776,4332101 INVOICES PAID         ,02/07/2012,3288958,34149,525.60,MHH CONTRACTING LTD                     ,205329,Construction,EXCAVATION & GROUNDWORK CONTRA
STREET FORCE BALANCE SHEET    ,776,4332101 INVOICES PAID         ,02/07/2012,3288969,401099,680.00,BANNER PLANT  LTD                       ,203248,Vehicles Not Buses,PLANT & MACHINERY HIRE & LEASI
STREET FORCE BALANCE SHEET    ,776,4332101 INVOICES PAID         ,02/07/2012,3288970,401100,906.00,BANNER PLANT  LTD                       ,203248,Vehicles Not Buses,PLANT & MACHINERY HIRE & LEASI
STREET FORCE BALANCE SHEET    ,776,4332101 INVOICES PAID         ,02/07/2012,3288971,401101,736.00,BANNER PLANT  LTD                       ,203248,Vehicles Not Buses,PLANT & MACHINERY HIRE & LEASI
STREET FORCE BALANCE SHEET    ,776,4332101 INVOICES PAID         ,02/07/2012,3288987,34141,1108.80,MHH CONTRACTING LTD                     ,205329,Construction,EXCAVATION & GROUNDWORK CONTRA
STREET FORCE BALANCE SHEET    ,776,4332101 INVOICES PAID         ,02/07/2012,3288998,34142,6826.32,MHH CONTRACTING LTD                     ,205329,Construction,EXCAVATION & GROUNDWORK CONTRA
STREET FORCE BALANCE SHEET    ,776,4332101 INVOICES PAID         ,02/07/2012,3289009,34143,6840.37,MHH CONTRACTING LTD                     ,205329,Construction,EXCAVATION & GROUNDWORK CONTRA
STREET FORCE BALANCE SHEET    ,776,4332101 INVOICES PAID         ,02/07/2012,3289019,92089,915.00,HALL PLANT HIRE                         ,435420,Vehicles Not Buses,PLANT & MACHINERY HIRE & LEASI
STREET FORCE BALANCE SHEET    ,776,4332101 INVOICES PAID         ,02/07/2012,3289020,34144,2181.44,MHH CONTRACTING LTD                     ,205329,Construction,EXCAVATION & GROUNDWORK CONTRA
STREET FORCE BALANCE SHEET    ,776,4332101 INVOICES PAID         ,02/07/2012,3289023,92104,770.00,HALL PLANT HIRE                         ,435420,Vehicles Not Buses,PLANT & MACHINERY HIRE & LEASI
STREET FORCE BALANCE SHEET    ,776,4332101 INVOICES PAID         ,02/07/2012,3289024,92132,814.40,HALL PLANT HIRE                         ,435420,Vehicles Not Buses,PLANT & MACHINERY HIRE & LEASI
STREET FORCE BALANCE SHEET    ,776,4332101 INVOICES PAID         ,02/07/2012,3289031,34146,3341.52,MHH CONTRACTING LTD                     ,205329,Construction,EXCAVATION & GROUNDWORK CONTRA
STREET FORCE BALANCE SHEET    ,776,4332101 INVOICES PAID         ,02/07/2012,3289364,21493,18325.00,FINDLAY IRVINE LIMITED                  ,493263,Unclassified Trade,ELECTRONIC ENGINEERS          
UNIVERSAL YOUTH SERVICE       ,9120,OTHER AGENCIES                ,02/07/2012,3289553,ERS INVOICE68603         ,960.00,7 HILLS LEISURE TRUST                   ,566500,Leisure Services,SPORTS GROUND & STADIUM CONTRA
UNIVERSAL YOUTH SERVICE       ,9120,OTHER AGENCIES                ,02/07/2012,3289562,ERS INVOICE68612         ,900.00,PLAY AND SPORTS SOLUTION LIMITED        ,562235,Leisure Services,SPORTS COACHING & INSTRUCTION 
UNIVERSAL YOUTH SERVICE       ,9120,OTHER AGENCIES                ,02/07/2012,3289563,ERS INVOICE68613         ,996.00,ECCLESFIELD SCOUTS HQ FUND              ,556754,Unclassified Non Trade,COMMUNITY PROJECTS            
CLAIMS                        ,8740,PUBLIC LIABILITY              ,02/07/2012,3289567,ERS INVOICE68617         ,820.00,REDACTED PERSONAL DATA,569623,Unclassified Non Trade,OUT OF SCOPE FOR SIC MONITORIN
CLAIMS                        ,8740,HIGHWAYS                      ,02/07/2012,3289568,ERS INVOICE68618         ,1650.00,REDACTED PERSONAL DATA,569624,Unclassified Non Trade,OUT OF SCOPE FOR SIC MONITORIN
CLAIMS                        ,8740,HIGHWAYS                      ,02/07/2012,3289569,ERS INVOICE68619         ,509.40,DEPARTMENT FOR WORK & PENSIONS          ,326920,Unclassified Non Trade,CENTRAL GOVERNMENT            
ABST GRANTS                   ,9120,OTHER AGENCIES                ,02/07/2012,3289576,ERS INVOICE68626         ,36967.00,SHEFFIELD WELL-BEING CONSORTIUM         ,503588,Unclassified Non Trade,CHARITIES & VOLUNTARY ORGANISA
UNIVERSAL YOUTH SERVICE       ,9120,OTHER AGENCIES                ,02/07/2012,3289578,ERS INVOICE68628         ,1435.00,ART IN THE PARK (SHEFFIELD)             ,472059,Unclassified Non Trade,CHARITIES & VOLUNTARY ORGANISA
VS - TACKLING POVERTY         ,8180,GRANTS                        ,02/07/2012,3289585,ERS INVOICE68635         ,13556.00,PITSMOOR CITIZENS ADVICE BUREAU         ,316703,Unclassified Non Trade,CHARITIES & VOLUNTARY ORGANISA
MS - IRR STAGES 2 & 3         ,1146,L&B PROFESSIONAL FEES         ,02/07/2012,3289610,ERS INVOICE68660         ,900.00,DLA PIPER UK LLP                        ,299690,Legal Services,SOLICITORS                    
CREATIVE SERVICES             ,9120,OTHER AGENCIES                ,02/07/2012,3289718,ERS INVOICE68701         ,975.00,IAN M SPOONER PHOTOGRAPHY               ,396843,Facilities Management,PHOTOGRAPHERS - GENERAL       
LEARNING & YOUNG PEOPLE       ,8060,MATERIALS AND SUPPLIES GENERAL,02/07/2012,3289721,ERS INVOICE68718         ,1211.15,STACEY SAMPSON                          ,569079,Education,DRAMA SCHOOLS                 
CORPORATE PARENTING           ,9360,FUNDS ALLOCATED TO SCHOOLS    ,02/07/2012,3257113,16793,500.00,REDACTED PERSONAL DATA,543672,Social Community Care,ADOPTION & FOSTERING          
CITY WIDE CHILD CARE CONTRACT ,8440,FEE EXPENSES                  ,02/07/2012,3268516,979499/002               ,13976.00,BLACK WOMEN'S RESOURCE CENTRE           ,299561,Unclassified Non Trade,CHARITIES & VOLUNTARY ORGANISA
REGISTER OFFICE               ,8390,STATIONERY                    ,02/07/2012,3273322,5004,1386.55,CIVIL CEREMONIES LTD                    ,344743,Human Resources,TRAINING SERVICES             
PROJECT MANAGEMENT - SCHEME   ,8350,MISCELLANEOUS EXPENSES        ,02/07/2012,3275045,5708,16897.00,EURO ENVIRONMENTAL LTD                  ,399641,Construction,ASBESTOS SURVEYS & REMOVALS   
AQUATICS SQUADS               ,6280,HIRE OF PREMISES              ,02/07/2012,3275328,3022464,8197.60,PONDS FORGE                             ,320223,Leisure Services,LEISURE & RECREATION CENTRES  
CITY WIDE CHILD CARE CONTRACT ,8440,FEE EXPENSES                  ,02/07/2012,3277530,2(Q22012/13)             ,22237.00,SHEFFIELD CHILDREN'S CENTRE             ,311908,Social Community Care,NURSERIES & CRECHES           
WOODLANDS                     ,8260,WOODLAND DEVELOPMENT EXPENSES ,02/07/2012,3277779,97,938.40,HN WOODLAND & ESTATE MANAGEMENT         ,317072,Environmental Services,TREE WORK & FORESTRY SERVICES 
WOODLANDS                     ,8260,WOODLAND DEVELOPMENT EXPENSES ,02/07/2012,3277830,98,1775.40,HN WOODLAND & ESTATE MANAGEMENT         ,317072,Environmental Services,TREE WORK & FORESTRY SERVICES 
CITY WIDE CHILD CARE CONTRACT ,8440,FEE EXPENSES                  ,02/07/2012,3282565,41061,12855.00,MANOR COMMUNITY CHILDCARE CENTRE LTD    ,311892,Social Community Care,NURSERIES & CRECHES           
OTHER LOCAL AUTHORITY PLACEMEN,9120,OTHER AGENCIES                ,02/07/2012,3282623,4900000412,2100.00,REDACTED PERSONAL DATA,569204,Social Community Care,HOME CARE SERVICES            
OTHER REPAIRS & FEES          ,6030,BURGLAR ALARM REPAIRS         ,02/07/2012,3282666,ISG/SERV/028/12          ,13491.69,TELSTAR SECURITY                        ,299814,Facilities Management,SECURITY EQUIPMENT            
CITY WIDE CHILD CARE CONTRACT ,8440,FEE EXPENSES                  ,02/07/2012,3283370,41061,7660.00,MANOR COMMUNITY CHILDCARE CENTRE LTD    ,311892,Social Community Care,NURSERIES & CRECHES           
CITY WIDE CHILD CARE CONTRACT ,8440,FEE EXPENSES                  ,02/07/2012,3283517,41092,16708.00,DARNALL COMMUNITY NURSERY               ,515866,Unclassified Non Trade,"PLAYGROUPS, NURSERIES & CRECHE"
CITY WIDE CHILD CARE CONTRACT ,8440,FEE EXPENSES                  ,02/07/2012,3283662,160,36473.00,MANOR & CASTLE DEVELOPMENT TRUST        ,314473,Unclassified Non Trade,CHARITIES & VOLUNTARY ORGANISA
HOMES & LOANS TEAM            ,6280,HIRE OF PREMISES              ,02/07/2012,3284330,0044/11719               ,1106.00,BLADES ENTERPRISE CENTRE                ,314133,Unclassified Trade,BUSINESS CENTRES              
CUSTOMER CARE & COMMUNICATIONS,8490,TRANSLATN/SIGN/INTERPRET FEES ,02/07/2012,3284345,2949931,611.97,LANGUAGE LINE LIMITED                   ,206348,Human Resources,TRANSLATORS & INTERPRETERS    
CONCORD PARK MUGA             ,1194,OTHER FEES                    ,02/07/2012,3284366,14062,27559.47,HORTICON LTD                            ,525508,Construction,LANDSCAPE CONTRACTORS         
NORBURY                       ,7040,OTHER VEHICLE RUNNING COSTS   ,02/07/2012,3284374,2100071942,1188.33,SHEFFIELD HEALTH & SOCIAL CARE NHS      ,353994,Unclassified Non Trade,HOSPITALS                     
WOODLANDS                     ,8260,WOODLAND DEVELOPMENT EXPENSES ,02/07/2012,3284387,O297                     ,747.00,AAA 1ST CALL                            ,361147,Environmental Services,SKIP HIRE                     
ALMO ASBESTOS SURVEYS         ,1157,DWELLINGS MAIN CONTRACT       ,02/07/2012,3284886,S31144                   ,26600.00,ASBESTOS CONSULTANTS TO THE ENVIRONMENT ,516568,Construction,ASBESTOS SURVEYS & REMOVALS   
CORPORATE CS MGT              ,6210,RENTS                         ,02/07/2012,3285345,025/86855                ,21243.25,MARS PENSION TRUSTEES LIMITED           ,537372,Consultancy,SURVEYORS & VALUERS           
CORPORATE CS MGT              ,6270,SERVICE / PFI UNITARY CHARGE  ,02/07/2012,3285345,025/86855                ,11930.90,MARS PENSION TRUSTEES LIMITED           ,537372,Consultancy,SURVEYORS & VALUERS           
PARKS OPERATIONS NORTH        ,8010,EQUIPMENT PURCHASE AND REPAIR ,02/07/2012,3285699,SIN270096                ,1950.00,SEDDONS (PLANT & ENGINEERS) LTD         ,533323,Construction,ENGINEERS - GENERAL           
SWAN COMMISSIONED             ,1147,DEMOLITION                    ,02/07/2012,3285745,971784,510.68,YEDL CASHIER                            ,353721,Utilities,ELECTRICITY COMPANIES         
FURNISHED ACCOMMODATION       ,6020,VOID PAINTING INITIATIVE      ,02/07/2012,3286032,L07686                   ,584.00,BELL GROUP (LEEDS)                      ,441427,Construction,PAINTERS & DECORATORS         
CITY WIDE CHILD CARE CONTRACT ,8440,FEE EXPENSES                  ,02/07/2012,3286760,8,47592.00,TINSLEY PARENTS & CHILDRENS CONSORTIUM  ,478244,Social Community Care,NURSERIES & CRECHES           
MINOR ADAPTATIONS             ,6020,REPAIRS AND MTCE - PROGRAMMED ,02/07/2012,3286771,1769/12                  ,802.00,PIKE JOINERY LIMITED                    ,453858,Construction,CARPENTERS & JOINERS          
MINOR ADAPTATIONS             ,6030,REPAIRS AND MTCE - RESPONSIVE ,02/07/2012,3286774,1767/12                  ,627.00,PIKE JOINERY LIMITED                    ,453858,Construction,CARPENTERS & JOINERS          
MINOR ADAPTATIONS             ,6020,REPAIRS AND MTCE - PROGRAMMED ,02/07/2012,3286777,1771/12                  ,562.00,PIKE JOINERY LIMITED                    ,453858,Construction,CARPENTERS & JOINERS          
LACES                         ,8440,FEE EXPENSES                  ,02/07/2012,3286800,54,500.00,WALES HIGH SCHOOL ACADEMY TRUST         ,566922,Unclassified Non Trade,DO NOT USE* SCH - LOCAL AUTH  
ADVOCACY & CHALLENGE          ,8440,FEE EXPENSES                  ,02/07/2012,3286894,INV000026                ,1000.00,WEST MELTON PRIMARY SCHOOL              ,567360,Unclassified Non Trade,DO NOT USE* SCH - LOCAL AUTH  
CREATIVE SERVICES             ,9120,OTHER AGENCIES                ,02/07/2012,3287134,36873,3108.00,GARNETT DICKINSON PUBLISHING LTD        ,205074,Education,NEWSPAPER & MAGAZINE PUBLISHER
MECHANICAL & ELECTRICAL ENGINE,8350,MISCELLANEOUS EXPENSES        ,02/07/2012,3287138,I35771                   ,6875.00,CIBSE PUBLICATIONS                      ,318167,Construction,ENGINEERS - GENERAL           
LICENSING                     ,8060,MATERIALS AND SUPPLIES GENERAL,02/07/2012,3287163,14021,552.22,VIP SYSTEM LTD.                         ,455617,Vehicles Not Buses,CAR ACCESSORIES & PARTS       
AQUATICS SQUADS               ,6280,HIRE OF PREMISES              ,02/07/2012,3287269,3022724,7484.40,PONDS FORGE                             ,320223,Leisure Services,LEISURE & RECREATION CENTRES  
LD PARTNERSHIP CONTRACTS      ,9160,PARTNERSHIP CONTRACTS         ,02/07/2012,3287365,BE2013-6                 ,13304.00,BRIDGE EMPLOYMENT                       ,303748,Unclassified Non Trade,CHARITIES & VOLUNTARY ORGANISA
CHILDRENS' FESTIVAL           ,8440,FEE EXPENSES                  ,02/07/2012,3287370,INC08238                 ,500.00,ART IN THE PARK (SHEFFIELD)             ,472059,Unclassified Non Trade,CHARITIES & VOLUNTARY ORGANISA
PROJECT MANAGEMENT - SCHEME   ,8440,FEE EXPENSES                  ,02/07/2012,3287373,19319,2415.00,WESSEX ARCHAEOLOGY LTD                  ,569412,Consultancy,ARCHAEOLOGISTS                
PROJECT MANAGEMENT - SCHEME   ,8440,FEE EXPENSES                  ,02/07/2012,3287374,19225,2300.00,WESSEX ARCHAEOLOGY LTD                  ,569412,Consultancy,ARCHAEOLOGISTS                
PURCHASING & PAYMENTS TEAM    ,5610,AGENCY STAFF                  ,02/07/2012,3287442,C0223932328              ,1348.28,REED EMPLOYMENT                         ,317819,Human Resources,EMPLOYMENT & RECRUITMENT AGENC
NORBURY                       ,7040,OTHER VEHICLE RUNNING COSTS   ,02/07/2012,3287479,2100072042,800.60,SHEFFIELD HEALTH & SOCIAL CARE NHS      ,353994,Unclassified Non Trade,HOSPITALS                     
NORBURY                       ,7040,OTHER VEHICLE RUNNING COSTS   ,02/07/2012,3287480,2100072046,1109.62,SHEFFIELD HEALTH & SOCIAL CARE NHS      ,353994,Unclassified Non Trade,HOSPITALS                     
WOODLANDS                     ,8260,WOODLAND DEVELOPMENT EXPENSES ,02/07/2012,3287484,816,1920.00,SHEFFIELD TREE CARE                     ,462546,Environmental Services,TREE WORK & FORESTRY SERVICES 
FM SITES TRADED               ,6030,DAY TO DAY REPAIRS            ,02/07/2012,3287510,1206273286,1400.00,HALLAMSHIRE HEATING & AIR CONDITIONING  ,439606,Construction,AIR CONDITIONING & REFRIGERATI
FURNISHED ACCOMMODATION       ,8050,ELECTRICAL GOODS              ,02/07/2012,3287584,CMD2220653               ,4060.00,DOMESTIC APPLIANCE DISTRIBUTORS         ,527171,Domestic Goods,ELECTRICAL GOODS - SALES      
CREATIVE SERVICES             ,8020,EQUIPMENT LEASE/ RENTAL/ HIRE ,02/07/2012,3287620,001/12/0593725           ,828.00,ING LEASE (UK) LIMITED                  ,484570,Financial Services,LEASING SERVICES              
MARKETING SHEFFIELD           ,8250,MARKETING EXPENSES            ,02/07/2012,3287703,LF/I009547               ,501.00,TAKE ONE MEDIA LTD                      ,348918,Transport,DISTRIBUTION SERVICES         
BOOKS & OTHER MATERIALS       ,8080,LIBRARY MATERIALS             ,02/07/2012,3287712,1522531,710.79,BERTRAM LIBRARY SERVICES                ,418929,Education,EDUCATIONAL EQUIPMENT & SUPPLI
SECTOR GROWTH                 ,8250,MARKETING EXPENSES            ,02/07/2012,3287820,1461,500.00,THECITYUK                               ,569155,Financial Services,FINANCIAL SERVICES            
HANDSWORTH GRANGE             ,1161,NC&A MAIN CONTRACT            ,02/07/2012,3288679,955,370453.50,SHEFFIELD LEP LTD                       ,482230,Unclassified Non Trade,LOCAL GOVERNMENT              
ARCHIVES & CONSERVATION       ,8060,MATERIALS AND SUPPLIES GENERAL,02/07/2012,3288688,118994,2467.24,TNT UK LTD.                             ,209076,Mail Services,COURIER & MESSENGER SERVICES  
PARKS OPERATIONS NORTH        ,8010,EQUIPMENT PURCHASE AND REPAIR ,02/07/2012,3288773,100803,1996.00,GIBSONS GARDEN MACHINERY LTD            ,205132,Horticultural,LAWNMOWERS & GARDEN MACHINERY 
ADAPTATIONS                   ,1157,DWELLINGS MAIN CONTRACT       ,02/07/2012,3288791,1017494,5975.00,CLARK & PARTNERS LTD                    ,203928,Medical ,DISABILITY EQUIPMENT - MNFRS &
BUILDING STANDARDS            ,5750,TRAINING EXPENDITURE          ,02/07/2012,3288804,127,1350.00,LABC TRAINING                           ,507747,Unclassified Non Trade,LOCAL GOVERNMENT              
ADVOCACY & CHALLENGE          ,8440,FEE EXPENSES                  ,02/07/2012,3288812,180612,1000.00,ST JOSEPH'S RC HIGH SCHOOL              ,565920,Unclassified Non Trade,DO NOT USE* SCH & COLLS- GRANT
ACTIVATING FOREST OWNERS      ,8350,MISCELLANEOUS EXPENSES        ,02/07/2012,3288835,INV-0810                 ,4000.00,SILVAPOWER LTD                          ,406670,Building Construction Materials,SAWMILLS & WOOD SHAVINGS      
INCLUSION CENTRE              ,5610,AGENCY STAFF - INVOICE        ,02/07/2012,3288902,3517461,639.70,CAPITA EDUCATION RESOURCING             ,203721,Human Resources,EMPLOYMENT & RECRUITMENT AGENC
INCLUSION CENTRE              ,5610,AGENCY STAFF - INVOICE        ,02/07/2012,3288903,3517455,639.70,CAPITA EDUCATION RESOURCING             ,203721,Human Resources,EMPLOYMENT & RECRUITMENT AGENC
INCLUSION CENTRE              ,5610,AGENCY STAFF - INVOICE        ,02/07/2012,3288904,3517454,639.70,CAPITA EDUCATION RESOURCING             ,203721,Human Resources,EMPLOYMENT & RECRUITMENT AGENC
INCLUSION CENTRE              ,5610,AGENCY STAFF - INVOICE        ,02/07/2012,3288906,3517456,639.70,CAPITA EDUCATION RESOURCING             ,203721,Human Resources,EMPLOYMENT & RECRUITMENT AGENC
INCLUSION CENTRE              ,5610,AGENCY STAFF - INVOICE        ,02/07/2012,3288907,3517459,639.70,CAPITA EDUCATION RESOURCING             ,203721,Human Resources,EMPLOYMENT & RECRUITMENT AGENC
INCLUSION CENTRE              ,5610,AGENCY STAFF - INVOICE        ,02/07/2012,3288908,3517460,639.70,CAPITA EDUCATION RESOURCING             ,203721,Human Resources,EMPLOYMENT & RECRUITMENT AGENC
INCLUSION CENTRE              ,5610,AGENCY STAFF - INVOICE        ,02/07/2012,3288914,223945561,522.21,REED EMPLOYMENT                         ,317819,Human Resources,EMPLOYMENT & RECRUITMENT AGENC
LOCAL ELECTIONS               ,8420,ADVERTISING AND PUBLICITY     ,02/07/2012,3289246,3-171330171331172351     ,3750.00,ITV BROADCASTING LIMITED                ,520798,Leisure Services,TELEVISION & RADIO PRODUCTION 
CARERS GRANT LD               ,9160,PARTNERSHIP CONTRACTS         ,02/07/2012,3289435,4559,4598.50,ENABLE (SHEFFIELD)                      ,329346,Unclassified Non Trade,CHARITIES & VOLUNTARY ORGANISA
LD PARTNERSHIP CONTRACTS      ,9160,PARTNERSHIP CONTRACTS         ,02/07/2012,3289436,4558,8498.00,ENABLE (SHEFFIELD)                      ,329346,Unclassified Non Trade,CHARITIES & VOLUNTARY ORGANISA
SNIPS                         ,8180,GRANTS                        ,02/07/2012,3289507,891,2095.98,FRIENDS OF BENTS GREEN                  ,397245,Unclassified Non Trade,CHARITIES & VOLUNTARY ORGANISA
PUBLIC REALM OH AND SUPPORT   ,6150,ELECTRICITY                   ,02/07/2012,3289275,27140528,717.53,NPOWER NORTHERN LTD                     ,207191,Utilities,ELECTRICITY COMPANIES         
WESTON PARK                   ,6150,ELECTRICITY                   ,02/07/2012,3289287,27140658,656.44,NPOWER NORTHERN LTD                     ,207191,Utilities,ELECTRICITY COMPANIES         
BARKERS POOL                  ,6150,ELECTRICITY                   ,02/07/2012,3289315,27140169,689.00,NPOWER NORTHERN LTD                     ,207191,Utilities,ELECTRICITY COMPANIES         
FIRTH PARK(CITY)              ,6150,ELECTRICITY                   ,02/07/2012,3289319,27140492,588.23,NPOWER NORTHERN LTD                     ,207191,Utilities,ELECTRICITY COMPANIES         
BARKERS POOL                  ,6150,ELECTRICITY                   ,02/07/2012,3289320,27140169,597.67,NPOWER NORTHERN LTD                     ,207191,Utilities,ELECTRICITY COMPANIES         
RED TAPE CENTRAL              ,6150,ELECTRICITY                   ,02/07/2012,3289354,27140751,3843.20,NPOWER NORTHERN LTD                     ,207191,Utilities,ELECTRICITY COMPANIES         
RED TAPE CENTRAL              ,6150,ELECTRICITY                   ,02/07/2012,3289356,27140751,4176.03,NPOWER NORTHERN LTD                     ,207191,Utilities,ELECTRICITY COMPANIES         
SHEAF TRAINING                ,6150,ELECTRICITY                   ,02/07/2012,3289359,27140793,1264.60,NPOWER NORTHERN LTD                     ,207191,Utilities,ELECTRICITY COMPANIES         
SHEAF TRAINING                ,6150,ELECTRICITY                   ,02/07/2012,3289361,27140793,1334.76,NPOWER NORTHERN LTD                     ,207191,Utilities,ELECTRICITY COMPANIES         
ECCLESFIELD SUPPORT UNIT      ,6150,ELECTRICITY                   ,02/07/2012,3289365,27140261,553.77,NPOWER NORTHERN LTD                     ,207191,Utilities,ELECTRICITY COMPANIES         
ECCLESALL WOODS SAWMILL SITE  ,6150,ELECTRICITY                   ,02/07/2012,3289368,27140255,520.44,NPOWER NORTHERN LTD                     ,207191,Utilities,ELECTRICITY COMPANIES         
BEIGHTON                      ,6150,ELECTRICITY                   ,02/07/2012,3289370,27140752,2466.33,NPOWER NORTHERN LTD                     ,207191,Utilities,ELECTRICITY COMPANIES         
BEIGHTON                      ,6150,ELECTRICITY                   ,02/07/2012,3289375,27140752,2052.26,NPOWER NORTHERN LTD                     ,207191,Utilities,ELECTRICITY COMPANIES         
MEDICO LEGAL CENTRE           ,6150,ELECTRICITY                   ,02/07/2012,3289378,27140759,2915.37,NPOWER NORTHERN LTD                     ,207191,Utilities,ELECTRICITY COMPANIES         
MEDICO LEGAL CENTRE           ,6150,ELECTRICITY                   ,02/07/2012,3289379,27140759,2649.76,NPOWER NORTHERN LTD                     ,207191,Utilities,ELECTRICITY COMPANIES         
STANIFORTH ROAD WORKSHOPS     ,8070,STOCKS AND STORES             ,02/07/2012,3289395,14480761,744.56,LOOKERS FORD                            ,474939,Vehicles Not Buses,CAR DEALERS                   
STANIFORTH ROAD WORKSHOPS     ,7010,ROUTINE VEHICLE REPAIR & MTCE ,02/07/2012,3289415,137037,1946.50,IVOR SEARLE                             ,527714,Vehicles Not Buses,ENGINE REBUILDING & RECONDITIO
HOMELESS INTERIM ACCOMM       ,6210,BED & BREAKFAST PAYMENTS      ,02/07/2012,3289278,25/2012                  ,1417.20,EARL MARSHALL GUEST HOUSE               ,391589,Facilities Management,GUEST HOUSES                  
INDEPENDENT FOSTERING PLACEMEN,9270,INDEPENDENT FOSTERING         ,02/07/2012,3289211,630036163,2831.91,REDACTED PERSONAL DATA,328618,Social Community Care,ADOPTION & FOSTERING          
HOMELESS INTERIM ACCOMM       ,6210,BED & BREAKFAST PAYMENTS      ,02/07/2012,3289279,263,869.30,BURNGREAVE B & B                        ,466986,Facilities Management,GUEST HOUSES                  
PURCHASING                    ,9190,DIRECT PAYMENTS               ,02/07/2012,3289241,J495476                  ,1900.00,REDACTED PERSONAL DATA,568532,Social Community Care,CAREFIRST DIRECT PAYMENTS     
PURCHASING LEARNING DISABILITI,9190,CITYWIDE SPOT                 ,02/07/2012,3289242,1692429,1128.96,MENCAP HOMECARE                         ,361858,Unclassified Non Trade,CHARITIES & VOLUNTARY ORGANISA
INDEPENDENT FOSTERING PLACEMEN,9270,INDEPENDENT FOSTERING         ,02/07/2012,3289193,101308956,4328.22,BARNARDO'S                              ,328396,Unclassified Non Trade,CHARITIES & VOLUNTARY ORGANISA
INDEPENDENT FOSTERING PLACEMEN,9270,INDEPENDENT FOSTERING         ,02/07/2012,3289194,114190,830.00,REDACTED PERSONAL DATA,349291,Social Community Care,ADOPTION & FOSTERING          
INDEPENDENT FOSTERING PLACEMEN,9270,INDEPENDENT FOSTERING         ,02/07/2012,3289195,114273,874.00,REDACTED PERSONAL DATA,349291,Social Community Care,ADOPTION & FOSTERING          
CWD INDEPENDENT PLACEMENTS    ,9270,INDEPENDENT FOSTERING         ,02/07/2012,3289196,14510,5411.67,REDACTED PERSONAL DATA,460618,Social Community Care,ADOPTION & FOSTERING          
INDEPENDENT FOSTERING PLACEMEN,9270,INDEPENDENT FOSTERING         ,02/07/2012,3289197,17935,3554.77,REDACTED PERSONAL DATA,557607,Social Community Care,ADOPTION & FOSTERING          
LEAVING CARE                  ,9270,INDEPENDENT FOSTERING         ,02/07/2012,3289200,101308958,4340.00,BARNARDO'S                              ,328396,Unclassified Non Trade,CHARITIES & VOLUNTARY ORGANISA
INDEPENDENT FOSTERING PLACEMEN,9270,INDEPENDENT FOSTERING         ,02/07/2012,3289202,279,1262.47,REDACTED PERSONAL DATA,368713,Social Community Care,ADOPTION & FOSTERING          
LEAVING CARE                  ,9270,INDEPENDENT FOSTERING         ,02/07/2012,3289204,3331612,3857.95,HILLCREST CARE LTD                      ,481506,Social Community Care,RESIDENTIAL CARE HOMES        
INDEPENDENT FOSTERING PLACEMEN,9270,INDEPENDENT FOSTERING         ,02/07/2012,3289205,3331712,2904.30,HILLCREST CARE LTD                      ,481506,Social Community Care,RESIDENTIAL CARE HOMES        
INDEPENDENT FOSTERING PLACEMEN,9270,INDEPENDENT FOSTERING         ,02/07/2012,3289206,3331812,6079.06,HILLCREST CARE LTD                      ,481506,Social Community Care,RESIDENTIAL CARE HOMES        
INDEPENDENT FOSTERING PLACEMEN,9270,INDEPENDENT FOSTERING         ,02/07/2012,3289207,41944,3764.33,REDACTED PERSONAL DATA,401813,Social Community Care,ADOPTION & FOSTERING          
LEAVING CARE                  ,9270,INDEPENDENT FOSTERING         ,02/07/2012,3289208,41946,3764.33,REDACTED PERSONAL DATA,401813,Social Community Care,ADOPTION & FOSTERING          
INDEPENDENT FOSTERING PLACEMEN,9270,INDEPENDENT FOSTERING         ,02/07/2012,3289209,630030097,552.50,REDACTED PERSONAL DATA,328618,Social Community Care,ADOPTION & FOSTERING          
INDEPENDENT FOSTERING PLACEMEN,9270,INDEPENDENT FOSTERING         ,02/07/2012,3289210,630033177,3094.00,REDACTED PERSONAL DATA,328618,Social Community Care,ADOPTION & FOSTERING          
INDEPENDENT FOSTERING PLACEMEN,9270,INDEPENDENT FOSTERING         ,02/07/2012,3289212,630036182,2831.91,REDACTED PERSONAL DATA,328618,Social Community Care,ADOPTION & FOSTERING          
INDEPENDENT FOSTERING PLACEMEN,9270,INDEPENDENT FOSTERING         ,02/07/2012,3289213,630039107,3604.25,REDACTED PERSONAL DATA,328618,Social Community Care,ADOPTION & FOSTERING          
INDEPENDENT FOSTERING PLACEMEN,9270,INDEPENDENT FOSTERING         ,02/07/2012,3289214,630039125,3604.25,REDACTED PERSONAL DATA,328618,Social Community Care,ADOPTION & FOSTERING          
INDEPENDENT RES BLOCK PLACEMEN,9270,CARELEAVERS ACCOMMODATION     ,02/07/2012,3289218,200515,556.92,REDACTED PERSONAL DATA,559392,Social Community Care,CHILDCARE SERVICES            
LEAVING CARE                  ,9270,CARELEAVERS ACCOMMODATION     ,02/07/2012,3289222,4001,3800.00,TWENTY FOUR SEVEN                       ,364408,Unclassified Non Trade,CHARITIES & VOLUNTARY ORGANISA
INDEPENDENT RES BLOCK PLACEMEN,9270,INDEPENDENT RESIDENTIAL PMENT ,02/07/2012,3289223,4040000456,13778.04,PRIORY EDUCATION SERVICES LTD.          ,384894,Unclassified Non Trade,SCHOOLS - SPECIAL             
INDEPENDENT RES BLOCK PLACEMEN,9270,INDEPENDENT RESIDENTIAL PMENT ,02/07/2012,3289224,4040000457,10013.97,PRIORY EDUCATION SERVICES LTD.          ,384894,Unclassified Non Trade,SCHOOLS - SPECIAL             
LEAVING CARE                  ,9270,CARELEAVERS ACCOMMODATION     ,02/07/2012,3289225,4040000458,6916.41,EASTWOOD GRANGE PRIORY                  ,534270,Unclassified Non Trade,SCHOOLS - SPECIAL             
INDEPENDENT RES BLOCK PLACEMEN,9270,INDEPENDENT RESIDENTIAL PMENT ,02/07/2012,3289226,106712,11957.01,THE KEYS GROUP                          ,328876,Social Community Care,CHILDREN'S HOMES              
INDEPENDENT RES BLOCK PLACEMEN,9270,INDEPENDENT RESIDENTIAL PMENT ,02/07/2012,3289227,717,11437.53,REDACTED PERSONAL DATA,405951,Social Community Care,CHILDCARE SERVICES            
INDEPENDENT RES BLOCK PLACEMEN,9270,INDEPENDENT RESIDENTIAL PMENT ,02/07/2012,3289228,741REVISED               ,15500.00,TURNAROUND                              ,456381,Social Community Care,CHILDREN'S HOMES              
INDEPENDENT RES BLOCK PLACEMEN,9270,INDEPENDENT RESIDENTIAL PMENT ,02/07/2012,3289229,106713,3096.00,THE KEYS GROUP                          ,328876,Social Community Care,CHILDREN'S HOMES              
INDEPENDENT RES BLOCK PLACEMEN,9270,INDEPENDENT RESIDENTIAL PMENT ,02/07/2012,3289230,754REVISED               ,3000.00,TURNAROUND                              ,456381,Social Community Care,CHILDREN'S HOMES              
INDEPENDENT RES BLOCK PLACEMEN,9270,INDEPENDENT RESIDENTIAL PMENT ,02/07/2012,3289231,816,15972.76,REDACTED PERSONAL DATA,326884,Social Community Care,CHILDCARE SERVICES            
LEAVING CARE                  ,9270,CARELEAVERS ACCOMMODATION     ,02/07/2012,3289233,ESG:05A                  ,1628.58,JORDAN XAVIER LTD                       ,565147,Unclassified Trade,ACCOMMODATION AGENCIES - RESID
LEAVING CARE                  ,9270,CARELEAVERS ACCOMMODATION     ,02/07/2012,3289234,ESG:06                   ,1682.86,JORDAN XAVIER LTD                       ,565147,Unclassified Trade,ACCOMMODATION AGENCIES - RESID
WEST SA - CIN S17             ,9270,CARELEAVERS INDEPENDENT LIVING,02/07/2012,3289237,1116,565.92,CROSSROADS CARE ATTENDANT S.            ,361857,Unclassified Non Trade,CHARITIES & VOLUNTARY ORGANISA
PURCHASING ELDERLY            ,9200,CONTINUING RESIDENTIAL CARE   ,02/07/2012,3289129,J490992 240612           ,7404.57,COUMES BROOK                            ,362149,Social Community Care,RESIDENTIAL CARE HOMES        
PURCHASING ELDERLY            ,9210,CONTINUING NURSING CARE       ,02/07/2012,3289130,J490994 240612           ,7716.29,CHATSWORTH GRANGE EMI N HOME            ,362033,Social Community Care,NURSING HOMES                 
PURCHASING LEARNING DISABILITI,9200,CONTINUING RESIDENTIAL CARE   ,02/07/2012,3289131,J491313 240612           ,10990.62,BROOMHOUSE                              ,362002,Social Community Care,NURSING HOMES                 
PURCHASING ELDERLY            ,9210,CONTINUING NURSING CARE       ,02/07/2012,3289132,J491317 240612           ,7530.71,ASCOT LODGE CARE HOME                   ,362118,Social Community Care,NURSING HOMES                 
PURCHASING ELDERLY            ,9200,CONTINUING RESIDENTIAL CARE   ,02/07/2012,3289133,J491318 240612           ,7543.00,BEECHY KNOLL                            ,362144,Social Community Care,RESIDENTIAL CARE HOMES        
PURCHASING ELDERLY            ,9200,CONTINUING RESIDENTIAL CARE   ,02/07/2012,3289134,J491588 220712           ,7832.60,COUMES BROOK                            ,362149,Social Community Care,RESIDENTIAL CARE HOMES        
PURCHASING ELDERLY            ,9200,CONTINUING RESIDENTIAL CARE   ,02/07/2012,3289135,J491592 220712           ,7479.40,100 BEIGHTON ROAD                       ,362152,Social Community Care,RESIDENTIAL CARE HOMES        
PURCHASING LEARNING DISABILITI,9200,CONTINUING RESIDENTIAL CARE   ,02/07/2012,3289135,J491592 220712           ,16950.40,100 BEIGHTON ROAD                       ,362152,Social Community Care,RESIDENTIAL CARE HOMES        
PURCHASING ELDERLY            ,9210,CONTINUING NURSING CARE       ,02/07/2012,3289136,J491594 220712           ,6544.00,67 BIRCH AVENUE NURSING HOME            ,362108,Social Community Care,NURSING HOMES                 
PURCHASING LEARNING DISABILITI,9200,CONTINUING RESIDENTIAL CARE   ,02/07/2012,3289137,J491596 220712           ,17296.92,COTTAM ROAD SCHEME                      ,362167,Social Community Care,RESIDENTIAL CARE HOMES        
PURCHASING ELDERLY            ,9200,CONTINUING RESIDENTIAL CARE   ,02/07/2012,3289137,J491596 220712           ,4419.44,COTTAM ROAD SCHEME                      ,362167,Social Community Care,RESIDENTIAL CARE HOMES        
PURCHASING ELDERLY            ,9200,CONTINUING RESIDENTIAL CARE   ,02/07/2012,3289138,J491599 220712           ,33668.00,GRANGE CRESCENT                         ,361898,Social Community Care,RESIDENTIAL CARE HOMES        
PURCHASING ELDERLY            ,9200,CONTINUING RESIDENTIAL CARE   ,02/07/2012,3289139,J491602 220712           ,39360.00,BURNT TREE CROFT                        ,361793,Social Community Care,RESIDENTIAL CARE HOMES        
PDSI PURCHASING               ,9200,CONTINUING RESIDENTIAL CARE   ,02/07/2012,3289140,J491603 220712           ,5833.12,CASTELAYN                               ,361796,Social Community Care,RESIDENTIAL CARE HOMES        
PURCHASING ELDERLY            ,9200,CONTINUING RESIDENTIAL CARE   ,02/07/2012,3289140,J491603 220712           ,28394.32,CASTELAYN                               ,361796,Social Community Care,RESIDENTIAL CARE HOMES        
PURCHASING ELDERLY            ,9200,CONTINUING RESIDENTIAL CARE   ,02/07/2012,3289141,J491606 220712           ,25684.57,HAWKHILLS                               ,361795,Social Community Care,RESIDENTIAL CARE HOMES        
PURCHASING ELDERLY            ,9200,CONTINUING RESIDENTIAL CARE   ,02/07/2012,3289142,J491608 220712           ,36360.00,KNOWLE HILL                             ,361798,Social Community Care,RESIDENTIAL CARE HOMES        
PDSI PURCHASING               ,9200,CONTINUING RESIDENTIAL CARE   ,02/07/2012,3289143,J491609 220712           ,6027.84,PADDOCK HILL                            ,361797,Social Community Care,RESIDENTIAL CARE HOMES        
PURCHASING ELDERLY            ,9200,CONTINUING RESIDENTIAL CARE   ,02/07/2012,3289143,J491609 220712           ,15072.00,PADDOCK HILL                            ,361797,Social Community Care,RESIDENTIAL CARE HOMES        
PDSI PURCHASING               ,9200,CONTINUING RESIDENTIAL CARE   ,02/07/2012,3289144,J491616 220712           ,5720.04,CARRWOOD HOUSE HOME                     ,362165,Social Community Care,RESIDENTIAL CARE HOMES        
PURCHASING ELDERLY            ,9200,CONTINUING RESIDENTIAL CARE   ,02/07/2012,3289144,J491616 220712           ,3917.32,CARRWOOD HOUSE HOME                     ,362165,Social Community Care,RESIDENTIAL CARE HOMES        
PURCHASING LEARNING DISABILITI,9200,CONTINUING RESIDENTIAL CARE   ,02/07/2012,3289144,J491616 220712           ,4220.96,CARRWOOD HOUSE HOME                     ,362165,Social Community Care,RESIDENTIAL CARE HOMES        
PURCHASING                    ,9200,CONTINUING RESIDENTIAL CARE   ,02/07/2012,3289144,J491616 220712           ,12789.52,CARRWOOD HOUSE HOME                     ,362165,Social Community Care,RESIDENTIAL CARE HOMES        
PURCHASING ELDERLY            ,9210,CONTINUING NURSING CARE       ,02/07/2012,3289145,J491622 220712           ,25068.00,CHATSWORTH GRANGE EMI N HOME            ,362033,Social Community Care,NURSING HOMES                 
PURCHASING LEARNING DISABILITI,9200,CONTINUING RESIDENTIAL CARE   ,02/07/2012,3289146,J491627 220712           ,7191.96,CEDAR LODGE RH                          ,362171,Social Community Care,RESIDENTIAL CARE HOMES        
PURCHASING LEARNING DISABILITI,9200,CONTINUING RESIDENTIAL CARE   ,02/07/2012,3289147,J491631 220712           ,9271.20,BROOMHOUSE                              ,362002,Social Community Care,NURSING HOMES                 
PURCHASING ELDERLY            ,9200,CONTINUING RESIDENTIAL CARE   ,02/07/2012,3289148,J491648 220712           ,16400.00,CROFT ACRES                             ,361758,Social Community Care,RESIDENTIAL CARE HOMES        
PURCHASING LEARNING DISABILITI,9200,CONTINUING RESIDENTIAL CARE   ,02/07/2012,3289149,J491656 220712           ,6389.64,CARE SHANGTON                           ,362004,Social Community Care,DISABILITY & SPECIAL NEEDS - S
PURCHASING LEARNING DISABILITI,9200,CONTINUING RESIDENTIAL CARE   ,02/07/2012,3289150,J491675 220712           ,9414.28,BETHANY HOUSE                           ,361787,Social Community Care,RESIDENTIAL CARE HOMES        
PURCHASING ELDERLY            ,9210,CONTINUING NURSING CARE       ,02/07/2012,3289151,J491677 220712           ,4128.00,BROOMCROFT HOUSE                        ,361960,Social Community Care,NURSING HOMES                 
PURCHASING ELDERLY            ,9200,CONTINUING RESIDENTIAL CARE   ,02/07/2012,3289153,J491692 220712           ,1673.12,CAMBRON HOUSE CARE HOME                 ,361832,Social Community Care,RESIDENTIAL CARE HOMES        
PURCHASING LEARNING DISABILITI,9200,CONTINUING RESIDENTIAL CARE   ,02/07/2012,3289154,J491700 220712           ,13277.48,CRAGSIDE HOUSE RES. HOME                ,361926,Social Community Care,RESIDENTIAL CARE HOMES        
PURCHASING ELDERLY            ,9200,CONTINUING RESIDENTIAL CARE   ,02/07/2012,3289155,J491707 220712           ,1716.00,BROADACRES CARE HOME                    ,522768,Social Community Care,RESIDENTIAL CARE HOMES        
PURCHASING LEARNING DISABILITI,9200,CONTINUING RESIDENTIAL CARE   ,02/07/2012,3289156,J491712 220712           ,11995.52,209-211 BURNCROSS ROAD                  ,361965,Social Community Care,RESIDENTIAL CARE HOMES        
PURCHASING ELDERLY            ,9200,CONTINUING RESIDENTIAL CARE   ,02/07/2012,3289157,J491724 220712           ,10216.14,ALEXANDER COURT CARE HOME               ,361889,Social Community Care,RESIDENTIAL CARE HOMES        
PURCHASING ELDERLY            ,9210,CONTINUING NURSING CARE       ,02/07/2012,3289157,J491724 220712           ,24160.00,ALEXANDER COURT CARE HOME               ,361889,Social Community Care,RESIDENTIAL CARE HOMES        
PURCHASING ELDERLY            ,9200,CONTINUING RESIDENTIAL CARE   ,02/07/2012,3289158,J491725 220712           ,9632.00,ASCOT LODGE CARE HOME                   ,362118,Social Community Care,NURSING HOMES                 
PURCHASING ELDERLY            ,9210,CONTINUING NURSING CARE       ,02/07/2012,3289158,J491725 220712           ,14676.00,ASCOT LODGE CARE HOME                   ,362118,Social Community Care,NURSING HOMES                 
PURCHASING ELDERLY            ,9200,CONTINUING RESIDENTIAL CARE   ,02/07/2012,3289159,J491729 220712           ,31284.00,BEECHY KNOLL                            ,362144,Social Community Care,RESIDENTIAL CARE HOMES        
PURCHASING ELDERLY            ,9210,CONTINUING NURSING CARE       ,02/07/2012,3289160,J491741 220712           ,1624.00,CLIFF HOUSE RESIDENTIAL HOME            ,362088,Social Community Care,NURSING HOMES                 
PURCHASING ELDERLY            ,9200,CONTINUING RESIDENTIAL CARE   ,02/07/2012,3289161,J491749 220712           ,13216.00,CAIRN HOME                              ,368330,Social Community Care,RESIDENTIAL CARE HOMES        
PURCHASING ELDERLY            ,9210,CONTINUING NURSING CARE       ,02/07/2012,3289162,J491757 220712           ,17204.00,BLENHEIM COURT                          ,368328,Social Community Care,NURSING HOMES                 
PURCHASING ELDERLY            ,9200,CONTINUING RESIDENTIAL CARE   ,02/07/2012,3289163,J491758 220712           ,11648.00,ROSEBERRY CARE CENTRES GB LTD           ,368334,Social Community Care,NURSING HOMES                 
PURCHASING ELDERLY            ,9210,CONTINUING NURSING CARE       ,02/07/2012,3289163,J491758 220712           ,17444.00,ROSEBERRY CARE CENTRES GB LTD           ,368334,Social Community Care,NURSING HOMES                 
PURCHASING ELDERLY            ,9200,CONTINUING RESIDENTIAL CARE   ,02/07/2012,3289164,J491759 220712           ,1564.00,CLUMBER COURT CARE HOME                 ,368325,Social Community Care,RESIDENTIAL CARE HOMES        
PDSI PURCHASING               ,9200,CONTINUING RESIDENTIAL CARE   ,02/07/2012,3289165,J491760 220712           ,1537.16,BROOKVIEW NURSING HOME                  ,368323,Social Community Care,NURSING HOMES                 
PURCHASING ELDERLY            ,9200,CONTINUING RESIDENTIAL CARE   ,02/07/2012,3289165,J491760 220712           ,3196.00,BROOKVIEW NURSING HOME                  ,368323,Social Community Care,NURSING HOMES                 
PURCHASING ELDERLY            ,9210,CONTINUING NURSING CARE       ,02/07/2012,3289165,J491760 220712           ,1564.00,BROOKVIEW NURSING HOME                  ,368323,Social Community Care,NURSING HOMES                 
PURCHASING LEARNING DISABILITI,9210,CONTINUING NURSING CARE       ,02/07/2012,3289166,J491790 220712           ,6373.12,BUCKWOOD VIEW N H                       ,409173,Social Community Care,NURSING HOMES                 
PURCHASING ELDERLY            ,9210,CONTINUING NURSING CARE       ,02/07/2012,3289166,J491790 220712           ,5459.04,BUCKWOOD VIEW N H                       ,409173,Social Community Care,NURSING HOMES                 
PURCHASING                    ,9200,CONTINUING RESIDENTIAL CARE   ,02/07/2012,3289167,J491796 220712           ,3882.60,CHURCH VIEW RESIDENTIAL N/H             ,424064,Unclassified Non Trade,PLACES OF WORSHIP             
PURCHASING ELDERLY            ,9200,CONTINUING RESIDENTIAL CARE   ,02/07/2012,3289168,J491801 220712           ,1580.00,BRAILSFORD HOUSE RESIDENTIAL HOME       ,430727,Social Community Care,RESIDENTIAL CARE HOMES        
PDSI PURCHASING               ,9200,CONTINUING RESIDENTIAL CARE   ,02/07/2012,3289169,J491821 220712           ,3636.72,CLARO ROAD                              ,463335,Social Community Care,DISABILITY & SPECIAL NEEDS - S
PURCHASING ELDERLY            ,9200,CONTINUING RESIDENTIAL CARE   ,02/07/2012,3289170,J491831 220712           ,1608.00,BELGRAVE COURT RESIDENTIAL CARE HOME    ,487981,Social Community Care,RESIDENTIAL CARE HOMES        
PURCHASING ELDERLY            ,9210,CONTINUING NURSING CARE       ,02/07/2012,3289171,J491832 220712           ,1704.00,THE CRAVEN NURSING HOME                 ,487982,Social Community Care,NURSING HOMES                 
PURCHASING LEARNING DISABILITI,9200,CONTINUING RESIDENTIAL CARE   ,02/07/2012,3289172,J491844 220712           ,2883.04,THE CORNER HOUSE RESIDENTIAL HOME       ,509711,Social Community Care,RESIDENTIAL CARE HOMES        
PURCHASING ELDERLY            ,9200,CONTINUING RESIDENTIAL CARE   ,02/07/2012,3289173,J491852 220712           ,52643.00,IDEAL CARE HOMES                        ,524235,Social Community Care,RESIDENTIAL CARE HOMES        
PURCHASING LEARNING DISABILITI,9200,CONTINUING RESIDENTIAL CARE   ,02/07/2012,3289174,J491863 220712           ,8233.76,ICON CARE LTD T/A CHAMWOOD              ,550309,Social Community Care,RESIDENTIAL CARE HOMES        
PURCHASING ELDERLY            ,9210,CONTINUING NURSING CARE       ,02/07/2012,3289176,J402183 210811           ,4067.14,CLIFF HOUSE NURSING HOME                ,361837,Social Community Care,NURSING HOMES                 
PURCHASING ELDERLY            ,4260,NURSING COSTS RECOVERED       ,02/07/2012,3289177,J402550 180911           ,1543.85,CLIFF HOUSE NURSING HOME                ,361837,Social Community Care,NURSING HOMES                 
PURCHASING ELDERLY            ,9200,CONTINUING RESIDENTIAL CARE   ,02/07/2012,3289178,J476645 270512           ,4844.00,ATHORPE LODGE                           ,361941,Social Community Care,RESIDENTIAL CARE HOMES        
PURCHASING ELDERLY            ,9200,CONTINUING RESIDENTIAL CARE   ,02/07/2012,3289180,J485004 240612           ,4844.00,ATHORPE LODGE                           ,361941,Social Community Care,RESIDENTIAL CARE HOMES        
PURCHASING LEARNING DISABILITI,9200,CONTINUING RESIDENTIAL CARE   ,02/07/2012,3289181,J485022 240612           ,13277.48,CRAGSIDE HOUSE RES. HOME                ,361926,Social Community Care,RESIDENTIAL CARE HOMES        
PURCHASING LEARNING DISABILITI,9200,CONTINUING RESIDENTIAL CARE   ,02/07/2012,3289182,J485116 240612           ,4836.84,CHESTNUT GRANGE                         ,418583,Social Community Care,RESIDENTIAL CARE HOMES        
PURCHASING LEARNING DISABILITI,9200,CONTINUING RESIDENTIAL CARE   ,02/07/2012,3289183,J485137 240612           ,6885.52,BROOK LODGE                             ,475031,Social Community Care,RESIDENTIAL CARE HOMES        
PURCHASING LEARNING DISABILITI,4260,RESIDENTIAL COSTS RECOVERED   ,02/07/2012,3289187,J488579 240612           ,544.95,100 BEIGHTON ROAD                       ,362152,Social Community Care,RESIDENTIAL CARE HOMES        
PURCHASING ELDERLY            ,9200,SHORT TERM RESIDENTIAL CARE   ,02/07/2012,3289189,J491547 240612           ,740.00,CASTELAYN                               ,361796,Social Community Care,RESIDENTIAL CARE HOMES        
COMMUNITY ASSEMBLY CENTRAL    ,9120,OTHER AGENCIES                ,03/07/2012,3290286,ERS INVOICE68720         ,4987.00,NUCA TRADING AS ZEST                    ,503219,Unclassified Non Trade,CHARITIES & VOLUNTARY ORGANISA
VS - BUILDING COHESION        ,8180,GRANTS                        ,03/07/2012,3290287,ERS INVOICE68721         ,2332.00,SHOPMOBILITY SHEFFIELD LTD              ,362429,Unclassified Non Trade,CHARITIES & VOLUNTARY ORGANISA
VS - INFRASTRUCTURE SUPPORT   ,8180,GRANTS                        ,03/07/2012,3290288,ERS INVOICE68722         ,1332.00,SHEFFIELD DIOCESAN BOARD OF FINANCE     ,328478,Unclassified Non Trade,RELIGIOUS ORGANISATIONS       
PARKHILL DEMOLITION SHM (STH) ,1143,COMPENSATION                  ,03/07/2012,3290294,ERS INVOICE68728         ,4669.53,REDACTED PERSONAL DATA,569627,Unclassified Non Trade,OUT OF SCOPE FOR SIC MONITORIN
CLAIMS                        ,8740,HIGHWAYS                      ,03/07/2012,3290303,ERS INVOICE68737         ,566.00,DEPARTMENT FOR WORK & PENSIONS          ,326920,Unclassified Non Trade,CENTRAL GOVERNMENT            
CLAIMS                        ,8740,MOTOR VEHICLE                 ,03/07/2012,3290304,ERS INVOICE68738         ,500.00,REDACTED PERSONAL DATA,569667,Unclassified Non Trade,OUT OF SCOPE FOR SIC MONITORIN
COMMUNITY ASSEMBLY SOUTH EAST ,9120,OTHER AGENCIES                ,03/07/2012,3290336,ERS INVOICE68772         ,4400.00,SHEFFIELD WELL-BEING CONSORTIUM         ,503588,Unclassified Non Trade,CHARITIES & VOLUNTARY ORGANISA
UNIVERSAL YOUTH SERVICE       ,9120,OTHER AGENCIES                ,03/07/2012,3290337,ERS INVOICE68773         ,1444.00,SHINE HEALTH ACADEMY LTD                ,449549,Unclassified Non Trade,CHARITIES & VOLUNTARY ORGANISA
LEAVING CARE                  ,9270,CARELEAVERS ACCOMMODATION     ,03/07/2012,3289956,5088,7800.64,PROGRESSIVE CARE LTD                    ,343548,Social Community Care,CHILDREN'S HOMES              
CLIMATE IMPACT FUND           ,1194,OTHER FEES                    ,03/07/2012,3290339,ERS INVOICE68775         ,4950.00,GROW SHEFFIELD                          ,509289,Unclassified Non Trade,COMMUNITY PROJECTS            
UNIVERSAL YOUTH SERVICE       ,9120,OTHER AGENCIES                ,03/07/2012,3290340,ERS INVOICE68776         ,1862.00,DOUBLE SIX YOUTH CLUB                   ,447317,Unclassified Non Trade,YOUTH ORGANISATIONS & CENTRES 
COMMUNITY ASSEMBLY CENTRAL    ,8180,GRANTS                        ,03/07/2012,3290341,ERS INVOICE68777         ,1000.00,MAGNATIZED                              ,539016,Unclassified Non Trade,CHARITIES & VOLUNTARY ORGANISA
UNIVERSAL YOUTH SERVICE       ,9120,OTHER AGENCIES                ,03/07/2012,3290347,ERS INVOICE68783         ,800.00,WYBOURN COMMUNITY PRIMARY SCHOOL        ,517766,Unclassified Non Trade,NURSERY SCHOOLS               
CORONIAL SERVICES             ,8440,PATHOLOGIST INVOICE           ,03/07/2012,3290356,ERS INVOICE68792         ,862.90,DR MINI C VARGHESE                      ,567541,Medical ,DOCTORS                       
FOSTERING DEVELOPMENT         ,8550,OTHER SERVICES                ,03/07/2012,3290472,ERS INVOICE68799         ,800.00,REDACTED PERSONAL DATA,569526,Social Community Care,ADOPTION & FOSTERING          
COMMUNITY ASSEMBLY SOUTH      ,9120,OTHER AGENCIES                ,03/07/2012,3290473,ERS INVOICE68800         ,5250.00,GLEADLESS VALLEY COMMUNITY FORUM        ,394371,Unclassified Non Trade,CHARITIES & VOLUNTARY ORGANISA
COMMUNITY ASSEMBLY SOUTH      ,9120,OTHER AGENCIES                ,03/07/2012,3290474,ERS INVOICE68801         ,1000.00,HEELEY CITY FARM                        ,301277,Unclassified Non Trade,CHARITIES & VOLUNTARY ORGANISA
COMMUNITY ASSEMBLY SOUTH      ,9120,OTHER AGENCIES                ,03/07/2012,3290475,ERS INVOICE68802         ,753.00,SHINE HEALTH ACADEMY LTD                ,449549,Unclassified Non Trade,CHARITIES & VOLUNTARY ORGANISA
COMMUNITY ASSEMBLY SOUTH      ,9120,OTHER AGENCIES                ,03/07/2012,3290477,ERS INVOICE68804         ,1000.00,WOODSEATS FESTIVAL GROUP                ,487816,Unclassified Non Trade,CHARITIES & VOLUNTARY ORGANISA
VS - TACKLING POVERTY         ,8180,GRANTS                        ,03/07/2012,3290498,ERS INVOICE68825         ,1444.00,YEMENI COMMUNITY ASSOCIATION            ,297388,Unclassified Non Trade,CHARITIES & VOLUNTARY ORGANISA
LEEDS - WY SUB REGION HAL     ,1194,OTHER FEES                    ,03/07/2012,3290507,ERS INVOICE68834         ,6335.10,BPS LTD                                 ,527843,Construction,BUILDERS                      
LEEDS - WY SUB REGION HAL     ,1194,OTHER FEES                    ,03/07/2012,3290508,ERS INVOICE68835         ,625.56,LEEDS CITY COUNCIL                      ,515679,Unclassified Non Trade,LOCAL GOVERNMENT              
COMMUNITY ASSEMBLY SOUTH EAST ,9120,OTHER AGENCIES                ,03/07/2012,3290515,ERS INVOICE68842         ,500.00,REDACTED PERSONAL DATA,569740,Unclassified Non Trade,OUT OF SCOPE FOR SIC MONITORIN
RECRUITMENT ADVERTISING       ,5720,RECRUIT. ADV. - INVOICE       ,03/07/2012,3270796,20719012,2644.86,REED BUSINESS INFORMATION LIMITED       ,350053,Education,PUBLISHERS                    
MAST STRATEGY                 ,8440,FEE EXPENSES                  ,03/07/2012,3277763,213841,10500.00,SHELTER                                 ,361160,Unclassified Non Trade,CHARITIES & VOLUNTARY ORGANISA
CITY CENTRE PROMOTIONAL PLAN  ,8440,FEE EXPENSES                  ,03/07/2012,3277831,41070,1000.00,GARY BIRTLES T/A GROOVY GAZZA PRODUCTION,552740,Leisure Services,MUSICIANS & COMPOSERS         
CITY WIDE CHILD CARE CONTRACT ,8440,FEE EXPENSES                  ,03/07/2012,3283671,161,36473.00,MANOR & CASTLE DEVELOPMENT TRUST        ,314473,Unclassified Non Trade,CHARITIES & VOLUNTARY ORGANISA
YOUTH OFFENDING SERVICE       ,8010,EQUIPMENT PURCHASE AND REPAIR ,03/07/2012,3283749,12665,957.50,SHAPE POSTURE SEATING                   ,401789,Furniture,OFFICE FURNITURE & EQUIPMENT  
BARKERS POOL                  ,6030,REPAIRS AND MTCE - RESPONSIVE ,03/07/2012,3284278,29158,530.77,DAMAR SUPPLIES LTD                      ,471680,Sports & Playground,SWIMMING POOL EQUIPMENT & SUPP
ALLOTMENTS                    ,8060,MATERIALS AND SUPPLIES GENERAL,03/07/2012,3284679,124615,739.47,H HARROLD & SONS LTD                    ,205285,Facilities Management,LOCK SMITHS                   
CITY CENTRE MANAGEMENT & ADMIN,8440,FEE EXPENSES                  ,03/07/2012,3285641,41080,2000.00,THE STREET FOOD CHEF                    ,569199,Catering,CATERING - MOBILE             
VACANT REPAIRS                ,8440,FEE EXPENSES                  ,03/07/2012,3285807,12637,1200.00,RICHMOND ENVIRONMENTAL SERVICES         ,331472,Environmental Services,DRAIN & SEWER CLEARANCE       
BIS CORE SERVICES             ,8270,SUBSCRIPTIONS                 ,03/07/2012,3286052,20070944,17100.00,GARTNER UK LTD                          ,502369,Consultancy,COMPUTER CONSULTANTS          
SECURE PLACEMENTS             ,9270,SECURE PLACEMENTS - REMAND    ,03/07/2012,3286141,700797913,1932.03,DURHAM COUNTY COUNCIL                   ,316046,Unclassified Non Trade,LOCAL GOVERNMENT              
DISADVANTAGED AREA FUNDING    ,9120,OTHER AGENCIES                ,03/07/2012,3286164,48/12                    ,3000.00,DARNALL FORUM LTD                       ,447697,Unclassified Non Trade,COMMUNITY PROJECTS            
CITY WIDE CHILD CARE CONTRACT ,8440,FEE EXPENSES                  ,03/07/2012,3286761,9,47592.00,TINSLEY PARENTS & CHILDRENS CONSORTIUM  ,478244,Social Community Care,NURSERIES & CRECHES           
STATUTORY ADVERTISING         ,8420,ADVERTISING AND PUBL-INVOICED ,03/07/2012,3287131,9002477,514.24,SHEFFIELD NEWSPAPERS LTD                ,208391,Education,NEWSPAPER & MAGAZINE PUBLISHER
PUBLIC REALM OH AND SUPPORT   ,6370,GROUNDS MTCE AND ARBORICULTURE,03/07/2012,3287159,7940610,1245.20,CARLTON FUELS LTD                       ,476852,Utilities,OIL FUEL DISTRIBUTORS         
ASSET MANAGEMENT              ,8440,FEE EXPENSES                  ,03/07/2012,3287408,INV115397                ,916.70,NATIONAL ENERGY SERVICES LIMITED        ,298519,Consultancy,ENERGY CONSERVATION CONSULTANT
DH - UTILITIES                ,1161,NC&A MAIN CONTRACT            ,03/07/2012,3287476,9907,1794.00,SOUTH YORKSHIRE FIRE & RESCUE AUTHORITY ,301094,Unclassified Non Trade,FIRE STATIONS                 
CONTACT CONTRACTS             ,9280,CONTACT                       ,03/07/2012,3287508,425,1667.64,SHEFFIELD CHILDREN'S CENTRE             ,311908,Social Community Care,NURSERIES & CRECHES           
OTHER REPAIRS & FEES          ,6030,OTHER RESPONSIVE REPAIRS      ,03/07/2012,3287511,10686480,2100.00,RENTOKIL INITIAL UK LTD                 ,437082,Cleaning and Janitorial,CLEANING SERVICES - COMMERCIAL
CENTRAL SUPPORT COSTS         ,8270,SUBSCRIPTIONS                 ,03/07/2012,3287593,451781,7879.71,THE COPYRIGHT LICENSING AGENCY LIMITED  ,322414,Legal Services,COPYRIGHT AGENTS              
COM.UNITY                     ,9120,OTHER AGENCIES                ,03/07/2012,3287624,6565,3750.00,SHEFFIELD FUTURES                       ,322702,Medical ,COUNSELLING & ADVICE SERVICES 
LA MUSIC SERVICES             ,8010,EQUIPMENT PURCHASE AND REPAIR ,03/07/2012,3287625,M505583                  ,1039.11,GEAR 4 MUSIC                            ,434258,Education,MUSICAL INSTRUMENTS & SHEET MU
MILLENNIUM SQUARE             ,8060,MATERIALS AND SUPPLIES GENERAL,03/07/2012,3287701,14792,602.13,TOTAL POOL CHEMICALS LTD                ,552673,Unclassified Trade,CHEMICALS - DISTRIBUTORS & WHO
CORONIAL SERVICES             ,8440,HISTOLOGY FEES                ,03/07/2012,3287704,2100143733,6416.99,SHEFFIELD CHILDRENS HOSPITAL            ,489904,Unclassified Non Trade,HOSPITALS                     
CORONIAL SERVICES             ,8100,RECHARGEABLE PURCHASES        ,03/07/2012,3287706,6017647,7760.64,BARNSLEY HOSPITAL NHS FT                ,308864,Unclassified Non Trade,HOSPITALS                     
HOMELESS INTERIM ACCOMM       ,7060,EXTERNAL VEHICLE HIRE         ,03/07/2012,3288691,545790,699.00,MERCURY CARS                            ,326445,Transport,TAXIS & PRIVATE HIRE          
14-19 DIPLOMA DELIVERY        ,9120,OTHER AGENCIES                ,03/07/2012,3288794,72,3150.00,WHIRLOW HALL FARM TRUST LTD             ,318019,Unclassified Non Trade,CHARITIES & VOLUNTARY ORGANISA
YOUTH OFFENDING SERVICE       ,9120,OTHER AGENCIES                ,03/07/2012,3288803,27,35162.50,REMEDI                                  ,329612,Unclassified Non Trade,CHARITIES & VOLUNTARY ORGANISA
SHARROW ALMO WORKS            ,1165,NC&A OTHER                    ,03/07/2012,3288822,11120096,1011.94,KIER SHEFFIELD LLP                      ,352687,Construction,PROPERTY MAINTENANCE & REPAIRS
SHARROW ALMO WORKS            ,1165,NC&A OTHER                    ,03/07/2012,3288826,11120095,9455.30,KIER SHEFFIELD LLP                      ,352687,Construction,PROPERTY MAINTENANCE & REPAIRS
SECURITY SERVICES             ,8540,SECURITY SERVICES             ,03/07/2012,3289288,3255116,988.76,CHUBB ELECTRONIC SECURITY LIMITED       ,205751,Facilities Management,SECURITY SERVICES             
CCTV                          ,6020,REPAIRS AND MTCE - PROGRAMMED ,03/07/2012,3289305,176233,650.00,CSL DUALCOM                             ,550429,Facilities Management,SECURITY EQUIPMENT INSTALLERS 
CONTACT CONTRACTS             ,9280,CONTACT                       ,03/07/2012,3289314,5140,6409.95,PROGRESSIVE CARE LTD                    ,343548,Social Community Care,CHILDREN'S HOMES              
CITY WIDE CONTRACTS           ,8440,FEE EXPENSES                  ,03/07/2012,3289317,12/132                   ,71025.00,COMMUNITY LEGAL ADVICE SERVICE          ,472004,Legal Services,LEGAL SERVICES                
STANIFORTH ROAD WORKSHOPS     ,8110,"CLOTHING, UNIFORM AND LAUNDRY ",03/07/2012,3289325,16479,675.00,EASTWICK ENGINEERING SERVICES           ,204579,Vehicles Not Buses,GARAGE EQUIPMENT              
CONTACT CONTRACTS             ,9280,CONTACT                       ,03/07/2012,3289331,10276/17                 ,8517.33,SSA SOCIAL WORK LTD                     ,329517,Human Resources,NURSING AGENCIES              
GBORO DPT/FINAL AC LOVE/KMOAT ,1157,DWELLINGS MAIN CONTRACT       ,03/07/2012,3289440,8705,800.00,MICHAEL DYSON ASSOCIATES LTD            ,567736,Consultancy,INDUSTRIAL CONSULTANTS        
SEN ASSESSMENT & PLACEMENT TEA,8440,FEE EXPENSES                  ,03/07/2012,3289508,2100144174,1450.72,SHEFFIELD CHILDRENS NHS FOUNDATION TRUST,449452,Unclassified Non Trade,HOSPITALS                     
CITY WIDE CONTRACTS           ,8440,FEE EXPENSES                  ,03/07/2012,3289509,2100144183,24990.00,NHS PROVIDER SERVICES                   ,455606,Unclassified Non Trade,HEALTH AUTHORITIES            
CONTACT CONTRACTS             ,9280,CONTACT                       ,03/07/2012,3289513,5142,6770.95,PROGRESSIVE CARE LTD                    ,343548,Social Community Care,CHILDREN'S HOMES              
PURCHASING LEARNING DISABILITI,9240,SUPPORTED LIVING CARE         ,03/07/2012,3289624,1482,2548.35,RIVENDELL LAKE HOUSING ASSOCIATION      ,428335,Unclassified Non Trade,"HOUSING ASSOCIATIONS, SOCIETIE"
PURCHASING LEARNING DISABILITI,9240,SUPPORTED LIVING CARE         ,03/07/2012,3289627,1480,2548.35,RIVENDELL LAKE HOUSING ASSOCIATION      ,428335,Unclassified Non Trade,"HOUSING ASSOCIATIONS, SOCIETIE"
SEN ASSESSMENT & PLACEMENT TEA,8440,FEE EXPENSES                  ,03/07/2012,3289655,2100144171,1934.29,SHEFFIELD CHILDRENS NHS FOUNDATION TRUST,449452,Unclassified Non Trade,HOSPITALS                     
CREMATORIA                    ,8010,EQUIPMENT PURCHASE AND REPAIR ,03/07/2012,3289660,51255,864.00,FIBROUS LIMITED                         ,204853,Furniture,DISPLAY FIXTURES & MATERIALS  
OTHER LOCAL AUTHORITY PLACEMEN,9120,OTHER AGENCIES                ,03/07/2012,3289847,SUN12                    ,2135.00,SUNFLOWER CHILDRENS CENTRE              ,315381,Social Community Care,NURSERIES & CRECHES           
CUSTOMER FIRST PROGRAMME      ,8550,OTHER SERVICES                ,03/07/2012,3289848,1010000000000,2375.00,"STHREE STAFFING UK LTD, TA REAL STAFFING",533574,Human Resources,EMPLOYMENT & RECRUITMENT AGENC
CUSTOMER FIRST PROGRAMME      ,8550,OTHER SERVICES                ,03/07/2012,3289849,1010000000000,2375.00,"STHREE STAFFING UK LTD, TA REAL STAFFING",533574,Human Resources,EMPLOYMENT & RECRUITMENT AGENC
CITY WIDE CONTRACTS           ,8440,FEE EXPENSES                  ,03/07/2012,3289983,162,90247.00,MANOR & CASTLE DEVELOPMENT TRUST        ,314473,Unclassified Non Trade,CHARITIES & VOLUNTARY ORGANISA
ALDINE HOUSE                  ,5610,AGENCY STAFF                  ,03/07/2012,3289985,750556,978.50,TEACHING PERSONNEL                      ,410695,Human Resources,EMPLOYMENT & RECRUITMENT AGENC
CITY WIDE CONTRACTS           ,8440,FEE EXPENSES                  ,03/07/2012,3289991,163,90247.00,MANOR & CASTLE DEVELOPMENT TRUST        ,314473,Unclassified Non Trade,CHARITIES & VOLUNTARY ORGANISA
INDEPENDENT RES BLOCK PLACEMEN,9270,INDEPENDENT RESIDENTIAL PMENT ,03/07/2012,3289958,718,10579.72,REDACTED PERSONAL DATA,405951,Social Community Care,CHILDCARE SERVICES            
PURCHASING LEARNING DISABILITI,8350,MISCELLANEOUS EXPENSES        ,03/07/2012,3290008,SCC004668                ,563.50,ALARA BED & BREAKFAST                   ,305061,Facilities Management,GUEST HOUSES                  
HOMELESS INTERIM ACCOMM       ,7060,EXTERNAL VEHICLE HIRE         ,03/07/2012,3290020,545407,839.20,MERCURY CARS                            ,326445,Transport,TAXIS & PRIVATE HIRE          
SHEFFIELD HOMES MANAGEMENT COS,8350,MISCELLANEOUS EXPENSES        ,03/07/2012,3290256,603,5549.48,SHEFFIELD HOMES LTD                     ,503889,Unclassified Non Trade,"HOUSING ASSOCIATIONS, SOCIETIE"
SHEFFIELD HOMES MANAGEMENT COS,8350,MISCELLANEOUS EXPENSES        ,03/07/2012,3290258,604,2888.97,SHEFFIELD HOMES LTD                     ,503889,Unclassified Non Trade,"HOUSING ASSOCIATIONS, SOCIETIE"
CRYSTAL PEAKS MARKET          ,6150,ELECTRICITY                   ,03/07/2012,3290026,27140726,4469.21,NPOWER NORTHERN LTD                     ,207191,Utilities,ELECTRICITY COMPANIES         
CRYSTAL PEAKS MARKET          ,6150,ELECTRICITY                   ,03/07/2012,3290028,27140726,5222.38,NPOWER NORTHERN LTD                     ,207191,Utilities,ELECTRICITY COMPANIES         
CASTLE MARKETS                ,6150,ELECTRICITY                   ,03/07/2012,3290037,27140749,4998.34,NPOWER NORTHERN LTD                     ,207191,Utilities,ELECTRICITY COMPANIES         
OLIVE GROVE WORKSHOPS         ,7010,ROUTINE VEHICLE REPAIR & MTCE ,03/07/2012,3290039,10860,904.50,COMMERCIAL MOWER SERVICES               ,449354,Horticultural,LAWNMOWERS & GARDEN MACHINERY 
CASTLE MARKETS                ,6150,ELECTRICITY                   ,03/07/2012,3290041,27140749,5176.70,NPOWER NORTHERN LTD                     ,207191,Utilities,ELECTRICITY COMPANIES         
ALDINE HOUSE                  ,6150,ELECTRICITY                   ,03/07/2012,3290071,27140147,4522.99,NPOWER NORTHERN LTD                     ,207191,Utilities,ELECTRICITY COMPANIES         
SHEAF TRAINING                ,6150,ELECTRICITY                   ,03/07/2012,3290076,27140550,1249.05,NPOWER NORTHERN LTD                     ,207191,Utilities,ELECTRICITY COMPANIES         
INDEPENDENT FOSTERING PLACEMEN,9270,INDEPENDENT FOSTERING         ,03/07/2012,3289948,NFA60907                 ,1337.16,REDACTED PERSONAL DATA,432914,Social Community Care,ADOPTION & FOSTERING          
INDEPENDENT FOSTERING PLACEMEN,9270,INDEPENDENT FOSTERING         ,03/07/2012,3289949,114518,830.00,REDACTED PERSONAL DATA,349291,Social Community Care,ADOPTION & FOSTERING          
INDEPENDENT FOSTERING PLACEMEN,9270,INDEPENDENT FOSTERING         ,03/07/2012,3289950,114519,874.00,REDACTED PERSONAL DATA,349291,Social Community Care,ADOPTION & FOSTERING          
LEAVING CARE                  ,9270,CARELEAVERS ACCOMMODATION     ,03/07/2012,3289952,37063,633.85,GUINNESS NORTHERN COUNTIES HOUSING      ,504343,Unclassified Non Trade,"HOUSING ASSOCIATIONS, SOCIETIE"
LEAVING CARE                  ,9270,CARELEAVERS ACCOMMODATION     ,03/07/2012,3289954,5077,3200.00,PROGRESSIVE CARE LTD                    ,343548,Social Community Care,CHILDREN'S HOMES              
LEAVING CARE                  ,9270,CARELEAVERS ACCOMMODATION     ,03/07/2012,3289955,5078,3200.00,PROGRESSIVE CARE LTD                    ,343548,Social Community Care,CHILDREN'S HOMES              
LEAVING CARE                  ,9270,CARELEAVERS ACCOMMODATION     ,03/07/2012,3289959,8342,3047.31,HUTTON CARE PARTNERSHIP LTD             ,422809,Social Community Care,SHELTERED HOUSING             
CWD INDEPENDENT PLACEMENTS    ,9270,INDEPENDENT RESIDENTIAL PMENT ,03/07/2012,3289965,686,537.50,REDACTED PERSONAL DATA,405951,Social Community Care,CHILDCARE SERVICES            
LEAVING CARE                  ,9270,CARELEAVERS ACCOMMODATION     ,03/07/2012,3289969,325A                     ,696.67,ROUNDABOUT LTD                          ,316572,Facilities Management,HOSTELS                       
VS- LUNCH CLUB GRANT          ,8180,GRANTS                        ,03/07/2012,3290090,MPA20120703138 1         ,768.50,BANNER CROSS LUNCHEON & FRIENDSHIP CLUB ,326250,Unclassified Non Trade,PLACES OF WORSHIP             
VS- LUNCH CLUB GRANT          ,8180,GRANTS                        ,03/07/2012,3290093,MPA20120703138 12        ,1054.75,DARNALL LUNCH CLUB                      ,295216,Unclassified Non Trade,CHARITIES & VOLUNTARY ORGANISA
VS- LUNCH CLUB GRANT          ,8180,GRANTS                        ,03/07/2012,3290095,MPA20120703138 14        ,597.25,GLEADLESS VALLEY LUNCHEON CLUB          ,295224,Unclassified Non Trade,CHARITIES & VOLUNTARY ORGANISA
VS- LUNCH CLUB GRANT          ,8180,GRANTS                        ,03/07/2012,3290096,MPA20120703138 15        ,652.75,DUKE STREET COMMUNITY CENTRE            ,375030,Unclassified Non Trade,COMMUNITY CENTRES             
VS- LUNCH CLUB GRANT          ,8180,GRANTS                        ,03/07/2012,3290097,MPA20120703138 16        ,1559.75,ST OSWALDS LUNCHEON CLUB                ,385325,Unclassified Non Trade,CHARITIES & VOLUNTARY ORGANISA
VS- LUNCH CLUB GRANT          ,8180,GRANTS                        ,03/07/2012,3290099,MPA20120703138 18        ,733.00,BIRLEY SPA MONDAY CLUB                  ,295206,Unclassified Non Trade,CHARITIES & VOLUNTARY ORGANISA
VS- LUNCH CLUB GRANT          ,8180,GRANTS                        ,03/07/2012,3290100,MPA20120703138 19        ,868.75,BIRLEY SPA WEDNESDAY CLUB               ,295210,Unclassified Non Trade,CHARITIES & VOLUNTARY ORGANISA
VS- LUNCH CLUB GRANT          ,8180,GRANTS                        ,03/07/2012,3290101,MPA20120703138 2         ,637.00,CHRIST CHURCH PITSMOOR LUNCH CLUB       ,321910,Unclassified Non Trade,CHARITIES & VOLUNTARY ORGANISA
VS- LUNCH CLUB GRANT          ,8180,GRANTS                        ,03/07/2012,3290103,MPA20120703138 21        ,684.00,ST SWITHUNS LUNCH CLUB                  ,295166,Unclassified Non Trade,CHARITIES & VOLUNTARY ORGANISA
VS- LUNCH CLUB GRANT          ,8180,GRANTS                        ,03/07/2012,3290105,MPA20120703138 23        ,509.50,GRAPEVINE CENTRE LUNCHEON CLUB          ,295190,Unclassified Non Trade,CHARITIES & VOLUNTARY ORGANISA
VS- LUNCH CLUB GRANT          ,8180,GRANTS                        ,03/07/2012,3290106,MPA20120703138 24        ,1575.25,PITSMOOR LUNCH CLUB                     ,295194,Unclassified Non Trade,CHARITIES & VOLUNTARY ORGANISA
VS- LUNCH CLUB GRANT          ,8180,GRANTS                        ,03/07/2012,3290107,MPA20120703138 25        ,1064.75,THE SALVATION ARMY SHEFFIELD CASTLE     ,327783,Unclassified Non Trade,"HOUSING ASSOCIATIONS, SOCIETIE"
VS- LUNCH CLUB GRANT          ,8180,GRANTS                        ,03/07/2012,3290109,MPA20120703138 27        ,528.50,WADSLEY CHURCH LUNCH CLUB               ,295167,Unclassified Non Trade,CHARITIES & VOLUNTARY ORGANISA
VS- LUNCH CLUB GRANT          ,8180,GRANTS                        ,03/07/2012,3290110,MPA20120703138 28        ,611.75,LOUND TOP LUNCH CLUB                    ,295188,Unclassified Non Trade,CHARITIES & VOLUNTARY ORGANISA
VS- LUNCH CLUB GRANT          ,8180,GRANTS                        ,03/07/2012,3290112,MPA20120703138 3         ,1016.50,CROSSPOOL LUNCH CLUB                    ,321911,Unclassified Non Trade,CHARITIES & VOLUNTARY ORGANISA
VS- LUNCH CLUB GRANT          ,8180,GRANTS                        ,03/07/2012,3290113,MPA20120703138 30        ,897.50,SHIREGREEN UNITED REFORMED CHURCH       ,295203,Unclassified Non Trade,PLACES OF WORSHIP             
VS- LUNCH CLUB GRANT          ,8180,GRANTS                        ,03/07/2012,3290114,MPA20120703138 31        ,517.75,ST TIMOTHY'S LUNCH CLUB                 ,295163,Unclassified Non Trade,CHARITIES & VOLUNTARY ORGANISA
VS- LUNCH CLUB GRANT          ,8180,GRANTS                        ,03/07/2012,3290115,MPA20120703138 32        ,608.00,MEERSBROOK PARK LUNCH CLUB              ,363027,Unclassified Non Trade,CHARITIES & VOLUNTARY ORGANISA
VS- LUNCH CLUB GRANT          ,8180,GRANTS                        ,03/07/2012,3290116,MPA20120703138 33        ,878.25,ST BARTHOLOMEWS LUNCH CLUB              ,384447,Unclassified Non Trade,CHARITIES & VOLUNTARY ORGANISA
VS- LUNCH CLUB GRANT          ,8180,GRANTS                        ,03/07/2012,3290118,MPA20120703138 35        ,782.25,ST LEONARD'S LUNCH CLUB                 ,296991,Unclassified Non Trade,CHARITIES & VOLUNTARY ORGANISA
VS- LUNCH CLUB GRANT          ,8180,GRANTS                        ,03/07/2012,3290119,MPA20120703138 36        ,1142.25,ST MARY'S LUNCH CLUB                    ,322012,Unclassified Non Trade,CHARITIES & VOLUNTARY ORGANISA
VS- LUNCH CLUB GRANT          ,8180,GRANTS                        ,03/07/2012,3290120,MPA20120703138 37        ,708.75,TINSLEY COMMUNITY CENTRE LUNCH CLUB     ,297105,Unclassified Non Trade,CHARITIES & VOLUNTARY ORGANISA
VS- LUNCH CLUB GRANT          ,8180,GRANTS                        ,03/07/2012,3290122,MPA20120703138 39        ,1330.25,ST MARY'S HANDSWORTH LUNCH CLUB         ,300780,Unclassified Non Trade,CHARITIES & VOLUNTARY ORGANISA
VS- LUNCH CLUB GRANT          ,8180,GRANTS                        ,03/07/2012,3290124,MPA20120703138 40        ,572.75,WILLIAM TEMPLE LUNCH CLUB               ,299806,Unclassified Non Trade,CHARITIES & VOLUNTARY ORGANISA
VS- LUNCH CLUB GRANT          ,8180,GRANTS                        ,03/07/2012,3290126,MPA20120703138 42        ,687.25,FOXHILL LUNCH CLUB                      ,349900,Unclassified Non Trade,CHARITIES & VOLUNTARY ORGANISA
VS- LUNCH CLUB GRANT          ,8180,GRANTS                        ,03/07/2012,3290127,MPA20120703138 43        ,630.50,LOWER SHIREGREEN LUNCH CLUB             ,299896,Unclassified Non Trade,CHARITIES & VOLUNTARY ORGANISA
VS- LUNCH CLUB GRANT          ,8180,GRANTS                        ,03/07/2012,3290130,MPA20120703138 46        ,1068.25,DIOCESE OF HALLAM                       ,351301,Unclassified Non Trade,RELIGIOUS ORGANISATIONS       
VS- LUNCH CLUB GRANT          ,8180,GRANTS                        ,03/07/2012,3290135,MPA20120703138 50        ,1233.25,FRECHEVILLE PARISH DAY CENTRE           ,348612,Unclassified Non Trade,LOCAL GOVERNMENT              
VS- LUNCH CLUB GRANT          ,8180,GRANTS                        ,03/07/2012,3290140,MPA20120703138 55        ,608.25,WESLEY HALL LUNCH CLUB                  ,511866,Unclassified Non Trade,CHARITIES & VOLUNTARY ORGANISA
VS- LUNCH CLUB GRANT          ,8180,GRANTS                        ,03/07/2012,3290141,MPA20120703138 56        ,946.75,MOSBOROUGH LUNCH & SOCIAL CLUB          ,510333,Leisure Services,"CLUBS & ASSOCIATIONS - SOCIAL,"
VS- LUNCH CLUB GRANT          ,8180,GRANTS                        ,03/07/2012,3290142,MPA20120703138 57        ,525.25,VALLEY LUNCH CLUB                       ,514281,Unclassified Non Trade,CHARITIES & VOLUNTARY ORGANISA
VS- LUNCH CLUB GRANT          ,8180,GRANTS                        ,03/07/2012,3290143,MPA20120703138 58        ,769.50,THE THURSDAY CLUB                       ,451641,Unclassified Non Trade,CHARITIES & VOLUNTARY ORGANISA
VS- LUNCH CLUB GRANT          ,8180,GRANTS                        ,03/07/2012,3290146,MPA20120703138 60        ,734.50,OUGHTIBRIDGE & DISTRICT LUNCH CLUB      ,325339,Unclassified Non Trade,CHARITIES & VOLUNTARY ORGANISA
VS- LUNCH CLUB GRANT          ,8180,GRANTS                        ,03/07/2012,3290147,MPA20120703138 61        ,637.50,ST JOHN'S ABBEYDALE LUNCH CLUB          ,385324,Unclassified Non Trade,CHARITIES & VOLUNTARY ORGANISA
VS- LUNCH CLUB GRANT          ,8180,GRANTS                        ,03/07/2012,3290149,MPA20120703138 8         ,1025.25,WOODSEATS METHODIST LUNCH CLUB          ,325667,Unclassified Non Trade,CHARITIES & VOLUNTARY ORGANISA
VS- LUNCH CLUB GRANT          ,8180,GRANTS                        ,03/07/2012,3290150,MPA20120703138 9         ,872.00,GREYSTONES LUNCH CLUB                   ,295226,Unclassified Non Trade,CHARITIES & VOLUNTARY ORGANISA
STREET FORCE BALANCE SHEET    ,776,4332101 INVOICES PAID         ,04/07/2012,3290522,20004862,723.30,HARSCO METALS GROUP LTD                 ,493119,Vehicles Not Buses,PLANT & MACHINERY HIRE & LEASI
STREET FORCE BALANCE SHEET    ,776,4332101 INVOICES PAID         ,04/07/2012,3290524,20004864,2396.19,HARSCO METALS GROUP LTD                 ,493119,Vehicles Not Buses,PLANT & MACHINERY HIRE & LEASI
STREET FORCE BALANCE SHEET    ,776,4332101 INVOICES PAID         ,04/07/2012,3290525,20004981,744.77,HARSCO METALS GROUP LTD                 ,493119,Vehicles Not Buses,PLANT & MACHINERY HIRE & LEASI
STREET FORCE BALANCE SHEET    ,776,4332101 INVOICES PAID         ,04/07/2012,3290527,20004984,724.48,HARSCO METALS GROUP LTD                 ,493119,Vehicles Not Buses,PLANT & MACHINERY HIRE & LEASI
STREET FORCE BALANCE SHEET    ,776,4332101 INVOICES PAID         ,04/07/2012,3290528,20004985,1078.70,HARSCO METALS GROUP LTD                 ,493119,Vehicles Not Buses,PLANT & MACHINERY HIRE & LEASI
STREET FORCE BALANCE SHEET    ,776,4332101 INVOICES PAID         ,04/07/2012,3290529,20004986,704.40,HARSCO METALS GROUP LTD                 ,493119,Vehicles Not Buses,PLANT & MACHINERY HIRE & LEASI
STREET FORCE BALANCE SHEET    ,776,4332101 INVOICES PAID         ,04/07/2012,3290530,20004987,665.33,HARSCO METALS GROUP LTD                 ,493119,Vehicles Not Buses,PLANT & MACHINERY HIRE & LEASI
STREET FORCE BALANCE SHEET    ,776,4332101 INVOICES PAID         ,04/07/2012,3290531,20004988,1526.41,HARSCO METALS GROUP LTD                 ,493119,Vehicles Not Buses,PLANT & MACHINERY HIRE & LEASI
STREET FORCE BALANCE SHEET    ,776,4332101 INVOICES PAID         ,04/07/2012,3290532,18496,550.00,HITACHI CAPITAL INVOICE FINANCE         ,430983,Financial Services,FACTORING SERVICES            
STREET FORCE BALANCE SHEET    ,776,4332101 INVOICES PAID         ,04/07/2012,3290533,20004989,958.16,HARSCO METALS GROUP LTD                 ,493119,Vehicles Not Buses,PLANT & MACHINERY HIRE & LEASI
STREET FORCE BALANCE SHEET    ,776,4332101 INVOICES PAID         ,04/07/2012,3290534,20004990,2393.82,HARSCO METALS GROUP LTD                 ,493119,Vehicles Not Buses,PLANT & MACHINERY HIRE & LEASI
STREET FORCE BALANCE SHEET    ,776,4332101 INVOICES PAID         ,04/07/2012,3290535,20004991,1155.92,HARSCO METALS GROUP LTD                 ,493119,Vehicles Not Buses,PLANT & MACHINERY HIRE & LEASI
STREET FORCE BALANCE SHEET    ,776,4332101 INVOICES PAID         ,04/07/2012,3290536,20004992,1503.37,HARSCO METALS GROUP LTD                 ,493119,Vehicles Not Buses,PLANT & MACHINERY HIRE & LEASI
STREET FORCE BALANCE SHEET    ,776,4332101 INVOICES PAID         ,04/07/2012,3290537,20004993,936.92,HARSCO METALS GROUP LTD                 ,493119,Vehicles Not Buses,PLANT & MACHINERY HIRE & LEASI
STREET FORCE BALANCE SHEET    ,776,4332101 INVOICES PAID         ,04/07/2012,3290538,2012/018                 ,769.50,AMP CONSTRUCTION LTD                    ,455715,Construction,STEEL FABRICATORS & ERECTORS  
STREET FORCE BALANCE SHEET    ,776,4332101 INVOICES PAID         ,04/07/2012,3290540,3013460345,906.78,BOC LIMITED                             ,493076,Utilities,GAS SUPPLIERS                 
STREET FORCE BALANCE SHEET    ,776,4332101 INVOICES PAID         ,04/07/2012,3290547,429451,591.90,SCATTERGOOD & JOHNSON LTD.              ,208237,Building Construction Materials,ELECTRICAL WHOLESALERS        
STREET FORCE BALANCE SHEET    ,776,4332101 INVOICES PAID         ,04/07/2012,3290553,9028340130,959.15,TARMAC LTD                              ,463393,Building Construction Materials,BUILDING BLOCK MNFRS & DISTRIB
STREET FORCE BALANCE SHEET    ,776,4332101 INVOICES PAID         ,04/07/2012,3290555,93288/M                  ,513.72,WYBONE LTD                              ,209618,Building Construction Materials,"GLASS FIBRE MOULDING, MATERIAL"
STREET FORCE BALANCE SHEET    ,776,4332101 INVOICES PAID         ,04/07/2012,3290560,16721,625.00,CARRYLIAM & CO                          ,203751,Environmental Services,SKIP HIRE & RUBBISH CLEARANCE 
STREET FORCE BALANCE SHEET    ,776,4332101 INVOICES PAID         ,04/07/2012,3290804,00892RETENTION           ,1419.67,SPECIALIST UK RESTORATIONS LTD          ,515918,Construction,BUILDING REFURBISHMENT & RESTO
STREET FORCE BALANCE SHEET    ,776,4332101 INVOICES PAID         ,04/07/2012,3290805,3326,560.00,SHEFFIELD RECLAMATION LIMITED           ,432125,Environmental Services,RECYCLING SERVICES            
STREET FORCE BALANCE SHEET    ,776,4332101 INVOICES PAID         ,04/07/2012,3290806,10961,24792.04,BLAKEDOWN LANDSCAPES (OPERATIONS) LTD   ,203384,Construction,LANDSCAPE CONTRACTORS         
CARE PROCEEDINGS (LEGAL FEES) ,8470,LEGAL FEES                    ,04/07/2012,3291055,ERS INVOICE68845         ,1984.20,CARTER BROWN ASSOCIATES LTD             ,417243,Medical ,PSYCHOLOGISTS                 
CARE PROCEEDINGS (LEGAL FEES) ,8470,LEGAL FEES                    ,04/07/2012,3291057,ERS INVOICE68847         ,1169.20,CARTER BROWN ASSOCIATES LTD             ,417243,Medical ,PSYCHOLOGISTS                 
CARE PROCEEDINGS (LEGAL FEES) ,8470,LEGAL FEES                    ,04/07/2012,3291058,ERS INVOICE68848         ,1521.82,CARTER BROWN ASSOCIATES LTD             ,417243,Medical ,PSYCHOLOGISTS                 
CARE PROCEEDINGS (LEGAL FEES) ,8470,LEGAL FEES                    ,04/07/2012,3291059,ERS INVOICE68849         ,1071.00,CARTER BROWN ASSOCIATES LTD             ,417243,Medical ,PSYCHOLOGISTS                 
CARE PROCEEDINGS (LEGAL FEES) ,8470,LEGAL FEES                    ,04/07/2012,3291060,ERS INVOICE68850         ,1226.80,CARTER BROWN ASSOCIATES LTD             ,417243,Medical ,PSYCHOLOGISTS                 
CARE PROCEEDINGS (LEGAL FEES) ,8470,LEGAL FEES                    ,04/07/2012,3291061,ERS INVOICE68851         ,1612.54,CARTER BROWN ASSOCIATES LTD             ,417243,Medical ,PSYCHOLOGISTS                 
CLAIMS                        ,8740,HIGHWAYS                      ,04/07/2012,3291062,ERS INVOICE68852         ,11552.73,GILL AKASTER LLP                        ,569653,Legal Services,SOLICITORS                    
STRENGTHENING PUBLIC HEALTH   ,8180,GRANTS                        ,04/07/2012,3291063,ERS INVOICE68853         ,3750.00,BIRLEY HEALTH CENTRE                    ,409984,Medical ,DOCTORS                       
VSP DELIVER                   ,9120,OTHER AGENCIES                ,04/07/2012,3291064,ERS INVOICE68854         ,11239.50,DIMENSIONS TRAINING SOLUTIONS           ,433070,Education,HAIRDRESSING SCHOOLS          
VSP DELIVER                   ,9120,OTHER AGENCIES                ,04/07/2012,3291065,ERS INVOICE68855         ,10382.25,DONCASTER ROTH & DIST (MOTOR TRADES)GTA ,204434,Human Resources,TRAINING CENTRES              
VSP DELIVER                   ,9120,OTHER AGENCIES                ,04/07/2012,3291067,ERS INVOICE68857         ,2509.95,SHEFFIELD COLLEGE                       ,394141,Unclassified Non Trade,SCHOOLS & COLLEGES - FURTHER E
VSP DELIVER                   ,9120,OTHER AGENCIES                ,04/07/2012,3291068,ERS INVOICE68858         ,9108.00,WHITE ROSE SCHOOLS LTD                  ,334662,Education,BEAUTY SCHOOLS                
VSP DELIVER                   ,9120,OTHER AGENCIES                ,04/07/2012,3291069,ERS INVOICE68859         ,5000.00,THE SOURCE AT MEADOWHALL                ,350485,Human Resources,TRAINING CENTRES              
VSP DELIVER                   ,9140,PRIVATE CONTRACTORS           ,04/07/2012,3291072,ERS INVOICE68862         ,1905.00,A4E                                     ,547567,Human Resources,TRAINING SERVICES             
VSP DELIVER                   ,9140,PRIVATE CONTRACTORS           ,04/07/2012,3291075,ERS INVOICE68864         ,762.00,CONSTRUCTION LEARNING WORLD             ,548077,Education,EDUCATIONAL TRAINING PROVIDERS
VSP DELIVER                   ,9140,PRIVATE CONTRACTORS           ,04/07/2012,3291076,ERS INVOICE68865         ,2111.38,SHEFFIELD INDUSTRIAL MUSEUMS TRUST LTD  ,307272,Leisure Services,MUSEUMS                       
VSP DELIVER                   ,9140,PRIVATE CONTRACTORS           ,04/07/2012,3291077,ERS INVOICE68866         ,1174.75,ENDEAVOUR TRAINING                      ,347945,Human Resources,TRAINING SERVICES             
VSP DELIVER                   ,9140,PRIVATE CONTRACTORS           ,04/07/2012,3291078,ERS INVOICE68867         ,5453.13,SOUTH YORKSHIRE & HALLAMSHIRE CYP       ,431967,Unclassified Non Trade,YOUTH ORGANISATIONS & CENTRES 
VSP DELIVER                   ,9140,PRIVATE CONTRACTORS           ,04/07/2012,3291079,ERS INVOICE68868         ,2571.75,THE SHEFFIELD COLLEGE                   ,297611,Unclassified Non Trade,SCHOOLS & COLLEGES - FURTHER E
VSP DELIVER                   ,9140,PRIVATE CONTRACTORS           ,04/07/2012,3291080,ERS INVOICE68869         ,5619.75,HEELEY CITY FARM                        ,301277,Unclassified Non Trade,CHARITIES & VOLUNTARY ORGANISA
VSP DELIVER                   ,9140,PRIVATE CONTRACTORS           ,04/07/2012,3291081,ERS INVOICE68870         ,5812.50,KELVIN MEDIA PRODUCTIONS                ,475794,Human Resources,TRAINING CENTRES              
VSP DELIVER                   ,9140,PRIVATE CONTRACTORS           ,04/07/2012,3291082,ERS INVOICE68871         ,698.50,NACRO                                   ,297575,Unclassified Non Trade,CHARITIES & VOLUNTARY ORGANISA
VSP DELIVER                   ,9140,PRIVATE CONTRACTORS           ,04/07/2012,3291083,ERS INVOICE68872         ,539.75,NACRO                                   ,297575,Unclassified Non Trade,CHARITIES & VOLUNTARY ORGANISA
VSP DELIVER                   ,9140,PRIVATE CONTRACTORS           ,04/07/2012,3291084,ERS INVOICE68873         ,3619.50,HEELEY DEVELOPMENT TRUST                ,472941,Unclassified Non Trade,CHARITIES & VOLUNTARY ORGANISA
VSP DELIVER                   ,9140,PRIVATE CONTRACTORS           ,04/07/2012,3291085,ERS INVOICE68874         ,2343.75,THE SHEFFIELD COLLEGE                   ,297611,Unclassified Non Trade,SCHOOLS & COLLEGES - FURTHER E
VSP DELIVER                   ,9140,PRIVATE CONTRACTORS           ,04/07/2012,3291086,ERS INVOICE68875         ,4375.00,THE SHEFFIELD COLLEGE                   ,297611,Unclassified Non Trade,SCHOOLS & COLLEGES - FURTHER E
VSP DELIVER                   ,9140,PRIVATE CONTRACTORS           ,04/07/2012,3291087,ERS INVOICE68876         ,1875.00,SHEFFIELD COLLEGE                       ,429307,Unclassified Non Trade,SCHOOLS & COLLEGES - FURTHER E
VSP DELIVER                   ,9140,PRIVATE CONTRACTORS           ,04/07/2012,3291088,ERS INVOICE68877         ,2343.75,THE SHARKS                              ,540033,Leisure Services,SPORTS CLUBS & ASSOCIATIONS   
VSP DELIVER                   ,9140,PRIVATE CONTRACTORS           ,04/07/2012,3291089,ERS INVOICE68878         ,6062.50,SHEFFIELD WEDNESDAY ACADEMY             ,461589,Leisure Services,SPORTS CLUBS & ASSOCIATIONS   
VSP DELIVER                   ,9140,PRIVATE CONTRACTORS           ,04/07/2012,3291090,ERS INVOICE68879         ,2187.50,SIGNPOST PROJECT                        ,486881,Unclassified Non Trade,YOUTH ORGANISATIONS & CENTRES 
VSP DELIVER                   ,9140,PRIVATE CONTRACTORS           ,04/07/2012,3291091,ERS INVOICE68880         ,2936.88,SPRINT TRAINING LTD                     ,375572,Human Resources,TRAINING SERVICES             
VSP DELIVER                   ,9140,PRIVATE CONTRACTORS           ,04/07/2012,3291092,ERS INVOICE68881         ,1238.25,SPRINT TRAINING LTD                     ,375572,Human Resources,TRAINING SERVICES             
VSP DELIVER                   ,9140,PRIVATE CONTRACTORS           ,04/07/2012,3291093,ERS INVOICE68882         ,3714.75,SPRINT TRAINING LTD                     ,375572,Human Resources,TRAINING SERVICES             
VSP DELIVER                   ,9140,PRIVATE CONTRACTORS           ,04/07/2012,3291094,ERS INVOICE68883         ,2312.50,SYTG LTD                                ,306547,Human Resources,TRAINING CENTRES              
VSP DELIVER                   ,9140,PRIVATE CONTRACTORS           ,04/07/2012,3291095,ERS INVOICE68884         ,1875.00,Y A S Y                                 ,306981,Unclassified Non Trade,YOUTH ORGANISATIONS & CENTRES 
VSP DELIVER                   ,9140,PRIVATE CONTRACTORS           ,04/07/2012,3291096,ERS INVOICE68885         ,8015.63,Y A S Y                                 ,306981,Unclassified Non Trade,YOUTH ORGANISATIONS & CENTRES 
CARE PROCEEDINGS (LEGAL FEES) ,8470,LEGAL FEES                    ,04/07/2012,3291097,ERS INVOICE68886         ,673.94,CARTER BROWN ASSOCIATES LTD             ,417243,Medical ,PSYCHOLOGISTS                 
CARE PROCEEDINGS (LEGAL FEES) ,8470,LEGAL FEES                    ,04/07/2012,3291098,ERS INVOICE68887         ,1140.60,CARTER BROWN ASSOCIATES LTD             ,417243,Medical ,PSYCHOLOGISTS                 
CARE PROCEEDINGS (LEGAL FEES) ,8470,LEGAL FEES                    ,04/07/2012,3291099,ERS INVOICE68888         ,1453.20,CARTER BROWN ASSOCIATES LTD             ,417243,Medical ,PSYCHOLOGISTS                 
CARE PROCEEDINGS (LEGAL FEES) ,8470,LEGAL FEES                    ,04/07/2012,3291100,ERS INVOICE68889         ,741.19,CARTER BROWN ASSOCIATES LTD             ,417243,Medical ,PSYCHOLOGISTS                 
ENGINEERING CENTRE            ,8440,FEE EXPENSES                  ,04/07/2012,3291103,ERS INVOICE68891         ,3240.00,ADAM BAILLIE                            ,464860,Consultancy,ENGINEERS - CONSULTING        
OUTDOOR EDUCATION             ,8440,FEE EXPENSES                  ,04/07/2012,3291105,ERS INVOICE68893         ,900.00,COLUM WALSH T/A TWIN PEAKS              ,467133,Leisure Services,OUTDOOR PURSUIT ORGANISERS & E
OUTDOOR EDUCATION             ,8440,FEE EXPENSES                  ,04/07/2012,3291106,ERS INVOICE68894         ,700.00,MR MICHAEL FAIREST                      ,338564,Construction,PAINTERS & DECORATORS         
MS - IRR STAGES 2 & 3         ,1146,L&B PROFESSIONAL FEES         ,04/07/2012,3291107,ERS INVOICE68895         ,2750000.00,NABARRO                                 ,207042,Legal Services,SOLICITORS                    
STRENGTHENING PUBLIC HEALTH   ,8180,GRANTS                        ,04/07/2012,3291110,ERS INVOICE68900         ,3750.00,DR P R HARVEY & PARTNERS                ,341832,Medical ,DOCTORS                       
SECTOR GWTH ENHANCEMENT PROG  ,9050,OTHER LOCAL AUTHORITIES       ,04/07/2012,3291203,ERS INVOICE68904         ,5006.20,BARNSLEY M B C                          ,504141,Unclassified Non Trade,LOCAL GOVERNMENT              
SECTOR GWTH ENHANCEMENT PROG  ,9050,OTHER LOCAL AUTHORITIES       ,04/07/2012,3291204,ERS INVOICE68905         ,6570.71,ROTHERHAM M B C                         ,296984,Unclassified Non Trade,LOCAL GOVERNMENT              
SECTOR GWTH ENHANCEMENT PROG  ,9050,OTHER LOCAL AUTHORITIES       ,04/07/2012,3291205,ERS INVOICE68906         ,8302.43,DONCASTER MBC                           ,563246,Unclassified Non Trade,COUNCILS                      
ALLOTMENTS INVESTMENT PROGRAMM,1164,NC&A LANDSCAPING              ,04/07/2012,3239641,85,1575.00,HN WOODLAND & ESTATE MANAGEMENT         ,317072,Environmental Services,TREE WORK & FORESTRY SERVICES 
SOUTH EAST AREA TEAM          ,6280,HIRE OF PREMISES              ,04/07/2012,3263425,10001633,507.00,WESTFIELD SPORTS CENTRE                 ,519128,Leisure Services,LEISURE & RECREATION CENTRES  
MARKETING SHEFFIELD           ,8620,COMPUTER MAINTENANCE          ,04/07/2012,3274598,37777,750.00,DIGITAL EXCHANGE (YORKSHIRE) LTD        ,204379,ICT,COMPUTER CONSUMABLES & STATION
WOMEN OF STEEL                ,1193,CONSULTANTS FEES              ,04/07/2012,3275474,41059,2000.00,THE FUNDRAISING CONSULTANCY             ,563333,Consultancy,BUSINESS & MANAGEMENT CONSULTA
SWAN                          ,1194,OTHER FEES                    ,04/07/2012,3283502,598,8960.00,SHEFFIELD HOMES LTD                     ,503889,Unclassified Non Trade,"HOUSING ASSOCIATIONS, SOCIETIE"
SHEAF TRAINING                ,6030,REPAIRS AND MTCE - RESPONSIVE ,04/07/2012,3284014,997,1010.00,FOCUS CCTV LIMITED                      ,486379,Facilities Management,CCTV & VIDEO EQUIPMENT        
NEW MARKET DEVELOPMENT        ,1193,CONSULTANTS FEES              ,04/07/2012,3284318,64383,2062.35,RIDER LEVETT BUCKNALL UK LIMITED        ,393685,Consultancy,BUILDING CONSULTANTS          
NEW MARKET DEVELOPMENT        ,1193,CONSULTANTS FEES              ,04/07/2012,3284329,11030434,5000.00,HOARE LEA & PARTNERS                    ,554140,Construction,ENGINEERING SERVICES          
PARTNERSHIP & GRANT AID MH    ,9160,PARTNERSHIP CONTRACTS         ,04/07/2012,3284347,PCFQ2-12/13              ,15229.00,ST WILFRID'S DAY CENTRE SHEFFIELD       ,361331,Unclassified Non Trade,RELIGIOUS ORGANISATIONS       
NEW MARKET DEVELOPMENT        ,1193,CONSULTANTS FEES              ,04/07/2012,3284357,11029523,11250.00,HOARE LEA & PARTNERS                    ,554140,Construction,ENGINEERING SERVICES          
NEW MARKET DEVELOPMENT        ,1193,CONSULTANTS FEES              ,04/07/2012,3285128,11029525,5000.00,HOARE LEA & PARTNERS                    ,554140,Construction,ENGINEERING SERVICES          
MARKETING SHEFFIELD           ,4060,SALES                         ,04/07/2012,3285215,283390,1440.00,EAST MIDLANDS TRAINS                    ,507769,Facilities Management,TRAIN STATIONS & INFORMATION  
TREE TEAM                     ,6370,GROUNDS MTCE AND ARBORICULTURE,04/07/2012,3285802,1942,620.00,ANDERSON TREE CARE LTD                  ,316084,Environmental Services,TREE WORK & FORESTRY SERVICES 
MARKETING SHEFFIELD           ,8250,MARKETING EXPENSES            ,04/07/2012,3286138,4261,1150.00,BAG IT DON'T BIN LTD                    ,479220,Clothing,"BAGS, BELTS & ACCESSORIES - MN"
MARKETING SHEFFIELD           ,8250,MARKETING EXPENSES            ,04/07/2012,3286764,51626,650.00,REGIONAL MAGAZINE COMPANY LIMITED       ,326282,Education,PUBLISHERS                    
PROVIDER CONTRACT AUG11-JUL12 ,9120,OTHER AGENCIES                ,04/07/2012,3288781,15051205,969.50,LEARN FOR LIFE ENTERPRISE LIMITED       ,446117,Unclassified Non Trade,CHARITIES & VOLUNTARY ORGANISA
FIVE WEIRS WALK - PHASE 6B    ,1161,NC&A MAIN CONTRACT            ,04/07/2012,3286873,EX00446/24               ,26470.65,LAND AND WATER SERVICES LIMITED         ,416902,Construction,CIVIL ENGINEERS               
ALMO ASBESTOS SURVEYS         ,1157,DWELLINGS MAIN CONTRACT       ,04/07/2012,3286876,SH03420/9                ,9907.04,EURO ENVIRONMENTAL LTD                  ,399641,Construction,ASBESTOS SURVEYS & REMOVALS   
VACANT REPAIRS                ,6030,ONE OFF STRUCTURAL SURVEY     ,04/07/2012,3286876,SH03420/9                ,2812.60,EURO ENVIRONMENTAL LTD                  ,399641,Construction,ASBESTOS SURVEYS & REMOVALS   
PARENTING STRATEGY            ,5750,TRAINING EXPENDITURE          ,04/07/2012,3287364,23606,640.00,VOLUNTARY ACTION SHEFFIELD              ,295283,Unclassified Non Trade,CHARITIES & VOLUNTARY ORGANISA
REDVERS HOUSE                 ,6210,RENTS                         ,04/07/2012,3287826,610832,127493.25,DTZ DEBENHAM TIE LEUNG                  ,392019,Unclassified Trade,COMMERCIAL PROPERTY AGENTS    
REDVERS HOUSE                 ,6210,RENTS                         ,04/07/2012,3287828,610833,18771.30,DTZ DEBENHAM TIE LEUNG                  ,392019,Unclassified Trade,COMMERCIAL PROPERTY AGENTS    
REDVERS HOUSE                 ,6210,RENTS                         ,04/07/2012,3287830,610834,28331.75,DTZ DEBENHAM TIE LEUNG                  ,392019,Unclassified Trade,COMMERCIAL PROPERTY AGENTS    
OWLER BROOK PCP               ,1161,NC&A MAIN CONTRACT            ,04/07/2012,3288667,VYO65251                 ,376487.30,INTERSERVE CONSTRUCTION LIMITED         ,547901,Construction,BUILDERS                      
MYERS GROVE                   ,1194,OTHER FEES                    ,04/07/2012,3288669,64,10300.00,URBAN SPLASH (PARK HILL) LTD            ,514142,Construction,PROPERTY DEVELOPERS           
SCC INTERNAL PROG. COSTS - W4 ,1194,OTHER FEES                    ,04/07/2012,3288671,961,6000.00,SHEFFIELD LEP LTD                       ,482230,Unclassified Non Trade,LOCAL GOVERNMENT              
SCC INTERNAL PROG. COSTS - W4 ,1194,OTHER FEES                    ,04/07/2012,3288672,962,6000.00,SHEFFIELD LEP LTD                       ,482230,Unclassified Non Trade,LOCAL GOVERNMENT              
LEP BUSINESS PLAN - W4        ,1194,OTHER FEES                    ,04/07/2012,3288673,959,9904.96,SHEFFIELD LEP LTD                       ,482230,Unclassified Non Trade,LOCAL GOVERNMENT              
BIRLEY                        ,1183,PURCHASE OF EQUIPMENT         ,04/07/2012,3288676,966,762877.00,SHEFFIELD LEP LTD                       ,482230,Unclassified Non Trade,LOCAL GOVERNMENT              
HANDSWORTH GRANGE             ,1183,PURCHASE OF EQUIPMENT         ,04/07/2012,3288677,967,507726.00,SHEFFIELD LEP LTD                       ,482230,Unclassified Non Trade,LOCAL GOVERNMENT              
KING EDWARDS (UP)             ,1161,NC&A MAIN CONTRACT            ,04/07/2012,3288678,968,252815.53,SHEFFIELD LEP LTD                       ,482230,Unclassified Non Trade,LOCAL GOVERNMENT              
LEP BUSINESS PLAN - W4        ,1194,OTHER FEES                    ,04/07/2012,3288680,960,3679.04,SHEFFIELD LEP LTD                       ,482230,Unclassified Non Trade,LOCAL GOVERNMENT              
LEP BUSINESS PLAN - W4        ,1194,OTHER FEES                    ,04/07/2012,3288681,958,4108.56,SHEFFIELD LEP LTD                       ,482230,Unclassified Non Trade,LOCAL GOVERNMENT              
PROVIDER CONTRACT AUG11-JUL12 ,9120,OTHER AGENCIES                ,04/07/2012,3288834,14061203,535.50,LEARN FOR LIFE ENTERPRISE LIMITED       ,446117,Unclassified Non Trade,CHARITIES & VOLUNTARY ORGANISA
PROVIDER CONTRACT AUG11-JUL12 ,9120,OTHER AGENCIES                ,04/07/2012,3288837,14061202,535.50,LEARN FOR LIFE ENTERPRISE LIMITED       ,446117,Unclassified Non Trade,CHARITIES & VOLUNTARY ORGANISA
PROVIDER CONTRACT AUG11-JUL12 ,9120,OTHER AGENCIES                ,04/07/2012,3288838,14061201,535.50,LEARN FOR LIFE ENTERPRISE LIMITED       ,446117,Unclassified Non Trade,CHARITIES & VOLUNTARY ORGANISA
MCA SUPPORT TEAM              ,8440,FEE EXPENSES                  ,04/07/2012,3288883,90701359,550.00,LINCOLNSHIRE COUNTY COUNCIL             ,325205,Unclassified Non Trade,LOCAL GOVERNMENT              
TRANSPORT FLEET MANAGEMENT    ,7060,EXTERNAL VEHICLE HIRE         ,04/07/2012,3289263,MA889738                 ,1324.44,GE CAPITAL EQUIPMENT FINANCE LTD        ,416647,Financial Services,LEASING SERVICES              
HRA CLEARED SITES             ,8350,MISCELLANEOUS EXPENSES        ,04/07/2012,3289269,3311,884.20,GREEN ESTATE LTD                        ,388189,Environmental Services,WASTE DISPOSAL SERVICES       
HRA CLEARED SITES             ,8350,MISCELLANEOUS EXPENSES        ,04/07/2012,3289270,3401,3134.00,GREEN ESTATE LTD                        ,388189,Environmental Services,WASTE DISPOSAL SERVICES       
STEP UP TO SOCIAL WORK        ,8440,FEE EXPENSES                  ,04/07/2012,3289271,7170361,12000.00,NORTH EAST LINCOLNSHIRE COUNCIL         ,326926,Unclassified Non Trade,LOCAL GOVERNMENT              
SNIPS                         ,8180,GRANTS                        ,04/07/2012,3289306,43263,1350.00,SUNSETTERS CLUB                         ,474673,Social Community Care,NURSERIES & CRECHES           
PROVIDER CONTRACT AUG11-JUL12 ,9120,OTHER AGENCIES                ,04/07/2012,3289480,215,647.00,WOODTHORPE DEVELOPMENT TRUST            ,419565,Unclassified Non Trade,CHARITIES & VOLUNTARY ORGANISA
PROVIDER CONTRACT AUG11-JUL12 ,9120,OTHER AGENCIES                ,04/07/2012,3289495,FDP0298                  ,638.50,REDACTED PERSONAL DATA,315505,Social Community Care,CHILDCARE SERVICES            
PROVIDER CONTRACT AUG11-JUL12 ,9120,OTHER AGENCIES                ,04/07/2012,3289497,11,640.00,STEP                                    ,386032,Unclassified Non Trade,CHARITIES & VOLUNTARY ORGANISA
PROVIDER CONTRACT AUG11-JUL12 ,9120,OTHER AGENCIES                ,04/07/2012,3289499,112,590.00,STEP                                    ,386032,Unclassified Non Trade,CHARITIES & VOLUNTARY ORGANISA
PROVIDER CONTRACT AUG11-JUL12 ,9120,OTHER AGENCIES                ,04/07/2012,3289503,SOARCO/704               ,609.00,SOAR                                    ,413073,Unclassified Non Trade,DEVELOPMENT AGENCIES          
PROVIDER CONTRACT AUG11-JUL12 ,9120,OTHER AGENCIES                ,04/07/2012,3289520,114,540.00,STEP                                    ,386032,Unclassified Non Trade,CHARITIES & VOLUNTARY ORGANISA
REDVERS HOUSE                 ,6240,PREMISES INSURANCE            ,04/07/2012,3290013,610527,2197.90,DTZ DEBENHAM TIE LEUNG                  ,392019,Unclassified Trade,COMMERCIAL PROPERTY AGENTS    
REDVERS HOUSE                 ,6210,RENTS                         ,04/07/2012,3290014,610528,1803.81,DTZ DEBENHAM TIE LEUNG                  ,392019,Unclassified Trade,COMMERCIAL PROPERTY AGENTS    
MOG                           ,8440,FEE EXPENSES                  ,04/07/2012,3290158,350002795,20035.71,DEPARTMENT FOR EDUCATION & EMPLOYMENT   ,370598,Unclassified Non Trade,CHARITIES & VOLUNTARY ORGANISA
INCLUSION CENTRE              ,8390,STATIONERY                    ,04/07/2012,3290241,SINV00231935             ,600.14,R A ROBERTS (OFFICE EQUIPMENT) LTD      ,207777,Furniture,OFFICE FURNITURE & EQUIPMENT  
SNIPS                         ,8180,GRANTS                        ,04/07/2012,3290373,14121,592.00,BURTON STREET PROJECT                   ,342774,Unclassified Non Trade,CHARITIES & VOLUNTARY ORGANISA
PFI 3 UNITARY CHARGE          ,8350,MISCELLANEOUS EXPENSES        ,04/07/2012,3290381,ASSL/12/19               ,615010.54,ACADEMY SERVICES (SHEFFIELD) LTD        ,438883,Financial Services,LEASING SERVICES              
PARKS OPERATIONS NORTH        ,8550,OTHER SERVICES                ,04/07/2012,3290386,ASF/5137                 ,1200.00,AVANTI STEEL FABRICATIONS               ,203151,Construction,STEEL FABRICATORS & ERECTORS  
PARKS OPERATIONS NORTH        ,8550,OTHER SERVICES                ,04/07/2012,3290387,ASF/5136                 ,3847.25,AVANTI STEEL FABRICATIONS               ,203151,Construction,STEEL FABRICATORS & ERECTORS  
INCLUSION CENTRE              ,8440,FEE EXPENSES                  ,04/07/2012,3290390,2100144184,3261.87,SHEFFIELD CHILDRENS HOSPITAL NHS  TRUST ,332785,Unclassified Non Trade,HOSPITALS                     
AIDS SUPPORT GRANT            ,9160,PARTNERSHIP CONTRACTS         ,04/07/2012,3290766,41092,7000.00,SHIELD SOUTH YORKS HIV SUPPORT GROUP    ,395603,Medical ,COUNSELLING & ADVICE SERVICES 
100 APPRENTICES               ,9120,OTHER AGENCIES                ,04/07/2012,3290774,541,627.25,MEADOWHALL EDUCATION CENTRE             ,350033,Human Resources,TRAINING CENTRES              
STEP UP TO SOCIAL WORK        ,8440,FEE EXPENSES                  ,04/07/2012,3290793,6810043118,20000.00,LEEDS CITY COUNCIL                      ,541990,Unclassified Non Trade,LOCAL GOVERNMENT              
MINIBUSES - SHEFFTAX TENDERED ,7060,EXTERNAL VEHICLE HIRE         ,04/07/2012,3290800,1010,34437.30,SHEFFIELD TAXI SERVICES LTD             ,208407,Transport,TAXIS & PRIVATE HIRE          
TRANSPORT FLEET MANAGEMENT    ,7060,EXTERNAL VEHICLE HIRE         ,04/07/2012,3290819,14671/14728              ,990.00,HIGHLAND ACCESS LTD                     ,326822,Human Resources,TRAINING SERVICES             
SNIPS                         ,8180,GRANTS                        ,04/07/2012,3290909,971,1019.26,REACHOUT CHILDCARE SERVICES LIMITED     ,433768,Social Community Care,AFTER SCHOOL CARE             
EP DOOR ENTRY WORKS           ,1161,NC&A MAIN CONTRACT            ,04/07/2012,3290954,SH02430/11               ,95900.00,KIER SHEFFIELD LLP                      ,352687,Construction,PROPERTY MAINTENANCE & REPAIRS
SOCIAL CARE TAXIS             ,7060,EXTERNAL VEHICLE HIRE         ,04/07/2012,3291038,29336,4853.64,SHEFFIELD CITY TAXIS LTD                ,301182,Transport,TAXIS & PRIVATE HIRE          
CARE4YOU SERVICE              ,6150,ELECTRICITY                   ,04/07/2012,3290822,27140398,1200.56,NPOWER NORTHERN LTD                     ,207191,Utilities,ELECTRICITY COMPANIES         
PFI 4                         ,6150,ELECTRICITY                   ,04/07/2012,3290825,533405620051213X         ,1716.45,YORKSHIRE WATER PLC                     ,295854,Utilities,WATER COMPANIES               
CONTRACT                      ,6150,ELECTRICITY                   ,04/07/2012,3290827,850000000000,515.09,BRITISH GAS                             ,443401,Utilities,GAS COMPANIES                 
OLIVE GROVE WORKSHOPS         ,7010,ROUTINE VEHICLE REPAIR & MTCE ,04/07/2012,3290828,81114,4697.40,ATS EUROMASTER LTD                      ,545966,Vehicles Not Buses,TYRE DEALERS                  
TRANSPORT FLEET MANAGEMENT    ,8070,STOCKS AND STORES             ,04/07/2012,3290832,7982294,5469.59,CARLTON FUELS                           ,466741,Vehicles Not Buses,FUEL DEALERS                  
TRANSPORT FLEET MANAGEMENT    ,6130,HEATING OIL                   ,04/07/2012,3290833,8000253,23886.49,CARLTON FUELS                           ,466741,Vehicles Not Buses,FUEL DEALERS                  
CONTRACT                      ,6160,GAS                           ,04/07/2012,3290853,850000000000,734.86,BRITISH GAS                             ,443401,Utilities,GAS COMPANIES                 
UTILITIES                     ,6150,ELECTRICITY                   ,04/07/2012,3290869,27140593,1371.07,NPOWER NORTHERN LTD                     ,207191,Utilities,ELECTRICITY COMPANIES         
DELEGATED BUDGETS             ,6150,ELECTRICITY                   ,04/07/2012,3290872,2714-014                 ,66817.51,NPOWER NORTHERN LTD                     ,207191,Utilities,ELECTRICITY COMPANIES         
PURCHASING LEARNING DISABILITI,9250,INDEPENDENT DAY CARE          ,04/07/2012,3290628,427,2458.80,THE GOOD DAYS PROJECT                   ,532126,Unclassified Non Trade,CHARITIES & VOLUNTARY ORGANISA
PURCHASING LEARNING DISABILITI,9250,INDEPENDENT DAY CARE          ,04/07/2012,3290638,22251,1440.00,PACES SHEFFIELD                         ,376410,Unclassified Non Trade,SCHOOLS - SPECIAL             
PURCHASING LEARNING DISABILITI,9250,INDEPENDENT DAY CARE          ,04/07/2012,3290643,A03581                   ,6745.76,AUTISM PLUS LTD                         ,330606,Unclassified Non Trade,CHARITIES & VOLUNTARY ORGANISA
PURCHASING LEARNING DISABILITI,9250,INDEPENDENT DAY CARE          ,04/07/2012,3290644,A03582                   ,6745.76,AUTISM PLUS LTD                         ,330606,Unclassified Non Trade,CHARITIES & VOLUNTARY ORGANISA
PURCHASING LEARNING DISABILITI,9250,INDEPENDENT DAY CARE          ,04/07/2012,3290645,A03615                   ,2013.92,AUTISM PLUS LTD                         ,330606,Unclassified Non Trade,CHARITIES & VOLUNTARY ORGANISA
PURCHASING LEARNING DISABILITI,9250,INDEPENDENT DAY CARE          ,04/07/2012,3290646,A03618                   ,2013.92,AUTISM PLUS LTD                         ,330606,Unclassified Non Trade,CHARITIES & VOLUNTARY ORGANISA
PURCHASING LEARNING DISABILITI,9250,INDEPENDENT DAY CARE          ,04/07/2012,3290647,A03621                   ,2013.92,AUTISM PLUS LTD                         ,330606,Unclassified Non Trade,CHARITIES & VOLUNTARY ORGANISA
PURCHASING LEARNING DISABILITI,9250,INDEPENDENT DAY CARE          ,04/07/2012,3290648,A03622                   ,1749.72,AUTISM PLUS LTD                         ,330606,Unclassified Non Trade,CHARITIES & VOLUNTARY ORGANISA
PURCHASING LEARNING DISABILITI,9250,INDEPENDENT DAY CARE          ,04/07/2012,3290649,A03625                   ,2013.92,AUTISM PLUS LTD                         ,330606,Unclassified Non Trade,CHARITIES & VOLUNTARY ORGANISA
PURCHASING LEARNING DISABILITI,9190,CITYWIDE SPOT                 ,04/07/2012,3290654,265-005497               ,1254.25,LEONARD CHESHIRE SERVICES               ,329306,Unclassified Non Trade,CHARITIES & VOLUNTARY ORGANISA
PURCHASING LEARNING DISABILITI,9190,CITYWIDE SPOT                 ,04/07/2012,3290659,265-005502               ,1102.00,LEONARD CHESHIRE SERVICES               ,329306,Unclassified Non Trade,CHARITIES & VOLUNTARY ORGANISA
PURCHASING LEARNING DISABILITI,9190,CITYWIDE SPOT                 ,04/07/2012,3290660,265-005503               ,703.25,LEONARD CHESHIRE SERVICES               ,329306,Unclassified Non Trade,CHARITIES & VOLUNTARY ORGANISA
PDSI PURCHASING               ,9190,CITYWIDE SPOT                 ,04/07/2012,3290661,265-005504               ,6006.30,LEONARD CHESHIRE SERVICES               ,329306,Unclassified Non Trade,CHARITIES & VOLUNTARY ORGANISA
PURCHASING LEARNING DISABILITI,9190,CITYWIDE SPOT                 ,04/07/2012,3290667,1703131,4012.00,MENCAP HOMECARE                         ,361858,Unclassified Non Trade,CHARITIES & VOLUNTARY ORGANISA
PURCHASING LEARNING DISABILITI,9190,CITYWIDE SPOT                 ,04/07/2012,3290668,1703169,1416.00,MENCAP HOMECARE                         ,361858,Unclassified Non Trade,CHARITIES & VOLUNTARY ORGANISA
PURCHASING LEARNING DISABILITI,9190,CITYWIDE SPOT                 ,04/07/2012,3290670,265-005495               ,841.00,LEONARD CHESHIRE SERVICES               ,329306,Unclassified Non Trade,CHARITIES & VOLUNTARY ORGANISA
PURCHASING ELDERLY            ,9190,CITYWIDE SPOT                 ,04/07/2012,3290671,265-005496               ,696.00,LEONARD CHESHIRE SERVICES               ,329306,Unclassified Non Trade,CHARITIES & VOLUNTARY ORGANISA
PURCHASING LEARNING DISABILITI,9230,CCSP TRANSPORT                ,04/07/2012,3290672,SEN026765                ,807.72,SENSE                                   ,361885,Unclassified Non Trade,CHARITIES & VOLUNTARY ORGANISA
INDEPENDENT RES BLOCK PLACEMEN,9270,INDEPENDENT RESIDENTIAL PMENT ,04/07/2012,3290627,5085,1950.16,PROGRESSIVE CARE LTD                    ,343548,Social Community Care,CHILDREN'S HOMES              
PURCHASING ELDERLY            ,9200,CONTINUING RESIDENTIAL CARE   ,04/07/2012,3290578,J485001 240612           ,1756.00,LAUREATE COURT NURSING HOME             ,362119,Social Community Care,NURSING HOMES                 
PURCHASING ELDERLY            ,9200,CONTINUING RESIDENTIAL CARE   ,04/07/2012,3290579,J485056 240612           ,3136.00,ECKINGTON COURT                         ,361852,Social Community Care,NURSING HOMES                 
PURCHASING ELDERLY            ,9210,CONTINUING NURSING CARE       ,04/07/2012,3290579,J485056 240612           ,1482.16,ECKINGTON COURT                         ,361852,Social Community Care,NURSING HOMES                 
PURCHASING ELDERLY            ,4260,NURSING COSTS RECOVERED       ,04/07/2012,3290580,J485062 240612           ,1145.86,BYRON LODGE RESIDENTIAL HOME            ,362123,Social Community Care,RESIDENTIAL CARE HOMES        
PURCHASING ELDERLY            ,9200,CONTINUING RESIDENTIAL CARE   ,04/07/2012,3290580,J485062 240612           ,2992.00,BYRON LODGE RESIDENTIAL HOME            ,362123,Social Community Care,RESIDENTIAL CARE HOMES        
PURCHASING LEARNING DISABILITI,9200,CONTINUING RESIDENTIAL CARE   ,04/07/2012,3290581,J485076 240612           ,3871.12,WIRRAL AUTISTIC SOCIETY                 ,361894,Unclassified Non Trade,COMMUNITY PROJECTS            
PURCHASING ELDERLY            ,4260,RESIDENTIAL COSTS RECOVERED   ,04/07/2012,3290582,J488343 240612           ,748.13,DEERLANDS                               ,361836,Social Community Care,RESIDENTIAL CARE HOMES        
PURCHASING ELDERLY            ,9200,SHORT TERM RESIDENTIAL CARE   ,04/07/2012,3290583,J488581 240612           ,882.14,KINGFIELD HOLT                          ,361766,Social Community Care,RESIDENTIAL CARE HOMES        
PURCHASING ELDERLY            ,9200,CONTINUING RESIDENTIAL CARE   ,04/07/2012,3290585,J491600 220712           ,42528.57,MIDHURST ROAD                           ,361801,Social Community Care,RESIDENTIAL CARE HOMES        
PURCHASING ELDERLY            ,9200,CONTINUING RESIDENTIAL CARE   ,04/07/2012,3290586,J491604 220712           ,27392.00,COTLEIGH                                ,361811,Social Community Care,RESIDENTIAL CARE HOMES        
PURCHASING ELDERLY            ,9200,CONTINUING RESIDENTIAL CARE   ,04/07/2012,3290587,J491605 220712           ,25195.01,DEERLANDS                               ,361836,Social Community Care,RESIDENTIAL CARE HOMES        
PDSI PURCHASING               ,9200,CONTINUING RESIDENTIAL CARE   ,04/07/2012,3290587,J491605 220712           ,1545.56,DEERLANDS                               ,361836,Social Community Care,RESIDENTIAL CARE HOMES        
PURCHASING ELDERLY            ,9200,CONTINUING RESIDENTIAL CARE   ,04/07/2012,3290588,J491607 220712           ,33675.75,HOUSTEADS                               ,361860,Social Community Care,RESIDENTIAL CARE HOMES        
PURCHASING ELDERLY            ,9200,CONTINUING RESIDENTIAL CARE   ,04/07/2012,3290589,J491610 220712           ,36267.72,SPRINGWOOD                              ,361812,Social Community Care,RESIDENTIAL CARE HOMES        
PURCHASING ELDERLY            ,9200,CONTINUING RESIDENTIAL CARE   ,04/07/2012,3290590,J491624 220712           ,4072.00,TAPTON EDGE REST HOME LTD               ,361786,Social Community Care,REST & RETIREMENT HOMES       
PURCHASING LEARNING DISABILITI,9200,CONTINUING RESIDENTIAL CARE   ,04/07/2012,3290591,J491657 220712           ,2157.12,LINKAGE COMMUNITY TRUST                 ,362116,Unclassified Non Trade,CHARITIES & VOLUNTARY ORGANISA
PURCHASING ELDERLY            ,9200,CONTINUING RESIDENTIAL CARE   ,04/07/2012,3290592,J491661 220712           ,21120.00,WOODBANK HOUSE CARE LTD                 ,361780,Social Community Care,REST & RETIREMENT HOMES       
PURCHASING ELDERLY            ,9200,CONTINUING RESIDENTIAL CARE   ,04/07/2012,3290593,J491679 220712           ,1756.00,LAUREATE COURT NURSING HOME             ,362119,Social Community Care,NURSING HOMES                 
PURCHASING ELDERLY            ,9200,CONTINUING RESIDENTIAL CARE   ,04/07/2012,3290594,J491695 220712           ,3060.00,CRAEGMOOR  - RICHMOND HEIGHTS           ,361933,Social Community Care,NURSING HOMES                 
PURCHASING ELDERLY            ,9210,CONTINUING NURSING CARE       ,04/07/2012,3290594,J491695 220712           ,26772.00,CRAEGMOOR  - RICHMOND HEIGHTS           ,361933,Social Community Care,NURSING HOMES                 
PURCHASING ELDERLY            ,9200,CONTINUING RESIDENTIAL CARE   ,04/07/2012,3290595,J491734 220712           ,3136.00,ECKINGTON COURT                         ,361852,Social Community Care,NURSING HOMES                 
PURCHASING ELDERLY            ,9210,CONTINUING NURSING CARE       ,04/07/2012,3290595,J491734 220712           ,1482.16,ECKINGTON COURT                         ,361852,Social Community Care,NURSING HOMES                 
PURCHASING LEARNING DISABILITI,9200,CONTINUING RESIDENTIAL CARE   ,04/07/2012,3290597,J491755 220712           ,5995.12,HAMILTON LODGE                          ,418581,Social Community Care,RESIDENTIAL CARE HOMES        
PURCHASING LEARNING DISABILITI,9200,CONTINUING RESIDENTIAL CARE   ,04/07/2012,3290598,J491763 220712           ,6665.84,EDGECUMBE HOUSE                         ,380015,Social Community Care,RESIDENTIAL CARE HOMES        
PURCHASING LEARNING DISABILITI,9200,CONTINUING RESIDENTIAL CARE   ,04/07/2012,3290599,J491781 220712           ,6445.68,RED HOUSE                               ,387005,Facilities Management,HOTELS                        
PURCHASING LEARNING DISABILITI,9200,CONTINUING RESIDENTIAL CARE   ,04/07/2012,3290600,J491794 220712           ,4836.84,CHESTNUT GRANGE                         ,418583,Social Community Care,RESIDENTIAL CARE HOMES        
PURCHASING LEARNING DISABILITI,9200,CONTINUING RESIDENTIAL CARE   ,04/07/2012,3290601,J491807 220712           ,4871.36,GORSE HILL                              ,418457,Social Community Care,RESIDENTIAL CARE HOMES        
PURCHASING LEARNING DISABILITI,9200,CONTINUING RESIDENTIAL CARE   ,04/07/2012,3290602,J491815 220712           ,6885.52,BROOK LODGE                             ,475031,Social Community Care,RESIDENTIAL CARE HOMES        
PURCHASING LEARNING DISABILITI,9200,CONTINUING RESIDENTIAL CARE   ,04/07/2012,3290603,J491828 220712           ,11291.84,FENNEY LODGE                            ,408029,Social Community Care,RESIDENTIAL CARE HOMES        
PDSI PURCHASING               ,9200,CONTINUING RESIDENTIAL CARE   ,04/07/2012,3290603,J491828 220712           ,6865.12,FENNEY LODGE                            ,408029,Social Community Care,RESIDENTIAL CARE HOMES        
PURCHASING ELDERLY            ,9200,CONTINUING RESIDENTIAL CARE   ,04/07/2012,3290604,J491847 220712           ,1729.28,NEWTOWN HOUSE                           ,516808,Social Community Care,RESIDENTIAL CARE HOMES        
PDSI PURCHASING               ,9210,CONTINUING NURSING CARE       ,04/07/2012,3290605,J491851 220712           ,3114.20,MARKHAM HOUSE                           ,522429,Social Community Care,NURSING HOMES                 
PURCHASING                    ,9210,CONTINUING NURSING CARE       ,04/07/2012,3290606,J495467 220712           ,45787.95,TAPTON GROVE NURSING HOME               ,361826,Social Community Care,NURSING HOMES                 
PURCHASING ELDERLY            ,9200,CONTINUING RESIDENTIAL CARE   ,04/07/2012,3290607,J495472 220712           ,3591.00,NORTON LEES HALL/LODGE                  ,433750,Unclassified Non Trade,SCHOOLS - LOCAL AUTHORITY     
PURCHASING ELDERLY            ,9200,CONTINUING RESIDENTIAL CARE   ,04/07/2012,3290608,J495473 220712           ,1832.67,THE OLD VICARAGE                        ,443734,Social Community Care,RESIDENTIAL CARE HOMES        
PURCHASING ELDERLY            ,9200,SHORT TERM RESIDENTIAL CARE   ,04/07/2012,3290609,J484792 270512           ,1710.00,DARWIN HOUSE RESIDENTIAL CARE           ,361759,Social Community Care,RESIDENTIAL CARE HOMES        
PURCHASING ELDERLY            ,9200,SHORT TERM RESIDENTIAL CARE   ,04/07/2012,3290610,J484804 270512           ,782.43,ABBEY GRANGE RESIDENTIAL HOME           ,361753,Social Community Care,RESIDENTIAL CARE HOMES        
PURCHASING ELDERLY            ,9200,SHORT TERM RESIDENTIAL CARE   ,04/07/2012,3290611,J488070 270512           ,2565.00,DARNALL VIEW RESIDENTIAL HOME           ,362170,Social Community Care,RESIDENTIAL CARE HOMES        
PURCHASING ELDERLY            ,9200,SHORT TERM RESIDENTIAL CARE   ,04/07/2012,3290612,J488504 270512           ,608.57,GRANGE CRESCENT                         ,361898,Social Community Care,RESIDENTIAL CARE HOMES        
PURCHASING ELDERLY            ,9200,SHORT TERM RESIDENTIAL CARE   ,04/07/2012,3290616,J491546 240612           ,710.00,MIDHURST ROAD                           ,361801,Social Community Care,RESIDENTIAL CARE HOMES        
PURCHASING ELDERLY            ,9200,SHORT TERM RESIDENTIAL CARE   ,04/07/2012,3290617,J491548 240612           ,1326.86,KNOWLE HILL                             ,361798,Social Community Care,RESIDENTIAL CARE HOMES        
PURCHASING ELDERLY            ,9200,SHORT TERM RESIDENTIAL CARE   ,04/07/2012,3290618,J491550 240612           ,554.71,SWALLOWNEST CARE HOME                   ,361827,Social Community Care,NURSING HOMES                 
PURCHASING ELDERLY            ,9200,SHORT TERM RESIDENTIAL CARE   ,04/07/2012,3290620,J491555 240612           ,540.00,DARWIN HOUSE RESIDENTIAL CARE           ,361759,Social Community Care,RESIDENTIAL CARE HOMES        
PURCHASING ELDERLY            ,9200,SHORT TERM RESIDENTIAL CARE   ,04/07/2012,3290622,J491557 240612           ,782.00,LOWER BOWSHAW VIEW NH                   ,362101,Social Community Care,NURSING HOMES                 
PURCHASING ELDERLY            ,9200,SHORT TERM RESIDENTIAL CARE   ,04/07/2012,3290625,J495446 240612           ,5033.72,ROSEBERRY CARE CENTRES GB LTD           ,361904,Social Community Care,NURSING HOMES                 
PURCHASING ELDERLY            ,9200,SHORT TERM RESIDENTIAL CARE   ,04/07/2012,3290626,J496324 240612           ,1115.67,HOUSTEADS                               ,361860,Social Community Care,RESIDENTIAL CARE HOMES        
WOODLANE COUNTRYSIDE CENTRE   ,6150,ELECTRICITY                   ,05/07/2012,3291593,27140674,937.54,NPOWER NORTHERN LTD                     ,207191,Utilities,ELECTRICITY COMPANIES         
STREET FORCE BALANCE SHEET    ,776,4332101 INVOICES PAID         ,05/07/2012,3291313,1103507950,576.16,KONICA MINOLTA BUSINESS SOLUTIONS EAST  ,206267,ICT,OFFICE EQUIPMENT MNFRS & DISTR
STREET FORCE BALANCE SHEET    ,776,4332101 INVOICES PAID         ,05/07/2012,3291316,20004890,772.94,HARSCO METALS GROUP LTD                 ,493119,Vehicles Not Buses,PLANT & MACHINERY HIRE & LEASI
STREET FORCE BALANCE SHEET    ,776,4332101 INVOICES PAID         ,05/07/2012,3291318,20004892,1846.43,HARSCO METALS GROUP LTD                 ,493119,Vehicles Not Buses,PLANT & MACHINERY HIRE & LEASI
STREET FORCE BALANCE SHEET    ,776,4332101 INVOICES PAID         ,05/07/2012,3291319,20004893,913.32,HARSCO METALS GROUP LTD                 ,493119,Vehicles Not Buses,PLANT & MACHINERY HIRE & LEASI
STREET FORCE BALANCE SHEET    ,776,4332101 INVOICES PAID         ,05/07/2012,3291320,2850050505,6208.00,VEOLIA ENVIRONMENTAL SERVICES           ,464059,Environmental Services,WASTE DISPOSAL SERVICES       
STREET FORCE BALANCE SHEET    ,776,4332101 INVOICES PAID         ,05/07/2012,3291323,1/467353                 ,559.25,BUILDERS CENTRE (SHEFFIELD) LTD         ,203585,Building Construction Materials,BUILDERS' MERCHANTS           
STREET FORCE BALANCE SHEET    ,776,4332101 INVOICES PAID         ,05/07/2012,3291336,YD20144836               ,1975.30,NORTHERN POWERGRID                      ,349525,Utilities,ELECTRICITY COMPANIES         
STREET FORCE BALANCE SHEET    ,776,4332101 INVOICES PAID         ,05/07/2012,3291342,1103500196,1247.96,KONICA MINOLTA BUSINESS SOLUTIONS EAST  ,206267,ICT,OFFICE EQUIPMENT MNFRS & DISTR
STREET FORCE BALANCE SHEET    ,776,4332101 INVOICES PAID         ,05/07/2012,3291344,ZBB0273891               ,505.00,MARSHALLS MONO LIMITED                  ,460984,Building Construction Materials,QUARRIES                      
STREET FORCE BALANCE SHEET    ,776,4332101 INVOICES PAID         ,05/07/2012,3291345,1103500197,517.62,KONICA MINOLTA BUSINESS SOLUTIONS EAST  ,206267,ICT,OFFICE EQUIPMENT MNFRS & DISTR
STREET FORCE BALANCE SHEET    ,776,4332101 INVOICES PAID         ,05/07/2012,3291348,1103500313,1413.90,KONICA MINOLTA BUSINESS SOLUTIONS EAST  ,206267,ICT,OFFICE EQUIPMENT MNFRS & DISTR
STREET FORCE BALANCE SHEET    ,776,4332101 INVOICES PAID         ,05/07/2012,3292804,NIO19719                 ,1489.60,MACLEAN ELECTRICAL                      ,515112,Building Construction Materials,LIGHTING WHOLESALERS          
STREET FORCE BALANCE SHEET    ,776,4332101 INVOICES PAID         ,05/07/2012,3292805,NIO19720                 ,2475.60,MACLEAN ELECTRICAL                      ,515112,Building Construction Materials,LIGHTING WHOLESALERS          
STREET FORCE BALANCE SHEET    ,776,4332101 INVOICES PAID         ,05/07/2012,3292806,NIO19722                 ,2370.00,MACLEAN ELECTRICAL                      ,515112,Building Construction Materials,LIGHTING WHOLESALERS          
ADVOCACY & CHALLENGE          ,8440,FEE EXPENSES                  ,05/07/2012,3291697,ERS INVOICE68938         ,4826.50,ROB COOPER                              ,560402,Education,EDUCATIONAL TRAINING PROVIDERS
TRANSPORT FLEET MANAGEMENT    ,7030,VEHICLE EXCISE DUTY/OP LICENCE,05/07/2012,3291700,ERS INVOICE68941         ,25000.00,DVLA                                    ,436560,Unclassified Non Trade,CENTRAL GOVERNMENT            
EVENTS IN PARKS               ,8200,EVENTS EXPENDITURE            ,05/07/2012,3291701,ERS INVOICE68942         ,500.00,JULIE WILSON                            ,464440,Unclassified Trade,SPORTS MANAGEMENT & PROMOTION 
CHILDRENS' FESTIVAL           ,8440,FEE EXPENSES                  ,05/07/2012,3291702,ERS INVOICE68943         ,1250.00,MRS LAUREN AIZLEWOOD-CLOW               ,538755,Leisure Services,DANCING SCHOOLS               
CLAIMS                        ,8740,MOTOR VEHICLE                 ,05/07/2012,3291703,ERS INVOICE68944         ,3200.00,HANDLEY BROWN SOLICITORS                ,569785,Legal Services,SOLICITORS MARKETING SERVICES 
SHEFFIELD BOTANICAL GARDENS   ,6370,GROUNDS MTCE AND ARBORICULTURE,05/07/2012,3291704,ERS INVOICE68945         ,973.80,S10 CATERING COMPANY LIMITED            ,569283,Catering,"CAFES, SNACK BARS & TEA ROOMS "
COMMUNITY ASSEMBLY SOUTH      ,9120,OTHER AGENCIES                ,05/07/2012,3291705,ERS INVOICE68949         ,714.00,CLUB DOUBLE SIX                         ,445726,Unclassified Non Trade,YOUTH ORGANISATIONS & CENTRES 
COMMUNITY ASSEMBLY SOUTH      ,9120,OTHER AGENCIES                ,05/07/2012,3291706,ERS INVOICE68950         ,700.00,H.E. HEELEY ASIAN WOMENS GROUP          ,445308,Unclassified Non Trade,COMMUNITY NETWORKS            
COMMUNITY ASSEMBLY SOUTH EAST ,8420,ADVERTISING AND PUBLICITY     ,05/07/2012,3291710,ERS INVOICE68954         ,2225.00,JAMES WHITFORD                          ,316926,Mail Services,DELIVERY SERVICES             
CLAIMS                        ,8740,HIGHWAYS                      ,05/07/2012,3291711,ERS INVOICE68955         ,6200.00,ASD SOLICITORS                          ,306819,Legal Services,SOLICITORS                    
CORONIAL SERVICES             ,8440,PATHOLOGIST INVOICE           ,05/07/2012,3291713,ERS INVOICE68957         ,591.90,DR C A WILSON                           ,554965,Medical ,DOCTORS                       
CORONIAL SERVICES             ,8440,PATHOLOGIST INVOICE           ,05/07/2012,3291714,ERS INVOICE68958         ,591.90,DR C A WILSON                           ,554965,Medical ,DOCTORS                       
CORONIAL SERVICES             ,8440,PATHOLOGIST INVOICE           ,05/07/2012,3291715,ERS INVOICE68959         ,595.90,DR C A WILSON                           ,554965,Medical ,DOCTORS                       
COMMUNITY ASSEMBLY EAST       ,9120,OTHER AGENCIES                ,05/07/2012,3291802,ERS INVOICE68962         ,970.00,HANDSWORTH COMMUNITY FORUM              ,328607,Unclassified Non Trade,COMMUNITY PROJECTS            
COMMUNITY ASSEMBLY EAST       ,9120,OTHER AGENCIES                ,05/07/2012,3291804,ERS INVOICE68964         ,968.00,TINSLEY PARENTS & CHILDRENS CONSORTIUM  ,478244,Social Community Care,NURSERIES & CRECHES           
COMMUNITY ASSEMBLY EAST       ,9120,OTHER AGENCIES                ,05/07/2012,3291805,ERS INVOICE68965         ,1000.00,BAISHAKI MELA DARNALL LIMITED           ,487923,Leisure Services,ENTERTAINERS                  
COMMUNITY ASSEMBLY EAST       ,9120,OTHER AGENCIES                ,05/07/2012,3291807,ERS INVOICE68967         ,1000.00,TINSLEY FORUM                           ,303283,Unclassified Non Trade,CHARITIES & VOLUNTARY ORGANISA
COMMUNITY ASSEMBLY EAST       ,9120,OTHER AGENCIES                ,05/07/2012,3291811,ERS INVOICE68971         ,500.00,FRIENDS OF HOLLINSEND PARK              ,480315,Unclassified Non Trade,CHARITIES & VOLUNTARY ORGANISA
COMMUNITY ASSEMBLY EAST       ,9120,OTHER AGENCIES                ,05/07/2012,3291812,ERS INVOICE68972         ,500.00,STRADBROKE & DISTRICT COMMUNITY ASSOCIAT,541181,Unclassified Non Trade,COMMUNITY CENTRES             
COMMISSIONING LEADERSHIP TEAM ,8460,CONSULTANTS FEES              ,05/07/2012,3291813,ERS INVOICE68973         ,1861.00,LUCY O'LEARY                            ,554350,Leisure Services,PROFESSIONAL SPEAKERS         
COMMISSIONING LEADERSHIP TEAM ,8460,CONSULTANTS FEES              ,05/07/2012,3291814,ERS INVOICE68975         ,1034.00,LUCY O'LEARY                            ,554350,Leisure Services,PROFESSIONAL SPEAKERS         
BRADFORD - WY SUB REGION HAL  ,1194,OTHER FEES                    ,05/07/2012,3291815,ERS INVOICE68977         ,15831.95,CITY OF BRADFORD MDC                    ,492479,Unclassified Non Trade,LOCAL GOVERNMENT              
HULL - HUMBER SUB REGION HAL  ,1194,OTHER FEES                    ,05/07/2012,3291844,ERS INVOICE69006         ,11160.00,D H ATKINSON                            ,543717,Construction,BUILDERS                      
HULL - HUMBER SUB REGION HAL  ,1194,OTHER FEES                    ,05/07/2012,3291846,ERS INVOICE69008         ,1425.60,CLASSICAL GAS LTD                       ,546540,Construction,GAS INSTALLERS                
HULL - HUMBER SUB REGION HAL  ,1194,OTHER FEES                    ,05/07/2012,3291848,ERS INVOICE69010         ,5994.00,REDACTED PERSONAL DATA,566257,Unclassified Non Trade,OUT OF SCOPE FOR SIC MONITORIN
HULL - HUMBER SUB REGION HAL  ,1194,OTHER FEES                    ,05/07/2012,3291849,ERS INVOICE69011         ,3312.67,M FOREMAN BUILDERS LTD                  ,545852,Construction,BUILDERS                      
HULL - HUMBER SUB REGION HAL  ,1194,OTHER FEES                    ,05/07/2012,3291853,ERS INVOICE69015         ,3264.00,CLASSICAL GAS LTD                       ,546540,Construction,GAS INSTALLERS                
SWAN COMMISSIONED             ,1143,COMPENSATION                  ,05/07/2012,3291904,ERS INVOICE69066         ,1265.00,REDACTED PERSONAL DATA,569641,Unclassified Non Trade,OUT OF SCOPE FOR SIC MONITORIN
INSURANCE AND RISK            ,5750,TRAINING EXPENDITURE          ,05/07/2012,3276967,22186,830.00,ALARM                                   ,341885,Human Resources,BUSINESS & TRADE ORGANISATIONS
ITC                           ,8440,FEE EXPENSES                  ,05/07/2012,3278627,3022528,1983.00,SHEFFIELD INTERNATIONAL VENUES LTD.     ,208389,Leisure Services,SPORTS GROUNDS & STADIUMS     
COUNCIL TAX COLLECTION        ,4140,LEGAL FEES                    ,05/07/2012,3284169,560717,1400.00,JENNY WRIGLEY                           ,566567,Legal Services,BARRISTERS                    
PLAYGROUND MAINTENANCE & INSPE,8010,EQUIPMENT PURCHASE AND REPAIR ,05/07/2012,3285401,377676,751.52,INSTARMAC GROUP PLC                     ,483173,Building Construction Materials,CONCRETE PRODUCTS             
CAPITAL                       ,9120,OTHER AGENCIES                ,05/07/2012,3285614,S0009307                 ,2257.00,HOMES & COMMUNITIES AGENCY              ,320560,Unclassified Non Trade,DEVELOPMENT AGENCIES          
CARE PROCEEDINGS (LEGAL FEES) ,8470,LEGAL FEES                    ,05/07/2012,3286889,809926,600.00,MS C E FORD                             ,544033,Legal Services,SOLICITORS                    
CARE PROCEEDINGS (LEGAL FEES) ,8470,LEGAL FEES                    ,05/07/2012,3286890,808354,1800.00,MR A J LORD                             ,486218,Legal Services,BARRISTERS                    
CARE PROCEEDINGS (LEGAL FEES) ,8470,LEGAL FEES                    ,05/07/2012,3286891,807389,3550.00,MS S B NIJABAT                          ,525913,Legal Services,BARRISTERS                    
PEST CONTROL                  ,8010,EQUIPMENT PURCHASE AND REPAIR ,05/07/2012,3287130,OP/I523456               ,2105.63,KILLGERM CHEMICALS LTD                  ,206229,Environmental Services,PEST & VERMIN CONTROL PRODUCTS
LD ACTION BUDGET              ,8240,CONFERENCE EXPENSES           ,05/07/2012,3287289,3022745,1500.00,PONDS FORGE                             ,320223,Leisure Services,LEISURE & RECREATION CENTRES  
BIS TELECOMMS                 ,5750,TRAINING EXPENDITURE          ,05/07/2012,3287821,11482,870.00,SMARTSTYLE                              ,481447,Human Resources,TRAINING SERVICES             
ESTATE SERVICES               ,6090,TIPPING COSTS                 ,05/07/2012,3288768,FOR4846                  ,803.70,FORWARD ENVIRONMENTAL LIMITED           ,440387,Environmental Services,PEST & VERMIN CONTROL         
HR & ORG DEVELOPMENT          ,8460,CONSULTANTS FEES              ,05/07/2012,3288885,12089,1630.00,HEALTH MANAGEMENT                       ,531359,Medical ,OCCUPATIONAL HEALTH           
CRYSTAL PEAKS MARKET          ,6210,RENTS                         ,05/07/2012,3289426,500771/004920            ,4611.26,BRITEL FUND TRUSTEES LTD                ,566694,Unclassified Trade,LETTING AGENTS                
SEN TAXIS                     ,7060,EXTERNAL VEHICLE HIRE         ,05/07/2012,3291482,1012,1864.60,SHEFFIELD TAXI SERVICES LTD             ,208407,Transport,TAXIS & PRIVATE HIRE          
CRYSTAL PEAKS MARKET          ,6210,RENTS                         ,05/07/2012,3289427,500771/004920            ,5687.50,BRITEL FUND TRUSTEES LTD                ,566694,Unclassified Trade,LETTING AGENTS                
CRYSTAL PEAKS MARKET          ,6270,SERVICE / PFI UNITARY CHARGE  ,05/07/2012,3289428,500771/004920            ,36363.00,BRITEL FUND TRUSTEES LTD                ,566694,Unclassified Trade,LETTING AGENTS                
FURNISHED ACCOMMODATION       ,8050,FLOOR COVERINGS               ,05/07/2012,3289485,15236,14950.00,PYRAMID CARPETS                         ,243612,Building Construction Materials,CARPETS & RUGS - RETAIL       
CAPITA CONTROL A/C            ,9620,FINANCIAL PROCESSES           ,05/07/2012,3289662,92531233,1889154.00,CAPITA BUSINESS SERVICES LTD            ,505663,Human Resources,BUSINESS INFORMATION SERVICES 
ITC                           ,8020,EQUIPMENT LEASE/ RENTAL/ HIRE ,05/07/2012,3289850,10284,4850.00,BIG TV UK LTD                           ,467143,Domestic Goods,TELEVISION & VIDEO RENTAL     
SCHOOLS ACCESS INITIATIVE     ,1183,PURCHASE OF EQUIPMENT         ,05/07/2012,3289972,49390,827.25,JCM SEATING SOLUTIONS LTD               ,348291,Medical ,DISABILITY EQUIPMENT - MNFRS &
ITC                           ,8020,EQUIPMENT LEASE/ RENTAL/ HIRE ,05/07/2012,3290011,21122,3720.60,TEGA HULL LIMITED                       ,362952,Leisure Services,"THEATRICAL COSTUMES, EQUIPMENT"
PROGRAMME DELIVERY TEAM       ,8440,FEE EXPENSES                  ,05/07/2012,3290163,633,2535.08,VOICEABILITY ADVOCACY                   ,416217,Unclassified Non Trade,CHARITIES & VOLUNTARY ORGANISA
BIS CORE SERVICES             ,8270,SUBSCRIPTIONS                 ,05/07/2012,3290166,6290305492,2000.00,LEEDS CITY COUNCIL                      ,316373,Unclassified Non Trade,LOCAL GOVERNMENT              
PURCHASING & PAYMENTS TEAM    ,8600,MOBILE TELEPHONES             ,05/07/2012,3290263,950926,520.84,CHIEF EXECUTIVE DIRECTORATE (HOMES)     ,402954,Unclassified Non Trade,LOCAL GOVERNMENT              
PURCHASING & PAYMENTS TEAM    ,7060,EXTERNAL VEHICLE HIRE         ,05/07/2012,3290264,951216,8840.34,TRANSPORT & COMMERCIAL SERVICES (HOMES) ,387596,Unclassified Non Trade,LOCAL GOVERNMENT              
LOCAL ELECTIONS               ,8010,EQUIPMENT PURCHASE AND REPAIR ,05/07/2012,3290392,241295599,750.00,SWINDON BOROUGH COUNCIL                 ,398525,Unclassified Non Trade,LOCAL GOVERNMENT              
TRANSPORT FLEET MANAGEMENT    ,7040,OTHER VEHICLE RUNNING COSTS   ,05/07/2012,3290395,508,3125.14,VISILINK LIMITED                        ,562784,Vehicles Not Buses,COMMERCIAL VEHICLE SECURITY   
RESOURCES EFFICIENCY NORTH    ,9120,OTHER AGENCIES                ,05/07/2012,3290441,DR/283                   ,5850.00,PARKINSON PROCUREMENT SOLUTIONS LTD     ,487014,Consultancy,BUSINESS & MANAGEMENT CONSULTA
PAYMENT HOLDING ACCOUNT       ,8350,MISCELLANEOUS EXPENSES        ,05/07/2012,3290520,12010001,836777.00,KIER SHEFFIELD LLP                      ,352687,Construction,PROPERTY MAINTENANCE & REPAIRS
PAYMENT HOLDING ACCOUNT       ,8350,MISCELLANEOUS EXPENSES        ,05/07/2012,3290521,12010002,836777.00,KIER SHEFFIELD LLP                      ,352687,Construction,PROPERTY MAINTENANCE & REPAIRS
ACCOMMODATION                 ,6170,COMBINED HEAT AND POWER       ,05/07/2012,3290783,951010,2463.38,CHIEF EXECUTIVE DIRECTORATE (HOMES)     ,402954,Unclassified Non Trade,LOCAL GOVERNMENT              
ACCOMMODATION                 ,6020,REPAIRS AND MTCE - PROGRAMMED ,05/07/2012,3290785,951339,4015.70,NEIGHBOURHOODS DIRECTORATE (HOMES)      ,402953,Unclassified Non Trade,LOCAL GOVERNMENT              
ACCOMMODATION                 ,6030,REPAIRS AND MTCE - RESPONSIVE ,05/07/2012,3290785,951339,2585.45,NEIGHBOURHOODS DIRECTORATE (HOMES)      ,402953,Unclassified Non Trade,LOCAL GOVERNMENT              
DISADVANTAGED AREA FUNDING    ,9120,OTHER AGENCIES                ,05/07/2012,3290786,41087,10000.00,SHEFFIELD CAB DEBT SUPPORT UNIT         ,395747,Medical ,COUNSELLING & ADVICE SERVICES 
HIST                          ,8620,COMPUTER MAINTENANCE          ,05/07/2012,3290788,950982,4226.24,CHIEF EXECUTIVE DIRECTORATE (HOMES)     ,402954,Unclassified Non Trade,LOCAL GOVERNMENT              
HIST                          ,8590,LANDLINE TELEPHONES           ,05/07/2012,3290789,950917,4038.80,CHIEF EXECUTIVE DIRECTORATE (HOMES)     ,402954,Unclassified Non Trade,LOCAL GOVERNMENT              
PURCHASING & PAYMENTS TEAM    ,8600,MOBILE TELEPHONES             ,05/07/2012,3290789,950917,5641.65,CHIEF EXECUTIVE DIRECTORATE (HOMES)     ,402954,Unclassified Non Trade,LOCAL GOVERNMENT              
ADOPTION SERVICE              ,8440,FEE EXPENSES                  ,05/07/2012,3290792,1229,1200.00,REDACTED PERSONAL DATA,347957,Social Community Care,ADOPTION & FOSTERING          
OTHER REPAIRS & FEES          ,6030,OTHER RESPONSIVE REPAIRS      ,05/07/2012,3290976,159A                     ,913.00,F CROFT ROOFING CONTRACTORS             ,568775,Building Construction Materials,ROOFING SUPPLIES & MATERIALS  
CITY WIDE CARE ALARMS         ,8210,LICENCES EXPENSES             ,05/07/2012,3291151,136345I                  ,3712.15,EXPERIAN LTD                            ,417758,Financial Services,CREDIT REFERENCE AGENCIES     
CREATIVE SERVICES             ,9120,OTHER AGENCIES                ,05/07/2012,3291187,61232,1014.00,PRINT AND DESIGN FACTORY LTD.           ,207663,Facilities Management,PRINTERS                      
PLAYGROUND MAINTENANCE & INSPE,8010,EQUIPMENT PURCHASE AND REPAIR ,05/07/2012,3291192,INV096494                ,4464.00,BROXAP LTD                              ,203555,Unclassified Trade,METAL PRODUCTS - FABRICATED   
PROVIDER CONTRACT AUG11-JUL12 ,9120,OTHER AGENCIES                ,05/07/2012,3291442,10MAY2012/CREDIT         ,4053.00,FLOWER ESTATE FAMILY ACTION (GROUP A/C) ,418616,Unclassified Non Trade,CHARITIES & VOLUNTARY ORGANISA
CREATIVE SERVICES             ,9120,OTHER AGENCIES                ,05/07/2012,3291456,113648,536.00,J W NORTHEND LIMITED                    ,328423,Facilities Management,PRINTERS                      
MINIBUSES - SHEFFTAX TENDERED ,7060,EXTERNAL VEHICLE HIRE         ,05/07/2012,3291467,1013,10133.76,SHEFFIELD TAXI SERVICES LTD             ,208407,Transport,TAXIS & PRIVATE HIRE          
ESCORTS                       ,7060,EXTERNAL VEHICLE HIRE         ,05/07/2012,3291469,1011,3228.18,SHEFFIELD TAXI SERVICES LTD             ,208407,Transport,TAXIS & PRIVATE HIRE          
SEN TAXIS                     ,7060,EXTERNAL VEHICLE HIRE         ,05/07/2012,3291474,1014,5173.97,SHEFFIELD TAXI SERVICES LTD             ,208407,Transport,TAXIS & PRIVATE HIRE          
MCA SUPPORT TEAM              ,8440,FEE EXPENSES                  ,05/07/2012,3291483,2012/13-7                ,1196.34,SHEFFIELD MENTAL HEALTH C.A.B.          ,316902,Social Community Care,MENTAL HEALTH CENTRES         
WORKFORCE DEVELOPMENT         ,5610,AGENCY STAFF                  ,05/07/2012,3291488,3516959,503.74,CAPITA EDUCATION RESOURCING             ,203721,Human Resources,EMPLOYMENT & RECRUITMENT AGENC
CATERING CONTRACT             ,8440,FEE EXPENSES                  ,05/07/2012,3291534,01489935/00290198        ,2576.40,G4S CASH SERVICES (UK) LIMITED          ,208285,Facilities Management,SECURITY SERVICES             
PFI 4                         ,8350,MISCELLANEOUS EXPENSES        ,05/07/2012,3291546,134,880.00,PARADIGM (SHEFFIELD BSF) LIMITED        ,472691,Facilities Management,FACILITIES MANAGEMENT         
PFI 4                         ,8350,MISCELLANEOUS EXPENSES        ,05/07/2012,3291572,136,5000.00,PARADIGM (SHEFFIELD BSF) LIMITED        ,472691,Facilities Management,FACILITIES MANAGEMENT         
TRAINING - BROCKWOOD          ,5750,TRAINING EXPENDITURE          ,05/07/2012,3291695,202610,585.00,THE SROI NETWORK LIMITED                ,569767,Human Resources,TRAINING SERVICES             
NEW BANK HOUSE                ,6150,ELECTRICITY                   ,05/07/2012,3291463,2714-015                 ,3088.69,NPOWER NORTHERN LTD                     ,207191,Utilities,ELECTRICITY COMPANIES         
HILLSBOROUGH BARRACKS UNIT 7  ,6150,ELECTRICITY                   ,05/07/2012,3291463,2714-015                 ,672.82,NPOWER NORTHERN LTD                     ,207191,Utilities,ELECTRICITY COMPANIES         
BURNGREAVE NEW DEAL           ,6150,ELECTRICITY                   ,05/07/2012,3291491,27141267,1820.70,NPOWER NORTHERN LTD                     ,207191,Utilities,ELECTRICITY COMPANIES         
MOORFOOT BUILDING             ,6150,ELECTRICITY                   ,05/07/2012,3291498,27140083,12088.69,NPOWER NORTHERN LTD                     ,207191,Utilities,ELECTRICITY COMPANIES         
MOORFOOT BUILDING             ,6150,ELECTRICITY                   ,05/07/2012,3291499,27140083,11931.01,NPOWER NORTHERN LTD                     ,207191,Utilities,ELECTRICITY COMPANIES         
STANIFORTH ROAD DEPOT         ,6150,ELECTRICITY                   ,05/07/2012,3291501,27140727,3110.56,NPOWER NORTHERN LTD                     ,207191,Utilities,ELECTRICITY COMPANIES         
STANIFORTH ROAD DEPOT         ,6150,ELECTRICITY                   ,05/07/2012,3291504,27140727,3293.49,NPOWER NORTHERN LTD                     ,207191,Utilities,ELECTRICITY COMPANIES         
TOWN HALL                     ,6150,ELECTRICITY                   ,05/07/2012,3291507,27140748,17732.80,NPOWER NORTHERN LTD                     ,207191,Utilities,ELECTRICITY COMPANIES         
TOWN HALL                     ,6150,ELECTRICITY                   ,05/07/2012,3291509,27140748,16809.72,NPOWER NORTHERN LTD                     ,207191,Utilities,ELECTRICITY COMPANIES         
CRYSTAL PEAKS                 ,6150,ELECTRICITY                   ,05/07/2012,3291510,27140725,1531.07,NPOWER NORTHERN LTD                     ,207191,Utilities,ELECTRICITY COMPANIES         
STANIFORTH ROAD DEPOT         ,6150,ELECTRICITY                   ,05/07/2012,3291516,27140750,602.61,NPOWER NORTHERN LTD                     ,207191,Utilities,ELECTRICITY COMPANIES         
STANIFORTH ROAD DEPOT         ,6150,ELECTRICITY                   ,05/07/2012,3291518,27140750,639.91,NPOWER NORTHERN LTD                     ,207191,Utilities,ELECTRICITY COMPANIES         
CARBROOK                      ,6150,ELECTRICITY                   ,05/07/2012,3291519,27140742,637.22,NPOWER NORTHERN LTD                     ,207191,Utilities,ELECTRICITY COMPANIES         
STANIFORTH ROAD WORKSHOPS     ,7010,ROUTINE VEHICLE REPAIR & MTCE ,05/07/2012,3291520,15056882,890.89,LOOKERS FORD                            ,474939,Vehicles Not Buses,CAR DEALERS                   
REDVERS HOUSE                 ,6150,ELECTRICITY                   ,05/07/2012,3291524,27140760,1971.63,NPOWER NORTHERN LTD                     ,207191,Utilities,ELECTRICITY COMPANIES         
CARBROOK                      ,6150,ELECTRICITY                   ,05/07/2012,3291525,27140742,590.28,NPOWER NORTHERN LTD                     ,207191,Utilities,ELECTRICITY COMPANIES         
REDVERS HOUSE                 ,6150,ELECTRICITY                   ,05/07/2012,3291527,27140760,2569.78,NPOWER NORTHERN LTD                     ,207191,Utilities,ELECTRICITY COMPANIES         
CARBROOK                      ,6150,ELECTRICITY                   ,05/07/2012,3291557,27140743,1809.35,NPOWER NORTHERN LTD                     ,207191,Utilities,ELECTRICITY COMPANIES         
SYFP & FC                     ,6150,ELECTRICITY                   ,05/07/2012,3291582,27140029,760.23,NPOWER NORTHERN LTD                     ,207191,Utilities,ELECTRICITY COMPANIES         
ACRES HILL                    ,6150,ELECTRICITY                   ,05/07/2012,3291588,27140144,774.05,NPOWER NORTHERN LTD                     ,207191,Utilities,ELECTRICITY COMPANIES         
MEERSBROOK PARK               ,6150,ELECTRICITY                   ,05/07/2012,3291596,27140423,1308.03,NPOWER NORTHERN LTD                     ,207191,Utilities,ELECTRICITY COMPANIES         
CRYSTAL PEAKS                 ,6150,ELECTRICITY                   ,05/07/2012,3291597,27140725,1599.78,NPOWER NORTHERN LTD                     ,207191,Utilities,ELECTRICITY COMPANIES         
INCLUSION CENTRE              ,6150,ELECTRICITY                   ,05/07/2012,3291613,27140093,1502.99,NPOWER NORTHERN LTD                     ,207191,Utilities,ELECTRICITY COMPANIES         
BURNGREAVE NEW DEAL           ,6150,ELECTRICITY                   ,05/07/2012,3291638,27141267,1956.89,NPOWER NORTHERN LTD                     ,207191,Utilities,ELECTRICITY COMPANIES         
CARBROOK                      ,6150,ELECTRICITY                   ,05/07/2012,3291640,27140743,1965.21,NPOWER NORTHERN LTD                     ,207191,Utilities,ELECTRICITY COMPANIES         
CENTRAL LIBRARY               ,6150,ELECTRICITY                   ,05/07/2012,3291652,27140747,2522.84,NPOWER NORTHERN LTD                     ,207191,Utilities,ELECTRICITY COMPANIES         
CENTRAL LIBRARY               ,6150,ELECTRICITY                   ,05/07/2012,3291653,27140747,2661.94,NPOWER NORTHERN LTD                     ,207191,Utilities,ELECTRICITY COMPANIES         
STANIFORTH ROAD WORKSHOPS     ,8070,STOCKS AND STORES             ,05/07/2012,3291735,14481267,962.85,LOOKERS FORD                            ,474939,Vehicles Not Buses,CAR DEALERS                   
PURCHASING & PAYMENTS TEAM    ,6150,ELECTRICITY                   ,05/07/2012,3291738,Q335-002                 ,4165.10,NPOWER NORTHERN LTD                     ,207191,Utilities,ELECTRICITY COMPANIES         
GYPSY AND TRAVELLER SITES     ,6150,ELECTRICITY                   ,05/07/2012,3291794,27140796,1725.35,NPOWER NORTHERN LTD                     ,207191,Utilities,ELECTRICITY COMPANIES         
GYPSY AND TRAVELLER SITES     ,6150,ELECTRICITY                   ,05/07/2012,3291795,27140797,4038.40,NPOWER NORTHERN LTD                     ,207191,Utilities,ELECTRICITY COMPANIES         
PURCHASING LEARNING DISABILITI,9190,DIRECT PAYMENTS               ,05/07/2012,3291372,J497790                  ,1945.92,REDACTED PERSONAL DATA,352409,Social Community Care,CAREFIRST DIRECT PAYMENTS     
PURCHASING LEARNING DISABILITI,9190,DIRECT PAYMENTS               ,05/07/2012,3291373,J497790                  ,544.82,REDACTED PERSONAL DATA,423985,Social Community Care,CAREFIRST DIRECT PAYMENTS     
PURCHASING LEARNING DISABILITI,9190,DIRECT PAYMENTS               ,05/07/2012,3291375,J497790                  ,729.04,REDACTED PERSONAL DATA,437122,Social Community Care,CAREFIRST DIRECT PAYMENTS     
PURCHASING ELDERLY            ,9190,DIRECT PAYMENTS               ,05/07/2012,3291376,J497790                  ,6105.89,REDACTED PERSONAL DATA,439455,Social Community Care,CAREFIRST DIRECT PAYMENTS     
PURCHASING ELDERLY            ,9190,DIRECT PAYMENTS               ,05/07/2012,3291379,J497790                  ,3798.60,REDACTED PERSONAL DATA,514835,Social Community Care,CAREFIRST DIRECT PAYMENTS     
PURCHASING ELDERLY            ,9190,DIRECT PAYMENTS               ,05/07/2012,3291380,J497790                  ,1150.00,REDACTED PERSONAL DATA,515241,Social Community Care,CAREFIRST DIRECT PAYMENTS     
PURCHASING                    ,9190,DIRECT PAYMENTS               ,05/07/2012,3291386,J497790                  ,1362.74,REDACTED PERSONAL DATA,556296,Social Community Care,CAREFIRST DIRECT PAYMENTS     
PURCHASING LEARNING DISABILITI,9190,DIRECT PAYMENTS               ,05/07/2012,3291387,J497790                  ,16545.91,REDACTED PERSONAL DATA,556454,Social Community Care,CAREFIRST DIRECT PAYMENTS     
PURCHASING ELDERLY            ,9190,DIRECT PAYMENTS               ,05/07/2012,3291388,J497790                  ,2165.50,REDACTED PERSONAL DATA,556890,Social Community Care,CAREFIRST DIRECT PAYMENTS     
PURCHASING LEARNING DISABILITI,9190,DIRECT PAYMENTS               ,05/07/2012,3291388,J497790                  ,8708.77,REDACTED PERSONAL DATA,556890,Social Community Care,CAREFIRST DIRECT PAYMENTS     
PURCHASING ELDERLY            ,9190,DIRECT PAYMENTS               ,05/07/2012,3291389,J497790                  ,2213.18,REDACTED PERSONAL DATA,558626,Social Community Care,CAREFIRST DIRECT PAYMENTS     
PURCHASING ELDERLY            ,9190,DIRECT PAYMENTS               ,05/07/2012,3291390,J497790                  ,3354.85,REDACTED PERSONAL DATA,558820,Social Community Care,CAREFIRST DIRECT PAYMENTS     
PURCHASING                    ,9190,DIRECT PAYMENTS               ,05/07/2012,3291391,J497790                  ,3576.15,REDACTED PERSONAL DATA,558848,Social Community Care,CAREFIRST DIRECT PAYMENTS     
PURCHASING LEARNING DISABILITI,9190,DIRECT PAYMENTS               ,05/07/2012,3291392,J497790                  ,3390.26,REDACTED PERSONAL DATA,562178,Social Community Care,CAREFIRST DIRECT PAYMENTS     
PURCHASING ELDERLY            ,9190,DIRECT PAYMENTS               ,05/07/2012,3291393,J497790                  ,8458.18,REDACTED PERSONAL DATA,565200,Social Community Care,CAREFIRST DIRECT PAYMENTS     
PURCHASING ELDERLY            ,9190,DIRECT PAYMENTS               ,05/07/2012,3291394,J497790                  ,1676.17,REDACTED PERSONAL DATA,569524,Social Community Care,CAREFIRST DIRECT PAYMENTS     
PURCHASING                    ,9190,DIRECT PAYMENTS               ,05/07/2012,3291395,J497790                  ,4681.10,REDACTED PERSONAL DATA,569583,Social Community Care,CAREFIRST DIRECT PAYMENTS     
PURCHASING                    ,9190,DIRECT PAYMENTS               ,05/07/2012,3291396,J497790                  ,538.00,REDACTED PERSONAL DATA,569585,Social Community Care,CAREFIRST DIRECT PAYMENTS     
PURCHASING ELDERLY            ,9190,DIRECT PAYMENTS               ,05/07/2012,3291397,J497790                  ,1568.98,REDACTED PERSONAL DATA,569586,Social Community Care,CAREFIRST DIRECT PAYMENTS     
PURCHASING ELDERLY            ,9190,DIRECT PAYMENTS               ,05/07/2012,3291398,J497790                  ,2645.65,REDACTED PERSONAL DATA,569588,Social Community Care,CAREFIRST DIRECT PAYMENTS     
PURCHASING ELDERLY            ,9190,DIRECT PAYMENTS               ,05/07/2012,3291399,J497790                  ,4103.19,REDACTED PERSONAL DATA,569593,Social Community Care,CAREFIRST DIRECT PAYMENTS     
PDSI PURCHASING               ,9190,DIRECT PAYMENTS               ,05/07/2012,3291401,J497790                  ,7818.00,REDACTED PERSONAL DATA,569600,Social Community Care,CAREFIRST DIRECT PAYMENTS     
PURCHASING ELDERLY            ,9190,DIRECT PAYMENTS               ,05/07/2012,3291402,J497790                  ,1840.00,REDACTED PERSONAL DATA,569601,Unclassified Non Trade,OUT OF SCOPE FOR SIC MONITORIN
PURCHASING LEARNING DISABILITI,9190,DIRECT PAYMENTS               ,05/07/2012,3291403,J497790                  ,613.60,REDACTED PERSONAL DATA,569606,Social Community Care,CAREFIRST DIRECT PAYMENTS     
PURCHASING ELDERLY            ,9190,DIRECT PAYMENTS               ,05/07/2012,3291404,J497790                  ,4690.71,REDACTED PERSONAL DATA,569607,Social Community Care,CAREFIRST DIRECT PAYMENTS     
PURCHASING ELDERLY            ,9190,DIRECT PAYMENTS               ,05/07/2012,3291407,J497790                  ,1585.71,REDACTED PERSONAL DATA,569612,Social Community Care,CAREFIRST DIRECT PAYMENTS     
PURCHASING                    ,9190,DIRECT PAYMENTS               ,05/07/2012,3291408,J497790                  ,1716.29,REDACTED PERSONAL DATA,569655,Social Community Care,CAREFIRST DIRECT PAYMENTS     
PURCHASING LEARNING DISABILITI,9250,INDEPENDENT DAY CARE          ,05/07/2012,3291413,13991,914.40,BURTON STREET PROJECT                   ,342774,Unclassified Non Trade,CHARITIES & VOLUNTARY ORGANISA
PURCHASING LEARNING DISABILITI,9250,INDEPENDENT DAY CARE          ,05/07/2012,3291414,13992,738.00,BURTON STREET PROJECT                   ,342774,Unclassified Non Trade,CHARITIES & VOLUNTARY ORGANISA
PURCHASING LEARNING DISABILITI,9250,INDEPENDENT DAY CARE          ,05/07/2012,3291418,3200,564.00,BURTON STREET PROJECT                   ,342774,Unclassified Non Trade,CHARITIES & VOLUNTARY ORGANISA
PURCHASING LEARNING DISABILITI,9250,INDEPENDENT DAY CARE          ,05/07/2012,3291419,3201,564.00,BURTON STREET PROJECT                   ,342774,Unclassified Non Trade,CHARITIES & VOLUNTARY ORGANISA
PDSI PURCHASING               ,9190,CITYWIDE SPOT                 ,05/07/2012,3291420,J496666 240612           ,871.92,UNITED RESPONSE                         ,329604,Unclassified Non Trade,CHARITIES & VOLUNTARY ORGANISA
PURCHASING ELDERLY            ,9190,CITYWIDE SPOT                 ,05/07/2012,3291420,J496666 240612           ,9225.72,UNITED RESPONSE                         ,329604,Unclassified Non Trade,CHARITIES & VOLUNTARY ORGANISA
PURCHASING LEARNING DISABILITI,9190,CITYWIDE SPOT                 ,05/07/2012,3291420,J496666 240612           ,12946.80,UNITED RESPONSE                         ,329604,Unclassified Non Trade,CHARITIES & VOLUNTARY ORGANISA
TRANSITIONS                   ,9190,CITYWIDE SPOT                 ,05/07/2012,3291420,J496666 240612           ,777.60,UNITED RESPONSE                         ,329604,Unclassified Non Trade,CHARITIES & VOLUNTARY ORGANISA
PURCHASING                    ,9190,CITYWIDE SPOT                 ,05/07/2012,3291421,J496669 240612           ,7688.56,SUPPORTED HOUSING SERVICES              ,294949,Facilities Management,HOSTELS                       
PDSI PURCHASING               ,9190,CITYWIDE SPOT                 ,05/07/2012,3291422,J496697 240612           ,1851.83,REDACTED PERSONAL DATA,532473,Social Community Care,HOME CARE SERVICES            
PURCHASING ELDERLY            ,9190,CITYWIDE SPOT                 ,05/07/2012,3291422,J496697 240612           ,19715.60,REDACTED PERSONAL DATA,532473,Social Community Care,HOME CARE SERVICES            
PURCHASING                    ,9190,CITYWIDE SPOT                 ,05/07/2012,3291423,463,819.08,REDACTED PERSONAL DATA,204388,Social Community Care,HOME CARE SERVICES            
PURCHASING LEARNING DISABILITI,9190,CITYWIDE SPOT                 ,05/07/2012,3291424,SIMI0137521              ,1259.64,REDACTED PERSONAL DATA,524237,Social Community Care,HOME CARE SERVICES            
PURCHASING LEARNING DISABILITI,9190,CITYWIDE SPOT                 ,05/07/2012,3291425,SIMI037520               ,2225.56,REDACTED PERSONAL DATA,524237,Social Community Care,HOME CARE SERVICES            
PURCHASING LEARNING DISABILITI,9190,CITYWIDE SPOT                 ,05/07/2012,3291426,SIMI037522               ,2311.32,REDACTED PERSONAL DATA,524237,Social Community Care,HOME CARE SERVICES            
PURCHASING LEARNING DISABILITI,9190,CITYWIDE SPOT                 ,05/07/2012,3291427,SIMI037523               ,2168.00,REDACTED PERSONAL DATA,524237,Social Community Care,HOME CARE SERVICES            
PURCHASING LEARNING DISABILITI,9190,CITYWIDE SPOT                 ,05/07/2012,3291428,SIMI037524               ,3111.32,REDACTED PERSONAL DATA,524237,Social Community Care,HOME CARE SERVICES            
PURCHASING LEARNING DISABILITI,9190,CITYWIDE SPOT                 ,05/07/2012,3291429,SIMI037525               ,2334.08,REDACTED PERSONAL DATA,524237,Social Community Care,HOME CARE SERVICES            
PURCHASING LEARNING DISABILITI,9190,CITYWIDE SPOT                 ,05/07/2012,3291430,SIMI037526               ,1679.28,REDACTED PERSONAL DATA,524237,Social Community Care,HOME CARE SERVICES            
PURCHASING LEARNING DISABILITI,9190,CITYWIDE SPOT                 ,05/07/2012,3291431,SIMI037527               ,1948.76,REDACTED PERSONAL DATA,524237,Social Community Care,HOME CARE SERVICES            
INDEPENDENT FOSTERING PLACEMEN,9270,INDEPENDENT FOSTERING         ,05/07/2012,3291367,630042106,2886.80,REDACTED PERSONAL DATA,328618,Social Community Care,ADOPTION & FOSTERING          
PURCHASING LEARNING DISABILITI,9210,CONTINUING NURSING CARE       ,05/07/2012,3291351,J485133 240612           ,5268.60,FAIRBURN HEALTHCARE (VALE) LTD          ,453402,Social Community Care,NURSING HOMES                 
PURCHASING ELDERLY            ,9200,CONTINUING RESIDENTIAL CARE   ,05/07/2012,3291352,J485165 240612           ,1619.08,BLUEBELL LODGE                          ,508457,Social Community Care,RESIDENTIAL CARE HOMES        
PURCHASING ELDERLY            ,9200,CONTINUING RESIDENTIAL CARE   ,05/07/2012,3291354,J491637 220712           ,22206.86,BELMONT HOUSE NURSING HOME              ,361754,Social Community Care,RESIDENTIAL CARE HOMES        
PURCHASING ELDERLY            ,9210,CONTINUING NURSING CARE       ,05/07/2012,3291354,J491637 220712           ,8292.00,BELMONT HOUSE NURSING HOME              ,361754,Social Community Care,RESIDENTIAL CARE HOMES        
PURCHASING ELDERLY            ,9200,CONTINUING RESIDENTIAL CARE   ,05/07/2012,3291355,J491664 220712           ,1916.00,QUEENSWOOD METHODIST RES HOME           ,361934,Social Community Care,RESIDENTIAL CARE HOMES        
PURCHASING ELDERLY            ,9200,CONTINUING RESIDENTIAL CARE   ,05/07/2012,3291356,J491792 220712           ,1449.52,METHODIST HOMES FOR THE AGED            ,415177,Social Community Care,RESIDENTIAL CARE HOMES        
PURCHASING ELDERLY            ,9200,CONTINUING RESIDENTIAL CARE   ,05/07/2012,3291358,J497814 220712           ,31264.00,TAPTON EDGE REST HOME LTD               ,361786,Social Community Care,REST & RETIREMENT HOMES       
PURCHASING ELDERLY            ,9200,CONTINUING RESIDENTIAL CARE   ,05/07/2012,3291359,J497815 220712           ,16912.56,HALLAMSHIRE REST HOME                   ,362093,Social Community Care,REST & RETIREMENT HOMES       
PURCHASING ELDERLY            ,9210,CONTINUING NURSING CARE       ,05/07/2012,3291360,J497816 220712           ,3407.29,WESTBOURNE HOUSE                        ,362111,Social Community Care,NURSING HOMES                 
PURCHASING ELDERLY            ,9210,CONTINUING NURSING CARE       ,05/07/2012,3291361,J497817 220712           ,3970.00,NEWFIELD NURSING HOME                   ,361980,Social Community Care,NURSING HOMES                 
PURCHASING ELDERLY            ,9200,CONTINUING RESIDENTIAL CARE   ,05/07/2012,3291362,J497818 220712           ,9768.85,ROSEBERRY CARE CENTRES GB LTD           ,362099,Social Community Care,RESIDENTIAL CARE HOMES        
PURCHASING ELDERLY            ,9210,CONTINUING NURSING CARE       ,05/07/2012,3291362,J497818 220712           ,17177.40,ROSEBERRY CARE CENTRES GB LTD           ,362099,Social Community Care,RESIDENTIAL CARE HOMES        
PURCHASING ELDERLY            ,9200,CONTINUING RESIDENTIAL CARE   ,05/07/2012,3291363,J497820 220712           ,3648.00,NORTON LEES HALL/LODGE                  ,433750,Unclassified Non Trade,SCHOOLS - LOCAL AUTHORITY     
PURCHASING ELDERLY            ,9200,CONTINUING RESIDENTIAL CARE   ,05/07/2012,3291364,J497821 220712           ,2622.00,SANCTUARY CARE LIMITED                  ,560422,Social Community Care,NURSING HOMES                 
PURCHASING LEARNING DISABILITI,9200,SHORT TERM RESIDENTIAL CARE   ,05/07/2012,3291365,J491559 240612           ,3589.04,WILLOWBECK CARE CENTRE                  ,362132,Social Community Care,NURSING HOMES                 
PURCHASING ELDERLY            ,9200,SHORT TERM RESIDENTIAL CARE   ,05/07/2012,3291366,J497804 240612           ,2962.71,GRANGE CRESCENT                         ,361898,Social Community Care,RESIDENTIAL CARE HOMES        
DISABLED GRANTS               ,1165,NC&A OTHER                    ,06/07/2012,3292359,ERS INVOICE69068         ,1741.00,STANNAH LIFT SERVICES LTD.              ,208625,Social Community Care,STAIRLIFTS - MNFRS & INSTALLER
DISABLED GRANTS               ,1165,NC&A OTHER                    ,06/07/2012,3292360,ERS INVOICE69069         ,4715.00,ABLE BATHING & BUILDING CONTRACTORS     ,503765,Construction,BUILDERS                      
DISABLED GRANTS               ,1165,NC&A OTHER                    ,06/07/2012,3292361,ERS INVOICE69070         ,4025.00,FOGG & GIBBS                            ,296259,Construction,PLUMBERS                      
DISABLED GRANTS               ,1165,NC&A OTHER                    ,06/07/2012,3292362,ERS INVOICE69071         ,2643.71,WOODSEATS PLUMBING CO LTD               ,209595,Construction,PLUMBERS                      
DISABLED GRANTS               ,1165,NC&A OTHER                    ,06/07/2012,3292363,ERS INVOICE69072         ,4569.00,STANNAH LIFT SERVICES LTD.              ,208625,Social Community Care,STAIRLIFTS - MNFRS & INSTALLER
DISABLED GRANTS               ,1165,NC&A OTHER                    ,06/07/2012,3292364,ERS INVOICE69073         ,10793.23,ABACUS HEALTHCARE SERVICES LTD          ,562795,Medical ,MOBILITY EQUIPMENT            
DISABLED GRANTS               ,1165,NC&A OTHER                    ,06/07/2012,3292365,ERS INVOICE69074         ,2290.00,CLARK & PARTNERS LTD                    ,203928,Medical ,DISABILITY EQUIPMENT - MNFRS &
DISABLED GRANTS               ,1165,NC&A OTHER                    ,06/07/2012,3292366,ERS INVOICE69075         ,1984.00,STANNAH LIFT SERVICES LTD.              ,208625,Social Community Care,STAIRLIFTS - MNFRS & INSTALLER
VS - BUILDING COHESION        ,8180,GRANTS                        ,06/07/2012,3292367,ERS INVOICE69076         ,2776.00,CHINESE COMMUNITY CENTRE                ,321265,Unclassified Non Trade,CHARITIES & VOLUNTARY ORGANISA
VS- VCS GENERAL               ,8180,GRANTS                        ,06/07/2012,3292369,ERS INVOICE69078         ,10000.00,VOLUNTARY ACTION SHEFFIELD              ,295283,Unclassified Non Trade,CHARITIES & VOLUNTARY ORGANISA
DELEGATED BUDGETS             ,9120,OTHER AGENCIES                ,06/07/2012,3292386,ERS INVOICE69095         ,24823.43,AON LIMITED                             ,319158,Financial Services,INSURANCE - OTHER             
COMMUNITY ASSEMBLY SOUTH      ,9120,OTHER AGENCIES                ,06/07/2012,3292423,ERS INVOICE69096         ,650.00,SHER-E-BANGLA HOMEWORK SUPPORT          ,370165,Unclassified Non Trade,YOUTH ORGANISATIONS & CENTRES 
VSP DELIVER                   ,9140,PRIVATE CONTRACTORS           ,06/07/2012,3292424,ERS INVOICE69097         ,15498.45,ENDEAVOUR TRAINING                      ,347945,Human Resources,TRAINING SERVICES             
SWAN                          ,1146,L&B PROFESSIONAL FEES         ,06/07/2012,3292425,ERS INVOICE69098         ,70543.00,WAKE SMITH & TOFIELDS SOLICITORS        ,209393,Legal Services,SOLICITORS                    
PROJECT MANAGEMENT - SCHEME   ,8350,MISCELLANEOUS EXPENSES        ,06/07/2012,3275761,5443,850.00,AMBIENT ENERGY & ENVIRONEMNT LIMITED    ,480355,Facilities Management,DESIGN CONSULTANTS            
PROJECT MANAGEMENT - SCHEME   ,8350,MISCELLANEOUS EXPENSES        ,06/07/2012,3275763,5442,3050.00,AMBIENT ENERGY & ENVIRONEMNT LIMITED    ,480355,Facilities Management,DESIGN CONSULTANTS            
SHEFFIELD HOMES TREES         ,6370,GROUNDS MTCE AND ARBORICULTURE,06/07/2012,3276851,1933,840.00,ANDERSON TREE CARE LTD                  ,316084,Environmental Services,TREE WORK & FORESTRY SERVICES 
WOODLANDS                     ,8260,WOODLAND DEVELOPMENT EXPENSES ,06/07/2012,3284280,21395,2280.00,STREETMASTER (SOUTH WALES) LTD          ,516590,Construction,GARDEN & PATIO FURNITURE MNFRS
SHEFFIELD TRADING STANDARDS   ,8550,OTHER SERVICES                ,06/07/2012,3288776,349397,650.00,CREDITSAFE UK LIMITED                   ,420927,Financial Services,CREDIT REFERENCE AGENCIES     
SHEFFIELD TRADING STANDARDS   ,8550,OTHER SERVICES                ,06/07/2012,3290194,121044329,2000.00,EMERY MCLAVEN ORR LIMITED               ,566657,Facilities Management,MARKETING CONSULTANTS & SERVIC
SHEAF TRAINING                ,8440,FEE EXPENSES                  ,06/07/2012,3290416,1136336,798.00,PASUDA (HIRE) LTD                       ,508316,Construction,BUILDINGS - SECTIONAL & PORTAB
ALDINE HOUSE                  ,6110,CLEANING/DOMESTIC MAT./SUPPLY ,06/07/2012,3291002,255530466,508.94,YORKSHIRE PURCHASING ORGANISATION       ,295997,Unclassified Trade,PURCHASING SERVICES           
ARCHITECTS                    ,8270,SUBSCRIPTIONS                 ,06/07/2012,3291453,WWB1025631               ,1191.50,SGS UNITED KINGDOM LTD                  ,316296,Environmental Services,"TESTING, INSPECTION & CALIBRAT"
ACTIVITY SHEFFIELD MANAGER    ,5750,TRAINING EXPENDITURE          ,06/07/2012,3291460,301,720.00,OLYMPIC STYLE BOXING                    ,557825,Leisure Services,SPORTS COACHING & INSTRUCTION 
BMET - BLACK ELDERS           ,8440,FEE EXPENSES                  ,06/07/2012,3291471,5476,1449.10,SOLACE ENTERPRISES                      ,544027,Human Resources,EMPLOYMENT & RECRUITMENT AGENC
SCHOOL DRINKING MILK          ,8140,GROCERIES                     ,06/07/2012,3291476,SCC300612                ,44062.00,FRESH PASTURES CIC                      ,528542,Catering,DAIRIES                       
ALDINE HOUSE                  ,8060,MATERIALS AND SUPPLIES GENERAL,06/07/2012,3291696,SL/SIP/09                ,1500.00,SUE LOMAS LTD                           ,547632,Education,EDUCATIONAL SERVICES          
MEDICO LEGAL CENTRE           ,8110,"CLOTHING, UNIFORM AND LAUNDRY ",06/07/2012,3291753,C6091                    ,604.00,CHEMSOL LTD                             ,342893,Unclassified Trade,CHEMICALS - DISTRIBUTORS & WHO
CWD INDEPENDENT PLACEMENTS    ,9270,INDEPENDENT RESIDENTIAL PMENT ,06/07/2012,3291977,714,14423.85,REDACTED PERSONAL DATA,405951,Social Community Care,CHILDCARE SERVICES            
PARKS OPERATIONS NORTH        ,8060,MATERIALS AND SUPPLIES GENERAL,06/07/2012,3291763,40480,564.29,SPA LANDSCAPING LIMITED                 ,489936,Environmental Services,TREE WORK & FORESTRY SERVICES 
PARKS OPERATIONS NORTH        ,8350,MISCELLANEOUS EXPENSES        ,06/07/2012,3291766,40482,562.50,SPA LANDSCAPING LIMITED                 ,489936,Environmental Services,TREE WORK & FORESTRY SERVICES 
PFI 2 UNITARY CHARGE          ,8350,MISCELLANEOUS EXPENSES        ,06/07/2012,3292001,FEEP198                  ,373012.16,PRIORGATE LIMITED                       ,392312,Financial Services,LEASING SERVICES              
ACCOMMODATION & DEVEL TEAM    ,6210,RENTS                         ,06/07/2012,3292030,41093,615.00,COUNTRYWIDE RESIDENTIAL LETTINGS        ,565883,Unclassified Non Trade,"HOUSING ASSOCIATIONS, SOCIETIE"
OSP2 KIER LTD CONTROL ACCOUNT ,9620,FINANCIAL PROCESSES           ,06/07/2012,3292032,130101,641396.00,KIER LIMITED                            ,516733,Facilities Management,FACILITIES MANAGEMENT         
OLIVE GROVE WORKSHOPS         ,7060,EXTERNAL VEHICLE HIRE         ,06/07/2012,3292051,145831,898.94,GO PLANT  LTD                           ,205177,Vehicles Not Buses,PLANT & MACHINERY HIRE & LEASI
RESIDENTIAL STRATEGY COSTS    ,8440,FEE EXPENSES                  ,06/07/2012,3292080,609,5506.50,SAFE@LAST                               ,536864,Unclassified Non Trade,CHARITIES & VOLUNTARY ORGANISA
SNIPS                         ,8180,GRANTS                        ,06/07/2012,3292140,SNIPS006/12              ,1998.06,STEPHEN HARRISON ACADEMY                ,479429,Leisure Services,"SNOOKER, BILLIARDS & POOL HALL"
INCLUSION CENTRE              ,6150,ELECTRICITY                   ,06/07/2012,3292031,27140093,1664.58,NPOWER NORTHERN LTD                     ,207191,Utilities,ELECTRICITY COMPANIES         
BRIERLEY FIELDS PREMISES      ,6150,ELECTRICITY                   ,06/07/2012,3292083,27140184,711.38,NPOWER NORTHERN LTD                     ,207191,Utilities,ELECTRICITY COMPANIES         
BIS TELECOMMS                 ,8600,MOBILE TELEPHONES - INVOICE   ,06/07/2012,3292132,815961086,14005.65,ORANGE PERSONAL COMMUNICATIONS          ,207254,ICT,MOBILE PHONES                 
BIS TELECOMMS                 ,8600,MOBILE TELEPHONES - INVOICE   ,06/07/2012,3292134,815938274,32268.62,ORANGE PERSONAL COMMUNICATIONS          ,207254,ICT,MOBILE PHONES                 
LOCAL ELECTIONS               ,8570,POSTAGE & DELIVERY            ,06/07/2012,3292137,9038910962,18248.76,ROYAL MAIL GROUP LTD                    ,295326,Mail Services,DELIVERY SERVICES             
XMAS ILLUMINATIONS            ,6150,ELECTRICITY                   ,06/07/2012,3292145,85279854014,926.49,SCOTTISHPOWER                           ,532425,Utilities,ELECTRICITY COMPANIES         
DISTRICT HEATING GENERAL      ,6140,SOLID FUEL                    ,06/07/2012,3292148,INV-0823                 ,860.88,SILVAPOWER LTD                          ,406670,Building Construction Materials,SAWMILLS & WOOD SHAVINGS      
DISTRICT HEATING GENERAL      ,6140,SOLID FUEL                    ,06/07/2012,3292153,INV-0822                 ,2905.47,SILVAPOWER LTD                          ,406670,Building Construction Materials,SAWMILLS & WOOD SHAVINGS      
CWD INDEPENDENT PLACEMENTS    ,9270,INDEPENDENT RESIDENTIAL PMENT ,06/07/2012,3291978,715,14423.85,REDACTED PERSONAL DATA,405951,Social Community Care,CHILDCARE SERVICES            
DISTRICT HEATING GENERAL      ,6140,SOLID FUEL                    ,06/07/2012,3292163,INV-0824                 ,8214.23,SILVAPOWER LTD                          ,406670,Building Construction Materials,SAWMILLS & WOOD SHAVINGS      
DISTRICT HEATING GENERAL      ,6150,ELECTRICITY                   ,06/07/2012,3292205,27140336,570.40,NPOWER NORTHERN LTD                     ,207191,Utilities,ELECTRICITY COMPANIES         
DISTRICT HEATING GENERAL      ,6150,ELECTRICITY                   ,06/07/2012,3292217,27140234,675.75,NPOWER NORTHERN LTD                     ,207191,Utilities,ELECTRICITY COMPANIES         
HURLFIELD                     ,6150,ELECTRICITY                   ,06/07/2012,3292227,27140699,528.22,NPOWER NORTHERN LTD                     ,207191,Utilities,ELECTRICITY COMPANIES         
DISTRICT HEATING GENERAL      ,6150,ELECTRICITY                   ,06/07/2012,3292229,27140134,590.50,NPOWER NORTHERN LTD                     ,207191,Utilities,ELECTRICITY COMPANIES         
RESPONSIVE HM&E               ,6020,REPAIRS AND MTCE - PROGRAMMED ,06/07/2012,3292268,SL44912937Q013SF         ,824.74,BRITISH TELECOMMUNICATIONS PLC          ,295860,ICT,TELECOMMUNICATION SERVICES    
DISTRICT HEATING GENERAL      ,6150,ELECTRICITY                   ,06/07/2012,3292304,27140592,500.05,NPOWER NORTHERN LTD                     ,207191,Utilities,ELECTRICITY COMPANIES         
PURCHASING ELDERLY            ,9190,DIRECT PAYMENTS               ,06/07/2012,3291996,J498585                  ,746.00,A4E                                     ,547567,Human Resources,TRAINING SERVICES             
PURCHASING ELDERLY            ,9190,DIRECT PAYMENTS               ,06/07/2012,3291997,J498585                  ,6647.64,REDACTED PERSONAL DATA,554331,Social Community Care,CAREFIRST DIRECT PAYMENTS     
PURCHASING LEARNING DISABILITI,9190,DIRECT PAYMENTS               ,06/07/2012,3291998,J498585                  ,3200.00,REDACTED PERSONAL DATA,556890,Social Community Care,CAREFIRST DIRECT PAYMENTS     
PURCHASING ELDERLY            ,9190,DIRECT PAYMENTS               ,06/07/2012,3291999,J498585                  ,2209.09,REDACTED PERSONAL DATA,562178,Social Community Care,CAREFIRST DIRECT PAYMENTS     
PURCHASING LEARNING DISABILITI,9190,CITYWIDE SPOT                 ,06/07/2012,3292000,3630000096,1504.00,CRAEGMOOR SYI LINCOLN                   ,567316,Social Community Care,RESIDENTIAL CARE HOMES        
CWD INDEPENDENT PLACEMENTS    ,9270,INDEPENDENT FOSTERING         ,06/07/2012,3291972,16966,3411.80,REDACTED PERSONAL DATA,352082,Social Community Care,ADOPTION & FOSTERING          
CWD INDEPENDENT PLACEMENTS    ,9270,INDEPENDENT FOSTERING         ,06/07/2012,3291973,16981,3241.28,REDACTED PERSONAL DATA,352082,Social Community Care,ADOPTION & FOSTERING          
CWD INDEPENDENT PLACEMENTS    ,9270,INDEPENDENT FOSTERING         ,06/07/2012,3291974,16984,3411.80,REDACTED PERSONAL DATA,352082,Social Community Care,ADOPTION & FOSTERING          
CWD INDEPENDENT PLACEMENTS    ,9270,INDEPENDENT FOSTERING         ,06/07/2012,3291975,16993,3241.28,REDACTED PERSONAL DATA,352082,Social Community Care,ADOPTION & FOSTERING          
CWD INDEPENDENT PLACEMENTS    ,9270,INDEPENDENT FOSTERING         ,06/07/2012,3291976,4114612,4760.71,HILLCREST CARE LTD                      ,481506,Social Community Care,RESIDENTIAL CARE HOMES        
CWD INDEPENDENT PLACEMENTS    ,9270,INDEPENDENT RESIDENTIAL PMENT ,06/07/2012,3291979,716,14423.85,REDACTED PERSONAL DATA,405951,Social Community Care,CHILDCARE SERVICES            
INDEPENDENT RES BLOCK PLACEMEN,9270,INDEPENDENT RESIDENTIAL PMENT ,06/07/2012,3291980,719,2730.25,REDACTED PERSONAL DATA,405951,Social Community Care,CHILDCARE SERVICES            
CWD INDEPENDENT PLACEMENTS    ,9270,CARELEAVERS ACCOMMODATION     ,06/07/2012,3291981,FU6013                   ,62047.44,THE HESLEY GROUP                        ,327405,Unclassified Non Trade,SCHOOLS - SPECIAL             
INDEPENDENT RES BLOCK PLACEMEN,9270,INDEPENDENT RESIDENTIAL PMENT ,06/07/2012,3291982,25001,1371.36,THE KEYS GROUP                          ,328876,Social Community Care,CHILDREN'S HOMES              
CWD INDEPENDENT PLACEMENTS    ,9270,INDEPENDENT RESIDENTIAL PMENT ,06/07/2012,3291983,OP/1197575               ,124504.16,RNIB                                    ,295117,Unclassified Non Trade,CHARITIES & VOLUNTARY ORGANISA
CWD INDEPENDENT PLACEMENTS    ,9270,CARELEAVERS ACCOMMODATION     ,06/07/2012,3291984,WI5777                   ,31023.71,THE HESLEY GROUP                        ,327405,Unclassified Non Trade,SCHOOLS - SPECIAL             
CWD INDEPENDENT PLACEMENTS    ,9270,CARELEAVERS ACCOMMODATION     ,06/07/2012,3291985,WI5778                   ,62047.44,THE HESLEY GROUP                        ,327405,Unclassified Non Trade,SCHOOLS - SPECIAL             
CWD INDEPENDENT PLACEMENTS    ,9270,CARELEAVERS ACCOMMODATION     ,06/07/2012,3291986,WI5779                   ,62047.44,THE HESLEY GROUP                        ,327405,Unclassified Non Trade,SCHOOLS - SPECIAL             
CWD INDEPENDENT PLACEMENTS    ,9270,CARELEAVERS ACCOMMODATION     ,06/07/2012,3291987,WI5780                   ,62047.44,THE HESLEY GROUP                        ,327405,Unclassified Non Trade,SCHOOLS - SPECIAL             
CWD INDEPENDENT PLACEMENTS    ,9270,CARELEAVERS ACCOMMODATION     ,06/07/2012,3291988,5354,44365.58,OVERLEY HALL SCHOOL                     ,423159,Unclassified Non Trade,SCHOOLS - SPECIAL             
FOSTERING NON-PLACEMENT LAC 1 ,9440,LOOKED AFTER CHILDREN         ,06/07/2012,3291995,3659,1264.32,REDACTED PERSONAL DATA,452499,Social Community Care,ADOPTION & FOSTERING          
PURCHASING ELDERLY            ,9210,CONTINUING NURSING CARE       ,06/07/2012,3291947,J485149 240612           ,1595.88,HEARTLANDS                              ,478368,Social Community Care,NURSING HOMES                 
PURCHASING ELDERLY            ,9200,CONTINUING RESIDENTIAL CARE   ,06/07/2012,3291948,J485181 240612           ,1696.32,P & C CARE LTD T/A IVY HOUSE NURSING    ,542595,Social Community Care,NURSING HOMES                 
PURCHASING ELDERLY            ,9200,CONTINUING RESIDENTIAL CARE   ,06/07/2012,3291950,J491654 220712           ,9248.00,ST CATHERINES RESIDENTIAL HOME          ,344721,Social Community Care,RESIDENTIAL CARE HOMES        
PURCHASING ELDERLY            ,9210,CONTINUING NURSING CARE       ,06/07/2012,3291950,J491654 220712           ,12752.00,ST CATHERINES RESIDENTIAL HOME          ,344721,Social Community Care,RESIDENTIAL CARE HOMES        
PURCHASING ELDERLY            ,9200,CONTINUING RESIDENTIAL CARE   ,06/07/2012,3291951,J491739 220712           ,2048.00,SLOE HILL RESIDENTIAL HOME              ,362106,Social Community Care,RESIDENTIAL CARE HOMES        
PURCHASING ELDERLY            ,9210,CONTINUING NURSING CARE       ,06/07/2012,3291952,J491827 220712           ,1595.88,HEARTLANDS                              ,478368,Social Community Care,NURSING HOMES                 
PURCHASING LEARNING DISABILITI,9210,CONTINUING NURSING CARE       ,06/07/2012,3291953,J491858 220712           ,1640.13,SHIREBROOK PLACE                        ,539407,Social Community Care,RESIDENTIAL CARE HOMES        
PURCHASING ELDERLY            ,9200,CONTINUING RESIDENTIAL CARE   ,06/07/2012,3291954,J491859 220712           ,1696.32,P & C CARE LTD T/A IVY HOUSE NURSING    ,542595,Social Community Care,NURSING HOMES                 
PURCHASING LEARNING DISABILITI,9200,CONTINUING RESIDENTIAL CARE   ,06/07/2012,3291955,J495469 220712           ,63155.32,SHIREBROOK FIELDS                       ,362105,Social Community Care,NURSING HOMES                 
PDSI PURCHASING               ,9200,CONTINUING RESIDENTIAL CARE   ,06/07/2012,3291955,J495469 220712           ,3484.04,SHIREBROOK FIELDS                       ,362105,Social Community Care,NURSING HOMES                 
PURCHASING ELDERLY            ,9200,CONTINUING RESIDENTIAL CARE   ,06/07/2012,3291955,J495469 220712           ,5856.00,SHIREBROOK FIELDS                       ,362105,Social Community Care,NURSING HOMES                 
PURCHASING LEARNING DISABILITI,9210,CONTINUING NURSING CARE       ,06/07/2012,3291955,J495469 220712           ,24698.00,SHIREBROOK FIELDS                       ,362105,Social Community Care,NURSING HOMES                 
PURCHASING ELDERLY            ,9200,SHORT TERM RESIDENTIAL CARE   ,06/07/2012,3291956,J495474 220712           ,1596.00,HERRIES LODGE CARE HOME                 ,566537,Social Community Care,RESIDENTIAL CARE HOMES        
PURCHASING ELDERLY            ,9200,CONTINUING RESIDENTIAL CARE   ,06/07/2012,3291957,J498586 220712           ,3950.00,WHITTINGTON CARE HOME                   ,362142,Social Community Care,NURSING HOMES                 
PURCHASING ELDERLY            ,9200,CONTINUING RESIDENTIAL CARE   ,06/07/2012,3291958,J498587 220712           ,3135.00,DARNALL VIEW RESIDENTIAL HOME           ,362170,Social Community Care,RESIDENTIAL CARE HOMES        
PURCHASING ELDERLY            ,9200,SHORT TERM RESIDENTIAL CARE   ,06/07/2012,3291960,J491562 240612           ,1636.43,SILVER LODGE CARE HOME                  ,361763,Social Community Care,NURSING HOMES                 
PURCHASING ELDERLY            ,9200,SHORT TERM RESIDENTIAL CARE   ,06/07/2012,3291961,J491567 240612           ,1267.86,HEELEY BANK CARE HOME                   ,362923,Social Community Care,RESIDENTIAL CARE HOMES        
PURCHASING ELDERLY            ,9200,SHORT TERM RESIDENTIAL CARE   ,06/07/2012,3291963,J493644 240612           ,1580.00,SILVER HEALTH CARE LTD                  ,361802,Social Community Care,RESIDENTIAL CARE HOMES        
PURCHASING ELDERLY            ,9200,SHORT TERM RESIDENTIAL CARE   ,06/07/2012,3291964,J493645 240612           ,1767.00,SANCTUARY CARE LIMITED                  ,560422,Social Community Care,NURSING HOMES                 
PURCHASING ELDERLY            ,9200,SHORT TERM RESIDENTIAL CARE   ,06/07/2012,3291965,J495444 240612           ,1516.00,ST CATHERINES RESIDENTIAL HOME          ,344721,Social Community Care,RESIDENTIAL CARE HOMES        
PURCHASING ELDERLY            ,9200,SHORT TERM RESIDENTIAL CARE   ,06/07/2012,3291966,J495445 240612           ,1059.00,WESTBOURNE HOUSE                        ,362111,Social Community Care,NURSING HOMES                 
PURCHASING ELDERLY            ,9200,SHORT TERM RESIDENTIAL CARE   ,06/07/2012,3291967,J497805 240612           ,3032.00,DEERLANDS                               ,361836,Social Community Care,RESIDENTIAL CARE HOMES        
PURCHASING ELDERLY            ,9200,SHORT TERM RESIDENTIAL CARE   ,06/07/2012,3291968,J497807 240612           ,1185.00,HADDON COURT NURSING HOME               ,361916,Social Community Care,NURSING HOMES                 
PURCHASING ELDERLY            ,9200,SHORT TERM RESIDENTIAL CARE   ,06/07/2012,3291969,J497808 240612           ,2679.00,DARNALL VIEW RESIDENTIAL HOME           ,362170,Social Community Care,RESIDENTIAL CARE HOMES        
PURCHASING ELDERLY            ,9210,SHORT TERM NURSING CARE       ,06/07/2012,3291970,J497809 240612           ,1811.29,LONGLEY PARK VIEW                       ,361928,Social Community Care,NURSING HOMES                 
PURCHASING ELDERLY            ,9200,SHORT TERM RESIDENTIAL CARE   ,06/07/2012,3291971,J498544 240612           ,558.57,LOWER BOWSHAW VIEW NH                   ,362101,Social Community Care,NURSING HOMES                 
CARE4YOU EQUIPMENT            ,8010,EQUIPMENT PURCHASE AND REPAIR ,09/07/2012,3284281,916928086,708.00,ARCO LTD                                ,203022,Clothing,SAFETY EQUIPMENT & CLOTHING   
STREET FORCE BALANCE SHEET    ,776,4332101 INVOICES PAID         ,09/07/2012,3292437,20005035,980.10,HARSCO METALS GROUP LTD                 ,493119,Vehicles Not Buses,PLANT & MACHINERY HIRE & LEASI
STREET FORCE BALANCE SHEET    ,776,4332101 INVOICES PAID         ,09/07/2012,3292438,20005036,2371.25,HARSCO METALS GROUP LTD                 ,493119,Vehicles Not Buses,PLANT & MACHINERY HIRE & LEASI
STREET FORCE BALANCE SHEET    ,776,4332101 INVOICES PAID         ,09/07/2012,3292439,20005037,611.74,HARSCO METALS GROUP LTD                 ,493119,Vehicles Not Buses,PLANT & MACHINERY HIRE & LEASI
STREET FORCE BALANCE SHEET    ,776,4332101 INVOICES PAID         ,09/07/2012,3292440,20005062,1103.65,HARSCO METALS GROUP LTD                 ,493119,Vehicles Not Buses,PLANT & MACHINERY HIRE & LEASI
STREET FORCE BALANCE SHEET    ,776,4332101 INVOICES PAID         ,09/07/2012,3292442,20005064,1178.50,HARSCO METALS GROUP LTD                 ,493119,Vehicles Not Buses,PLANT & MACHINERY HIRE & LEASI
STREET FORCE BALANCE SHEET    ,776,4332101 INVOICES PAID         ,09/07/2012,3292443,20005065,2640.92,HARSCO METALS GROUP LTD                 ,493119,Vehicles Not Buses,PLANT & MACHINERY HIRE & LEASI
STREET FORCE BALANCE SHEET    ,776,4332101 INVOICES PAID         ,09/07/2012,3292444,201481,501.03,SMITH BROTHERS (CAER CONAN) LIMITED     ,493148,Utilities,ELECTRICAL DISTRIBUTION COMPAN
STREET FORCE BALANCE SHEET    ,776,4332101 INVOICES PAID         ,09/07/2012,3292445,201705,763.20,SMITH BROTHERS (CAER CONAN) LIMITED     ,493148,Utilities,ELECTRICAL DISTRIBUTION COMPAN
STREET FORCE BALANCE SHEET    ,776,4332101 INVOICES PAID         ,09/07/2012,3292447,243306/644               ,3133.12,SIGNATURE LIMITED                       ,493130,Facilities Management,SIGN & POSTER WRITERS         
STREET FORCE BALANCE SHEET    ,776,4332101 INVOICES PAID         ,09/07/2012,3292448,302704,617.62,JOHN S SHACKLETON (SHEFFIELD) LIMITED   ,493176,Unclassified Trade,STEEL STOCKHOLDERS            
STREET FORCE BALANCE SHEET    ,776,4332101 INVOICES PAID         ,09/07/2012,3292456,376303,1153.04,INSTARMAC GROUP PLC                     ,483173,Building Construction Materials,CONCRETE PRODUCTS             
STREET FORCE BALANCE SHEET    ,776,4332101 INVOICES PAID         ,09/07/2012,3292460,9028346283,984.89,TARMAC LTD                              ,463393,Building Construction Materials,BUILDING BLOCK MNFRS & DISTRIB
STREET FORCE BALANCE SHEET    ,776,4332101 INVOICES PAID         ,09/07/2012,3292470,LGUDQSC9                 ,657.25,NPOWER                                  ,347938,Utilities,ELECTRICITY COMPANIES         
ACCES2NATURE                  ,8260,WOODLAND DEVELOPMENT EXPENSES ,09/07/2012,3292890,ERS INVOICE69102         ,750.00,SAMANTHA PEARCE                         ,516872,Unclassified Trade,CANE GOODS & BASKETWARE       
CULTURE STRATEGY              ,8440,FEE EXPENSES                  ,09/07/2012,3292891,ERS INVOICE69103         ,666.66,REDACTED PERSONAL DATA,569400,Unclassified Non Trade,OUT OF SCOPE FOR SIC MONITORIN
CULTURE STRATEGY              ,8440,FEE EXPENSES                  ,09/07/2012,3292892,ERS INVOICE69104         ,666.66,REDACTED PERSONAL DATA,569402,Unclassified Non Trade,OUT OF SCOPE FOR SIC MONITORIN
CULTURE STRATEGY              ,8440,FEE EXPENSES                  ,09/07/2012,3292893,ERS INVOICE69105         ,666.66,MR NATHAN GORDON                        ,541719,Leisure Services,ENTERTAINERS                  
CULTURE STRATEGY              ,8440,FEE EXPENSES                  ,09/07/2012,3292894,ERS INVOICE69106         ,666.66,REDACTED PERSONAL DATA,569403,Unclassified Non Trade,OUT OF SCOPE FOR SIC MONITORIN
CULTURE STRATEGY              ,8440,FEE EXPENSES                  ,09/07/2012,3292895,ERS INVOICE69107         ,666.66,REDACTED PERSONAL DATA,569404,Unclassified Non Trade,OUT OF SCOPE FOR SIC MONITORIN
CULTURE STRATEGY              ,8440,FEE EXPENSES                  ,09/07/2012,3292896,ERS INVOICE69108         ,666.66,REDACTED PERSONAL DATA,569405,Unclassified Non Trade,OUT OF SCOPE FOR SIC MONITORIN
CLAIMS                        ,8740,PUBLIC LIABILITY              ,09/07/2012,3292905,ERS INVOICE69117         ,8600.00,ACCIDENT SOLICITORS DIRECT (BUSINESS ACC,299480,Legal Services,SOLICITORS                    
CLAIMS                        ,8740,PUBLIC LIABILITY              ,09/07/2012,3292906,ERS INVOICE69118         ,6000.00,DEPARTMENT FOR WORK & PENSIONS          ,326920,Unclassified Non Trade,CENTRAL GOVERNMENT            
CLAIMS                        ,8740,PUBLIC LIABILITY              ,09/07/2012,3292907,ERS INVOICE69119         ,585.00,DEPARTMENT FOR WORK & PENSIONS          ,326920,Unclassified Non Trade,CENTRAL GOVERNMENT            
CLAIMS                        ,8740,EMPLOYERS LIABILITY           ,09/07/2012,3292909,ERS INVOICE69121         ,5000.00,THOMPSONS CLIENT ACCOUNT                ,505870,Legal Services,SOLICITORS                    
COMMUNITY ASSEMBLY SOUTH      ,9120,OTHER AGENCIES                ,09/07/2012,3292939,ERS INVOICE69151         ,1000.00,CHEERFUL CHAIROBICS                     ,556243,Unclassified Non Trade,COMMUNITY PROJECTS            
SAFEGUARDING CHILDREN SERVICE ,8440,FEE EXPENSES                  ,09/07/2012,3280800,571,2000.00,CONSILIENT CONSULTING LTD               ,446779,Consultancy,BUSINESS & MANAGEMENT CONSULTA
CROOKESMOOR CENTRAL COSTS     ,8370,PRINTING                      ,09/07/2012,3283644,SINV00231055             ,2218.60,R A ROBERTS (OFFICE EQUIPMENT) LTD      ,207777,Furniture,OFFICE FURNITURE & EQUIPMENT  
GENERAL ADMINISTRATION & SUPPO,8390,STATIONERY                    ,09/07/2012,3286789,SINV00231529             ,1702.05,R A ROBERTS (OFFICE EQUIPMENT) LTD      ,207777,Furniture,OFFICE FURNITURE & EQUIPMENT  
CITY STEWARDSHIP - GENERAL    ,6030,REPAIRS TO TENANTED PROPERTIES,09/07/2012,3286794,11120086,125497.78,KIER SHEFFIELD LLP                      ,352687,Construction,PROPERTY MAINTENANCE & REPAIRS
RESOURCES MANAGER             ,8370,PRINTING                      ,09/07/2012,3287379,1103512089,688.95,KONICA MINOLTA BUSINESS SOLUTIONS EAST  ,206267,ICT,OFFICE EQUIPMENT MNFRS & DISTR
BOOKS & OTHER MATERIALS       ,8080,LIBRARY MATERIALS             ,09/07/2012,3287616,8577,8712.50,SHEFFIELD ROYAL SOCIETY FOR THE BLIND   ,306116,Unclassified Non Trade,CHARITIES & VOLUNTARY ORGANISA
BOOKS & OTHER MATERIALS       ,8080,LIBRARY MATERIALS             ,09/07/2012,3287854,01506027/10012283        ,1071.42,BERTRAM LIBRARY SERVICES                ,418929,Education,EDUCATIONAL EQUIPMENT & SUPPLI
CLAIMS                        ,8490,OTHER PROFESSIONAL FEES       ,09/07/2012,3288714,Q82324                   ,1496.34,QM COSTS                                ,518667,Legal Services,LEGAL SERVICES                
CARE4YOU EQUIPMENT            ,8010,EQUIPMENT PURCHASE AND REPAIR ,09/07/2012,3288802,916978175,666.26,ARCO LTD                                ,203022,Clothing,SAFETY EQUIPMENT & CLOTHING   
PROJECTS AND PILOTS           ,8010,EQUIPMENT PURCHASE AND REPAIR ,09/07/2012,3288899,11120109,27392.00,KIER SHEFFIELD LLP                      ,352687,Construction,PROPERTY MAINTENANCE & REPAIRS
WINTER GARDEN                 ,6030,REPAIRS AND MTCE - RESPONSIVE ,09/07/2012,3289434,1262,3173.75,CRB DOOR SYSTEMS LTD                    ,541144,Construction,DOORS - REPAIRING             
FURNISHED ACCOMMODATION       ,8050,SOFT FURNISHINGS              ,09/07/2012,3289970,15752,1050.00,ALLEN UPHOLSTERY                        ,295763,Furniture,FURNITURE MNFRS - HOME & OFFIC
FURNISHED ACCOMMODATION       ,8050,SOFT FURNISHINGS              ,09/07/2012,3289971,15751,1577.00,ALLEN UPHOLSTERY                        ,295763,Furniture,FURNITURE MNFRS - HOME & OFFIC
TEMPORARY ACCOMMODATION       ,8060,MATERIALS AND SUPPLIES GENERAL,09/07/2012,3289975,TK101777                 ,4597.20,THOMAS KNEALE & CO. LTD.                ,441585,Furniture,"BEDS, BEDDING & BLANKETS      "
CITY WIDE CHILD CARE CONTRACT ,8440,FEE EXPENSES                  ,09/07/2012,3289999,12/EYEC)02               ,60065.00,PRE SCHOOL LEARNING ALLIANCE            ,339062,Unclassified Non Trade,CHARITIES & VOLUNTARY ORGANISA
PROJECT MANAGEMENT - SCHEME   ,8440,FEE EXPENSES                  ,09/07/2012,3290004,SIN007370                ,11571.91,ALPHEUS ENVIRONMENTAL LIMITED           ,490217,Environmental Services,DRAIN & SEWER CLEARANCE       
FURNISHED ACCOMMODATION       ,6020,VOID PAINTING INITIATIVE      ,09/07/2012,3290156,L07697                   ,854.00,BELL GROUP (LEEDS)                      ,441427,Construction,PAINTERS & DECORATORS         
CLAIMS                        ,8470,LEGAL FEES                    ,09/07/2012,3290233,1762555,13908.68,BERRYMANS LACE MAWER                    ,530263,Legal Services,SOLICITORS                    
ESTATE SERVICES               ,6090,TIPPING COSTS                 ,09/07/2012,3290417,43192/1                  ,4537.32,R FLETCHER WASTE DISPOSAL LTD           ,473104,Environmental Services,WASTE DISPOSAL SERVICES       
CLAIMS                        ,8490,OTHER PROFESSIONAL FEES       ,09/07/2012,3290778,Q83690                   ,1442.29,QM COSTS                                ,518667,Legal Services,LEGAL SERVICES                
ACCOMMODATION                 ,6210,RENTS                         ,09/07/2012,3290979,ARC1213-29               ,916.67,STOCKSBRIDGE TOWN COUNCIL               ,295752,Unclassified Non Trade,LOCAL GOVERNMENT              
ESTATE SERVICES               ,6090,TIPPING COSTS                 ,09/07/2012,3291007,43355/1                  ,5604.20,R FLETCHER WASTE DISPOSAL LTD           ,473104,Environmental Services,WASTE DISPOSAL SERVICES       
SCHOOLS LIBRARY SERVICE       ,8080,LIBRARY MATERIALS             ,09/07/2012,3291034,1513197,630.58,BERTRAM LIBRARY SERVICES                ,418929,Education,EDUCATIONAL EQUIPMENT & SUPPLI
PURCHASING ELDERLY            ,9160,PARTNERSHIP CONTRACTS         ,09/07/2012,3291147,14599,8854.49,AGE CONCERN                             ,306684,Unclassified Non Trade,CHARITIES & VOLUNTARY ORGANISA
PURCHASING ELDERLY            ,9160,PARTNERSHIP CONTRACTS         ,09/07/2012,3291148,14594,5598.86,AGE CONCERN                             ,306684,Unclassified Non Trade,CHARITIES & VOLUNTARY ORGANISA
PURCHASING ELDERLY            ,9160,PARTNERSHIP CONTRACTS         ,09/07/2012,3291149,14595,5590.94,AGE CONCERN                             ,306684,Unclassified Non Trade,CHARITIES & VOLUNTARY ORGANISA
PURCHASING ELDERLY            ,9160,PARTNERSHIP CONTRACTS         ,09/07/2012,3291150,14596,9924.62,AGE CONCERN                             ,306684,Unclassified Non Trade,CHARITIES & VOLUNTARY ORGANISA
PURCHASING ELDERLY            ,9160,PARTNERSHIP CONTRACTS         ,09/07/2012,3291152,14600,8854.49,AGE CONCERN                             ,306684,Unclassified Non Trade,CHARITIES & VOLUNTARY ORGANISA
PURCHASING ELDERLY            ,9160,PARTNERSHIP CONTRACTS         ,09/07/2012,3291153,14598,6578.91,AGE CONCERN                             ,306684,Unclassified Non Trade,CHARITIES & VOLUNTARY ORGANISA
PURCHASING ELDERLY            ,9160,PARTNERSHIP CONTRACTS         ,09/07/2012,3291154,14597,5949.58,AGE CONCERN                             ,306684,Unclassified Non Trade,CHARITIES & VOLUNTARY ORGANISA
FURNISHED ACCOMMODATION       ,6020,VOID PAINTING INITIATIVE      ,09/07/2012,3291181,L07703                   ,584.00,BELL GROUP (LEEDS)                      ,441427,Construction,PAINTERS & DECORATORS         
PURCHASING & PAYMENTS TEAM    ,5610,AGENCY STAFF                  ,09/07/2012,3291185,C0223961233              ,8539.10,REED EMPLOYMENT                         ,317819,Human Resources,EMPLOYMENT & RECRUITMENT AGENC
SH GENERAL                    ,8450,AUDIT FEES                    ,09/07/2012,3291685,6664015,2100.00,GRANT THORNTON UK LLP                   ,510452,Financial Services,ACCOUNTANTS                   
CARE4YOU EQUIPMENT            ,8010,EQUIPMENT PURCHASE AND REPAIR ,09/07/2012,3291748,917038176,1091.44,ARCO LTD                                ,203022,Clothing,SAFETY EQUIPMENT & CLOTHING   
CARE4YOU SERVICE              ,8540,SECURITY SERVICES             ,09/07/2012,3291769,INV058239                ,4942.08,CONSTANT SECURITY SERVICES LIMITED      ,501937,Facilities Management,SECURITY SERVICES             
NEW MARKET DEVELOPMENT        ,1194,OTHER FEES                    ,09/07/2012,3292044,9640,5424.00,J C PLANT HIRE LTD                      ,324417,Highway Equipment and Materials,PAVING & DRIVEWAY CONTRACTORS 
ADAPTATIONS                   ,1157,DWELLINGS MAIN CONTRACT       ,09/07/2012,3292045,9085136533,5243.00,STANNAH LIFT SERVICES LTD.              ,208625,Social Community Care,STAIRLIFTS - MNFRS & INSTALLER
CITY WIDE CONTRACTS           ,8440,FEE EXPENSES                  ,09/07/2012,3292072,257,7659.00,HOME-START SHEFFIELD                    ,323471,Unclassified Non Trade,CHARITIES & VOLUNTARY ORGANISA
CLAIMS                        ,8470,LEGAL FEES                    ,09/07/2012,3292088,01-12-0018166/1/SHEF03   ,1347.70,KENNEDYS LAW LLP                        ,543971,Legal Services,SOLICITORS                    
CLAIMS                        ,8470,LEGAL FEES                    ,09/07/2012,3292090,01-12-0017428/1/SHEF03   ,750.00,KENNEDYS LAW LLP                        ,543971,Legal Services,SOLICITORS                    
CLAIMS                        ,8470,LEGAL FEES                    ,09/07/2012,3292099,01-12-0017429/1/SHEF03   ,632.90,KENNEDYS LAW LLP                        ,543971,Legal Services,SOLICITORS                    
CLAIMS                        ,8470,LEGAL FEES                    ,09/07/2012,3292112,01-12-0018167/1/SHEF03   ,621.00,KENNEDYS LAW LLP                        ,543971,Legal Services,SOLICITORS                    
CLAIMS                        ,8470,LEGAL FEES                    ,09/07/2012,3292117,01-12-0018238/1/SHEF03   ,6461.00,KENNEDYS LAW LLP                        ,543971,Legal Services,SOLICITORS                    
INCLUSION CENTRE              ,8550,OTHER SERVICES                ,09/07/2012,3292118,9ALICIASMITH             ,525.00,PIT STOP                                ,317086,Unclassified Non Trade,CHARITIES & VOLUNTARY ORGANISA
CLAIMS                        ,8470,LEGAL FEES                    ,09/07/2012,3292122,01-12-0017427/1/SHEF03   ,1100.00,KENNEDYS LAW LLP                        ,543971,Legal Services,SOLICITORS                    
FM SITES TRADED               ,6020,REPAIRS AND MTCE - PROGRAMMED ,09/07/2012,3292249,1270,570.00,CRB DOOR SYSTEMS LTD                    ,541144,Construction,DOORS - REPAIRING             
FM SITES TRADED               ,6020,REPAIRS AND MTCE - PROGRAMMED ,09/07/2012,3292264,226582,1463.00,PHS COMPLIANCE                          ,493368,Environmental Services,GAS & ELECTRICAL TESTING & INS
ADAPTATIONS                   ,1157,DWELLINGS MAIN CONTRACT       ,09/07/2012,3292291,9085131751,713.00,STANNAH LIFT SERVICES LTD.              ,208625,Social Community Care,STAIRLIFTS - MNFRS & INSTALLER
EARLY YEARS PLANNING          ,8240,CONFERENCE EXPENSES           ,09/07/2012,3292305,I0056465                 ,650.00,OXFORD BROOKES UNIVERSITY               ,557300,Human Resources,INSTITUTES - PROFESSIONAL     
SNIPS                         ,8180,GRANTS                        ,09/07/2012,3292358,41071,14000.00,RAY OF HOPE                             ,385097,Unclassified Non Trade,CHARITIES & VOLUNTARY ORGANISA
SCHOOL MEALS                  ,8440,FEE EXPENSES                  ,09/07/2012,3292388,SI-TSS-10000502          ,586.46,TAYLOR SHAW LIMITED T/A TAYLOR SHAW     ,520165,Catering,CATERERS                      
SCHOOL MEALS                  ,8440,FEE EXPENSES                  ,09/07/2012,3292389,SI-TSS-10000500          ,6176.00,TAYLOR SHAW LIMITED T/A TAYLOR SHAW     ,520165,Catering,CATERERS                      
SCHOOL MEALS                  ,8440,FEE EXPENSES                  ,09/07/2012,3292390,SI-TSS-10000501          ,836.83,TAYLOR SHAW LIMITED T/A TAYLOR SHAW     ,520165,Catering,CATERERS                      
SCHOOL MEALS                  ,8130,CATERING SUPPLIES             ,09/07/2012,3292392,SI-TSS-10000499          ,151268.00,TAYLOR SHAW LIMITED T/A TAYLOR SHAW     ,520165,Catering,CATERERS                      
SCHOOL MEALS                  ,8150,CONTRACT CATERING             ,09/07/2012,3292392,SI-TSS-10000499          ,273475.00,TAYLOR SHAW LIMITED T/A TAYLOR SHAW     ,520165,Catering,CATERERS                      
PMY MAINT.HEATING -HALFWAY JR ,1161,NC&A MAIN CONTRACT            ,09/07/2012,3292394,ED03626C/7               ,74200.00,KIER SHEFFIELD LLP                      ,352687,Construction,PROPERTY MAINTENANCE & REPAIRS
PMY MAINT.STRUCT -STRADBROKE  ,1161,NC&A MAIN CONTRACT            ,09/07/2012,3292394,ED03626C/7               ,79500.00,KIER SHEFFIELD LLP                      ,352687,Construction,PROPERTY MAINTENANCE & REPAIRS
PMY MAINT.ELEC -GREYSTONES    ,1161,NC&A MAIN CONTRACT            ,09/07/2012,3292394,ED03626C/7               ,39700.00,KIER SHEFFIELD LLP                      ,352687,Construction,PROPERTY MAINTENANCE & REPAIRS
PMY MAINT.HEATING -BEIGHTON   ,1161,NC&A MAIN CONTRACT            ,09/07/2012,3292394,ED03626C/7               ,43300.00,KIER SHEFFIELD LLP                      ,352687,Construction,PROPERTY MAINTENANCE & REPAIRS
PMY MAINT HEATING -STRADBROKE ,1161,NC&A MAIN CONTRACT            ,09/07/2012,3292395,ED03626D/3               ,66200.00,KIER SHEFFIELD LLP                      ,352687,Construction,PROPERTY MAINTENANCE & REPAIRS
SCHOOL MEALS                  ,8150,CONTRACT CATERING - INVOICE   ,09/07/2012,3292396,SI-TSS-10000505          ,36790.31,TAYLOR SHAW LIMITED T/A TAYLOR SHAW     ,520165,Catering,CATERERS                      
SCC BALANCE SHEET             ,1540,DEMOLITION CONTROL ACCOUNT    ,09/07/2012,3292399,ES03046/7                ,40000.00,DEMEX LTD                               ,204333,Construction,DEMOLITION & DISMANTLING CONTR
BOOKS & OTHER MATERIALS       ,8080,LIBRARY MATERIALS             ,09/07/2012,3292408,1513944,744.23,BERTRAM LIBRARY SERVICES                ,418929,Education,EDUCATIONAL EQUIPMENT & SUPPLI
BOOKS & OTHER MATERIALS       ,8080,LIBRARY MATERIALS             ,09/07/2012,3292409,1510871,572.92,BERTRAM LIBRARY SERVICES                ,418929,Education,EDUCATIONAL EQUIPMENT & SUPPLI
GATEWAY GROUP 1A              ,4080,FEES & CHARGES                ,09/07/2012,3292635,1108137,767.00,HOME OFFICE SHARED SERVICE CENTRE       ,534033,Unclassified Non Trade,CENTRAL GOVERNMENT            
GENERAL ADMINISTRATION        ,8540,SECURITY SERVICES             ,09/07/2012,3292636,INV058183                ,5170.76,CONSTANT SECURITY SERVICES LIMITED      ,501937,Facilities Management,SECURITY SERVICES             
TRANSPORT FLEET MANAGEMENT    ,7060,EXTERNAL VEHICLE HIRE         ,09/07/2012,3292639,MA891783                 ,1324.44,GE CAPITAL EQUIPMENT FINANCE LTD        ,416647,Financial Services,LEASING SERVICES              
TRANSPORT FLEET MANAGEMENT    ,7060,EXTERNAL VEHICLE HIRE         ,09/07/2012,3292652,60278,1530.00,DAWSON RENTALS SWEEPERS                 ,446765,Vehicles Not Buses,PLANT & MACHINERY HIRE & LEASI
TRANSPORT FLEET MANAGEMENT    ,7060,EXTERNAL VEHICLE HIRE         ,09/07/2012,3292662,751933,1324.58,DAWSON RENTALS SWEEPERS                 ,446765,Vehicles Not Buses,PLANT & MACHINERY HIRE & LEASI
SCHOOL MEALS                  ,8130,CATERING SUPPLIES             ,09/07/2012,3292702,SI-TSS-10000498          ,52328.00,TAYLOR SHAW LIMITED T/A TAYLOR SHAW     ,520165,Catering,CATERERS                      
SCHOOL MEALS                  ,8150,CONTRACT CATERING             ,09/07/2012,3292702,SI-TSS-10000498          ,27358.00,TAYLOR SHAW LIMITED T/A TAYLOR SHAW     ,520165,Catering,CATERERS                      
BOOKS & OTHER MATERIALS       ,8080,LIBRARY MATERIALS             ,09/07/2012,3292723,1517632,708.20,BERTRAM LIBRARY SERVICES                ,418929,Education,EDUCATIONAL EQUIPMENT & SUPPLI
SCHOOLS LIBRARY SERVICE       ,8080,LIBRARY MATERIALS             ,09/07/2012,3292725,1511182,543.68,BERTRAM LIBRARY SERVICES                ,418929,Education,EDUCATIONAL EQUIPMENT & SUPPLI
SHEAF TRAINING                ,6150,ELECTRICITY                   ,09/07/2012,3292631,27140793,1168.60,NPOWER NORTHERN LTD                     ,207191,Utilities,ELECTRICITY COMPANIES         
PURCHASING LEARNING DISABILITI,9180,RESPITE                       ,09/07/2012,3292510,J496700 010712           ,1119.36,REDACTED PERSONAL DATA,329204,Social Community Care,HOME CARE SERVICES            
HOMELESS INTERIM ACCOMM       ,6210,BED & BREAKFAST PAYMENTS      ,09/07/2012,3292812,26/2012                  ,1681.00,EARL MARSHALL GUEST HOUSE               ,391589,Facilities Management,GUEST HOUSES                  
HOMELESS INTERIM ACCOMM       ,6210,BED & BREAKFAST PAYMENTS      ,09/07/2012,3292813,264,1508.82,BURNGREAVE B & B                        ,466986,Facilities Management,GUEST HOUSES                  
PURCHASING LEARNING DISABILITI,9190,CITYWIDE SPOT                 ,09/07/2012,3292589,J496673 240612           ,7130.20,REDACTED PERSONAL DATA,387589,Social Community Care,HOME CARE SERVICES            
PDSI PURCHASING               ,9190,CITYWIDE SPOT                 ,09/07/2012,3292589,J496673 240612           ,7159.52,REDACTED PERSONAL DATA,387589,Social Community Care,HOME CARE SERVICES            
INDEPENDENT RES BLOCK PLACEMEN,9270,INDEPENDENT RESIDENTIAL PMENT ,09/07/2012,3292579,721,8485.91,REDACTED PERSONAL DATA,405951,Social Community Care,CHILDCARE SERVICES            
EAST SA - CIN S17             ,9270,PAYMENTS TO RELATIVES/FRIENDS ,09/07/2012,3292583,90161,500.00,REDACTED PERSONAL DATA,561897,Unclassified Non Trade,OUT OF SCOPE FOR SIC MONITORIN
WEST SA - LAC                 ,9440,LOOKED AFTER CHILDREN         ,09/07/2012,3292587,ISH/7-17JULY             ,605.00,SHORT TERM STORAGE LTD                  ,569534,Furniture,STORAGE & SHELVING SYSTEMS MNF
PURCHASING                    ,9200,CONTINUING RESIDENTIAL CARE   ,09/07/2012,3292562,J499105 220712           ,4192.07,SANDFORD HOUSE                          ,361790,Social Community Care,RESIDENTIAL CARE HOMES        
